Capital or Revenue,Directorate,Transaction Number,Date,Service Area,Expenses Type,Amount,Supplier Name
Revenue,Managing Director & Head of Paid Service,5105608041,09.01.2015,Public Health Core,Professional Services,"4,200.00",REDACTED PERSONAL DATA
Revenue,Head of Planning & Regulatory Services,5105610106,21.01.2015,IW Biological Record Centre,Payment to Private Contractors,"1,155.00",REDACTED PERSONAL DATA
Revenue,Head of Economy & Tourism,5105611828,28.01.2015,Shared Ownership,Security of Buildings,100.00,REDACTED PERSONAL DATA
Revenue,Head of HR & Organisational Change,5105611828,28.01.2015,Somerton Industrial Park,Security of Buildings,100.00,REDACTED PERSONAL DATA
Revenue,Head of HR & Organisational Change,5105611828,28.01.2015,"Westridge, Ryde",Security of Buildings,25.00,REDACTED PERSONAL DATA
Revenue,Head of Economy & Tourism,5105611828,28.01.2015,Non-operational buildings,Security of Buildings,100.00,REDACTED PERSONAL DATA
Revenue,Head of Economy & Tourism,5105611828,28.01.2015,Non-operational buildings,Security of Buildings,75.00,REDACTED PERSONAL DATA
Revenue,Head of Economy & Tourism,5105611828,28.01.2015,York Centre E Cowes,Security of Buildings,125.00,REDACTED PERSONAL DATA
Revenue,Head of Economy & Tourism,5105611828,28.01.2015,Medina Adult Training Centre Empty Costs,Security of Buildings,100.00,REDACTED PERSONAL DATA
Revenue,Head of Economy & Tourism,5105611828,28.01.2015,Church View Ventnor,Security of Buildings,100.00,REDACTED PERSONAL DATA
Revenue,Director of Childrens Services,5105611019,23.01.2015,Clatterford Pupil Referral Unit (PRU),Security of Buildings,30.00,REDACTED PERSONAL DATA
Revenue,Head of Economy & Tourism,5105611828,28.01.2015,Carisbrooke Contact Centre,Security of Buildings,100.00,REDACTED PERSONAL DATA
Revenue,Director of Childrens Services,5105611828,28.01.2015,Youth- Cowes,Security of Buildings,100.00,REDACTED PERSONAL DATA
Revenue,Director of Childrens Services,5105611828,28.01.2015,Youth- Ryde  (Well St),Security of Buildings,100.00,REDACTED PERSONAL DATA
Revenue,Director of Childrens Services,5105611828,28.01.2015,Youth- Sandown/Lake,Security of Buildings,100.00,REDACTED PERSONAL DATA
Revenue,Director of Childrens Services,5105611828,28.01.2015,Youth- Shorwell,Security of Buildings,100.00,REDACTED PERSONAL DATA
Revenue,Head of Economy & Tourism,5105611828,28.01.2015,"Atkinson Drive, Newport",Security of Buildings,100.00,REDACTED PERSONAL DATA
Revenue,Director of Childrens Services,5105610431,21.01.2015,Old Cowes Enterprise College,Security of Buildings,"1,240.00",REDACTED PERSONAL DATA
Revenue,Director of Childrens Services,5105611019,23.01.2015,Old Cowes Enterprise College,Security of Buildings,"1,200.00",REDACTED PERSONAL DATA
Revenue,Director of Childrens Services,5105611828,28.01.2015,Old Cowes Enterprise College,Security of Buildings,300.00,REDACTED PERSONAL DATA
Revenue,Director of Childrens Services,5105611828,28.01.2015,Gatten & Lake Primary School Disposal,Security of Buildings,300.00,REDACTED PERSONAL DATA
Revenue,Director of Childrens Services,5105611019,23.01.2015,Hunnyhill Primary School Disposal,Security of Buildings,310.00,REDACTED PERSONAL DATA
Revenue,Director of Childrens Services,5105610431,21.01.2015,Hunnyhill Primary School Disposal,Security of Buildings,310.00,REDACTED PERSONAL DATA
Revenue,Director of Childrens Services,5105610431,21.01.2015,Sandham Middle School Disposal,Security of Buildings,120.00,REDACTED PERSONAL DATA
Revenue,Director of Childrens Services,5105610431,21.01.2015,Sandham Middle School Disposal,Security of Buildings,40.00,REDACTED PERSONAL DATA
Revenue,Director of Childrens Services,5105611019,23.01.2015,Sandham Middle School Disposal,Security of Buildings,360.00,REDACTED PERSONAL DATA
Revenue,Director of Childrens Services,5105611019,23.01.2015,Sandham Middle School Disposal,Security of Buildings,25.00,REDACTED PERSONAL DATA
Revenue,Director of Childrens Services,5105612319,30.01.2015,Sandham Middle School Disposal,Security of Buildings,40.00,REDACTED PERSONAL DATA
Revenue,Head of Economy & Tourism,5105611828,28.01.2015,Ryde Depot,Security of Buildings,100.00,REDACTED PERSONAL DATA
Revenue,Head of ASC & Community Wellbeing,5105610183,30.01.2015,S75 Integrated Community Equipment Store,Vehicle Maintenance Costs,65.00,ISLANDWIDE WINDSCREENS
Revenue,Head of Economy & Tourism,5105612233,30.01.2015,Dog Service,Vehicle Maintenance Costs,166.06,ISLANDWIDE WINDSCREENS
Revenue,Director of Childrens Services,5105611904,30.01.2015,Workforce Development - Early Years,Training,650.00,REDACTED PERSONAL DATA
Revenue,Head of Economy & Tourism,5105606279,07.01.2015,Arts Projects,Professional Services,90.00,REDACTED PERSONAL DATA
Revenue,Director of Childrens Services,5105607787,07.01.2015,Accreditation Centre,Training,816.00,REDACTED PERSONAL DATA
Revenue,Director of Childrens Services,5105609566,16.01.2015,Adoption Costs,Professional Services,400.00,REDACTED PERSONAL DATA
Revenue,Director of Childrens Services,5105609566,16.01.2015,Adoption Costs,Professional Services,400.00,REDACTED PERSONAL DATA
Revenue,Director of Childrens Services,5105609566,16.01.2015,Adoption Costs,Professional Services,100.00,REDACTED PERSONAL DATA
Revenue,Director of Childrens Services,5105609529,16.01.2015,Adoption Costs,Professional Services,570.00,REDACTED PERSONAL DATA
Revenue,Head of ASC & Community Wellbeing,5105610011,21.01.2015,My Life A Full Life Programme Delivery,Professional Services,"2,492.19",REDACTED PERSONAL DATA
Revenue,Managing Director & Head of Paid Service,5105612220,30.01.2015,Strengthening Families,Payment to Private Contractors,520.00,REDACTED PERSONAL DATA
Revenue,Managing Director & Head of Paid Service,5105612220,30.01.2015,Strengthening Families,Payment to Private Contractors,300.00,REDACTED PERSONAL DATA
Revenue,Director of Childrens Services,5105612329,30.01.2015,Thompson House Tuition Centre (PRU),Professional Services,225.00,ISLAND EQUUS
Revenue,Director of Childrens Services,5105612239,30.01.2015,Clatterford Pupil Referral Unit (PRU),Professional Services,360.00,ISLAND EQUUS
Revenue,Director of Childrens Services,5105612239,30.01.2015,Clatterford Pupil Referral Unit (PRU),Professional Services,300.00,ISLAND EQUUS
Revenue,Director of Childrens Services,5105605039,02.01.2015,Special Educational Needs Reforms Grant,Agency staff,"1,572.90",REDACTED PERSONAL DATA
Revenue,Director of Childrens Services,5105608745,14.01.2015,Special Educational Needs Reforms Grant,Agency staff,831.00,REDACTED PERSONAL DATA
Revenue,Director of Childrens Services,5105610339,21.01.2015,Short Breaks,Charges from Independent Providers,264.52,REDACTED PERSONAL DATA
Revenue,Director of Childrens Services,5105610867,23.01.2015,Workshop Initiative Support in Education,Operational Equipment,150.00,PAT THE WIGHT
Revenue,Head of ASC & Community Wellbeing,5105610594,23.01.2015,Leaseholds by LA,Accommodation Costs - Leaseholder Payments,695.89,REDACTED PERSONAL DATA
Revenue,Head of ASC & Community Wellbeing,5105610594,23.01.2015,Leaseholds by LA,Accommodation Costs - Leaseholder Payments,695.89,REDACTED PERSONAL DATA
Revenue,Head of ASC & Community Wellbeing,5105610594,23.01.2015,Leaseholds by LA,Accommodation Costs - Leaseholder Payments,695.89,REDACTED PERSONAL DATA
Revenue,Head of ASC & Community Wellbeing,5105610594,23.01.2015,Leaseholds by LA,Accommodation Costs - Leaseholder Payments,695.89,REDACTED PERSONAL DATA
Revenue,Head of ASC & Community Wellbeing,5105610594,23.01.2015,Leaseholds by LA,Accommodation Costs - Leaseholder Payments,695.89,REDACTED PERSONAL DATA
Revenue,Head of Economy & Tourism,5105610891,23.01.2015,"St Thomas Church, Ryde",Minor Works,100.00,"PETER A ATTRILL, GARDENING SERVICES"
Revenue,Head of Economy & Tourism,5105606513,07.01.2015,Archaeology,Operational Equipment,21.75,REDACTED PERSONAL DATA
Revenue,Managing Director & Head of Paid Service,5105605025,07.01.2015,Strengthening Families,Payments to Voluntary and Other Associations,50.00,REDACTED PERSONAL DATA
Revenue,Managing Director & Head of Paid Service,5105605053,07.01.2015,Strengthening Families,Payments to Voluntary and Other Associations,50.00,REDACTED PERSONAL DATA
Revenue,Director of Childrens Services,5105606564,07.01.2015,Children in Care Team,Transport of Clients,285.00,REDACTED PERSONAL DATA
Revenue,Head of ASC & Community Wellbeing,5105610614,23.01.2015,Leaseholds by LA,Accommodation Costs - Leaseholder Payments,866.67,2K PROPERTY
Revenue,Head of ASC & Community Wellbeing,5105607757,07.01.2015,Adelaide Resource Centre,Catering Purchases,125.09,3663 (BFS GROUP LTD)
Revenue,Head of ASC & Community Wellbeing,5105607746,07.01.2015,Adelaide Resource Centre,Catering Purchases,91.17,3663 (BFS GROUP LTD)
Revenue,Head of ASC & Community Wellbeing,5105607746,07.01.2015,Adelaide Resource Centre,Catering Purchases,5.14,3663 (BFS GROUP LTD)
Revenue,Head of ASC & Community Wellbeing,5105608309,09.01.2015,Adelaide Resource Centre,Catering Purchases,162.14,3663 (BFS GROUP LTD)
Revenue,Head of ASC & Community Wellbeing,5105608308,09.01.2015,Adelaide Resource Centre,Catering Purchases,290.08,3663 (BFS GROUP LTD)
Revenue,Head of ASC & Community Wellbeing,5105608308,09.01.2015,Adelaide Resource Centre,Catering Purchases,0.02,3663 (BFS GROUP LTD)
Revenue,Head of ASC & Community Wellbeing,5105608309,09.01.2015,Adelaide Resource Centre,Catering Purchases,0.01,3663 (BFS GROUP LTD)
Revenue,Head of ASC & Community Wellbeing,5105608710,09.01.2015,Adelaide Resource Centre,Catering Purchases,379.38,3663 (BFS GROUP LTD)
Revenue,Head of ASC & Community Wellbeing,5105608710,09.01.2015,Adelaide Resource Centre,Catering Purchases,46.26,3663 (BFS GROUP LTD)
Revenue,Head of ASC & Community Wellbeing,5105608699,09.01.2015,Adelaide Resource Centre,Catering Purchases,111.79,3663 (BFS GROUP LTD)
Revenue,Head of ASC & Community Wellbeing,5105608699,09.01.2015,Adelaide Resource Centre,Catering Purchases,10.60,3663 (BFS GROUP LTD)
Revenue,Head of ASC & Community Wellbeing,5105610194,21.01.2015,Adelaide Resource Centre,Catering Purchases,154.99,3663 (BFS GROUP LTD)
Revenue,Head of ASC & Community Wellbeing,5105610195,21.01.2015,Adelaide Resource Centre,Catering Purchases,248.18,3663 (BFS GROUP LTD)
Revenue,Head of ASC & Community Wellbeing,5105610163,21.01.2015,Adelaide Resource Centre,Catering Purchases,205.63,3663 (BFS GROUP LTD)
Revenue,Head of ASC & Community Wellbeing,5105610202,21.01.2015,Adelaide Resource Centre,Catering Purchases,190.64,3663 (BFS GROUP LTD)
Revenue,Head of ASC & Community Wellbeing,5105610202,21.01.2015,Adelaide Resource Centre,Catering Purchases,5.14,3663 (BFS GROUP LTD)
Revenue,Head of ASC & Community Wellbeing,5105610163,21.01.2015,Adelaide Resource Centre,Catering Purchases,31.32,3663 (BFS GROUP LTD)
Revenue,Head of ASC & Community Wellbeing,5105610933,23.01.2015,Gouldings Resource Centre,Catering Purchases,-5.36,3663 (BFS GROUP LTD)
Revenue,Head of ASC & Community Wellbeing,5105610931,23.01.2015,Gouldings Resource Centre,Catering Purchases,85.34,3663 (BFS GROUP LTD)
Revenue,Head of ASC & Community Wellbeing,5105610508,21.01.2015,Gouldings Resource Centre,Catering Purchases,402.22,3663 (BFS GROUP LTD)
Revenue,Head of ASC & Community Wellbeing,5105610508,21.01.2015,Gouldings Resource Centre,Catering Purchases,10.60,3663 (BFS GROUP LTD)
Revenue,Head of ASC & Community Wellbeing,5105608721,14.01.2015,Gouldings Resource Centre,Catering Purchases,-4.98,3663 (BFS GROUP LTD)
Revenue,Head of ASC & Community Wellbeing,5105607962,14.01.2015,Gouldings Resource Centre,Catering Purchases,227.89,3663 (BFS GROUP LTD)
Revenue,Head of ASC & Community Wellbeing,5105607899,07.01.2015,Gouldings Resource Centre,Catering Purchases,371.83,3663 (BFS GROUP LTD)
Revenue,Head of ASC & Community Wellbeing,5105607899,07.01.2015,Gouldings Resource Centre,Catering Purchases,4.89,3663 (BFS GROUP LTD)
Revenue,Head of ASC & Community Wellbeing,5105607962,14.01.2015,Gouldings Resource Centre,Catering Purchases,18.55,3663 (BFS GROUP LTD)
Revenue,Head of ASC & Community Wellbeing,5105607900,07.01.2015,Gouldings Resource Centre,Catering Purchases,89.75,3663 (BFS GROUP LTD)
Revenue,Head of ASC & Community Wellbeing,5105607907,07.01.2015,Gouldings Resource Centre,Catering Purchases,36.90,3663 (BFS GROUP LTD)
Revenue,Head of ASC & Community Wellbeing,5105607907,07.01.2015,Gouldings Resource Centre,Catering Purchases,5.00,3663 (BFS GROUP LTD)
Revenue,Head of ASC & Community Wellbeing,5105611838,28.01.2015,Gouldings Resource Centre,Catering Purchases,708.63,3663 (BFS GROUP LTD)
Revenue,Head of ASC & Community Wellbeing,5105611838,28.01.2015,Gouldings Resource Centre,Catering Purchases,40.39,3663 (BFS GROUP LTD)
Revenue,Head of ASC & Community Wellbeing,5105608732,09.01.2015,Westminster House,Catering Purchases,38.59,3663 (BFS GROUP LTD)
Revenue,Head of ASC & Community Wellbeing,5105608731,09.01.2015,Westminster House,Catering Purchases,-38.59,3663 (BFS GROUP LTD)
Revenue,Head of ASC & Community Wellbeing,5105608798,14.01.2015,Westminster House,Catering Purchases,244.39,3663 (BFS GROUP LTD)
Revenue,Head of ASC & Community Wellbeing,5105608257,09.01.2015,Westminster House,Catering Purchases,50.50,3663 (BFS GROUP LTD)
Revenue,Head of ASC & Community Wellbeing,5105610943,23.01.2015,Westminster House,Catering Purchases,62.32,3663 (BFS GROUP LTD)
Revenue,Head of ASC & Community Wellbeing,5105610581,23.01.2015,Westminster House,Catering Purchases,131.65,3663 (BFS GROUP LTD)
Revenue,Head of ASC & Community Wellbeing,5105610580,23.01.2015,Westminster House,Catering Purchases,28.43,3663 (BFS GROUP LTD)
Revenue,Head of Economy & Tourism,5105610405,21.01.2015,Ryde Sports Centre,Stock Purchases,211.53,3663 (BFS GROUP LTD)
Revenue,Head of Economy & Tourism,5105609462,14.01.2015,The Heights,Stock Purchases,326.81,3663 (BFS GROUP LTD)
Revenue,Head of Economy & Tourism,5105607902,07.01.2015,Medina Leisure Centre,Stock Purchases,19.26,3663 (BFS GROUP LTD)
Revenue,Head of Economy & Tourism,5105607902,07.01.2015,Medina Leisure Centre,Stock Purchases,29.01,3663 (BFS GROUP LTD)
Revenue,Head of Economy & Tourism,5105607901,07.01.2015,Medina Leisure Centre,Stock Purchases,423.19,3663 (BFS GROUP LTD)
Revenue,Head of Economy & Tourism,5105610037,16.01.2015,Medina Leisure Centre,Stock Purchases,4.50,3663 (BFS GROUP LTD)
Revenue,Head of Economy & Tourism,5105610037,16.01.2015,Medina Leisure Centre,Stock Purchases,63.05,3663 (BFS GROUP LTD)
Revenue,Head of Economy & Tourism,5105610404,21.01.2015,Medina Leisure Centre,Stock Purchases,729.70,3663 (BFS GROUP LTD)
Revenue,Head of Economy & Tourism,5105609814,16.01.2015,Medina Leisure Centre,Stock Purchases,397.88,3663 (BFS GROUP LTD)
Revenue,Head of Economy & Tourism,5105609527,16.01.2015,Westridge Squash Courts,Stock Purchases,152.31,3663 (BFS GROUP LTD)
Revenue,Head of Finance & S151 Officer,5105610851,30.01.2015,Project Manager Waste Strategy,Computer Software & Consumables,461.25,4 PROJECTS LIMITED
Revenue,Director of Childrens Services,5105610942,23.01.2015,Youth Commissioning,Payments to Voluntary and Other Associations,960.00,YOUTH CLUBS HANTS & IW
Revenue,Head of ASC & Community Wellbeing,5105610050,21.01.2015,Highmead,Minor Works,102.41,A & M APPLIANCE CARE
Revenue,Head of ASC & Community Wellbeing,5105611934,28.01.2015,Adelaide Resource Centre,Consumable Cleaning Materials,201.00,A & M APPLIANCE CARE
Revenue,Head of ASC & Community Wellbeing,5105607718,07.01.2015,Adelaide Resource Centre,Consumable Cleaning Materials,212.00,A & M APPLIANCE CARE
Revenue,Head of ASC & Community Wellbeing,5105607731,14.01.2015,Adelaide Resource Centre,Maintenance of Operational Equipment,664.66,A & M APPLIANCE CARE
Revenue,Head of ASC & Community Wellbeing,5105611935,28.01.2015,Gouldings Resource Centre,Consumable Cleaning Materials,138.00,A & M APPLIANCE CARE
Revenue,Head of ASC & Community Wellbeing,5105610600,23.01.2015,Leaseholds by LA,Accommodation Costs - Leaseholder Payments,780.00,REDACTED PERSONAL DATA
Revenue,Director of Childrens Services,5105608229,09.01.2015,Clatterford Pupil Referral Unit (PRU),Professional Services,700.00,REDACTED PERSONAL DATA
Revenue,Director of Childrens Services,5105607451,02.01.2015,Special Guardianship Order Costs,Support Children,168.39,REDACTED PERSONAL DATA
Revenue,Director of Childrens Services,5105607452,02.01.2015,Special Guardianship Order Costs,Support Children,207.73,REDACTED PERSONAL DATA
Revenue,Director of Childrens Services,5105608089,09.01.2015,Special Guardianship Order Costs,Support Children,168.39,REDACTED PERSONAL DATA
Revenue,Director of Childrens Services,5105608089,09.01.2015,Special Guardianship Order Costs,Support Children,207.73,REDACTED PERSONAL DATA
Revenue,Director of Childrens Services,5105609614,16.01.2015,Special Guardianship Order Costs,Support Children,168.39,REDACTED PERSONAL DATA
Revenue,Director of Childrens Services,5105609614,16.01.2015,Special Guardianship Order Costs,Support Children,207.73,REDACTED PERSONAL DATA
Revenue,Director of Childrens Services,5105610679,23.01.2015,Special Guardianship Order Costs,Support Children,168.39,REDACTED PERSONAL DATA
Revenue,Director of Childrens Services,5105610679,23.01.2015,Special Guardianship Order Costs,Support Children,207.73,REDACTED PERSONAL DATA
Revenue,Director of Childrens Services,5105612057,30.01.2015,Special Guardianship Order Costs,Support Children,168.39,REDACTED PERSONAL DATA
Revenue,Director of Childrens Services,5105612057,30.01.2015,Special Guardianship Order Costs,Support Children,207.73,REDACTED PERSONAL DATA
Revenue,Director of Childrens Services,5105607584,02.01.2015,Leaving Care Costs,Support Children,120.89,REDACTED PERSONAL DATA
Revenue,Director of Childrens Services,5105607586,02.01.2015,Leaving Care Costs,Support Children,120.89,REDACTED PERSONAL DATA
Revenue,Director of Childrens Services,5105608157,09.01.2015,Leaving Care Costs,Support Children,120.89,REDACTED PERSONAL DATA
Revenue,Director of Childrens Services,5105608157,09.01.2015,Leaving Care Costs,Support Children,120.89,REDACTED PERSONAL DATA
Revenue,Director of Childrens Services,5105609682,16.01.2015,Leaving Care Costs,Support Children,120.89,REDACTED PERSONAL DATA
Revenue,Director of Childrens Services,5105609682,16.01.2015,Leaving Care Costs,Support Children,120.89,REDACTED PERSONAL DATA
Revenue,Director of Childrens Services,5105610779,23.01.2015,Leaving Care Costs,Support Children,120.89,REDACTED PERSONAL DATA
Revenue,Director of Childrens Services,5105610779,23.01.2015,Leaving Care Costs,Support Children,120.89,REDACTED PERSONAL DATA
Revenue,Director of Childrens Services,5105612127,30.01.2015,Leaving Care Costs,Support Children,120.89,REDACTED PERSONAL DATA
Revenue,Director of Childrens Services,5105612127,30.01.2015,Leaving Care Costs,Support Children,69.08,REDACTED PERSONAL DATA
Revenue,Director of Childrens Services,5105607585,02.01.2015,Leaving Care Costs,Accommodation Costs - Service Users,57.50,REDACTED PERSONAL DATA
Revenue,Director of Childrens Services,5105607587,02.01.2015,Leaving Care Costs,Accommodation Costs - Service Users,57.50,REDACTED PERSONAL DATA
Revenue,Director of Childrens Services,5105608157,09.01.2015,Leaving Care Costs,Accommodation Costs - Service Users,57.50,REDACTED PERSONAL DATA
Revenue,Director of Childrens Services,5105608157,09.01.2015,Leaving Care Costs,Accommodation Costs - Service Users,57.50,REDACTED PERSONAL DATA
Revenue,Director of Childrens Services,5105609682,16.01.2015,Leaving Care Costs,Accommodation Costs - Service Users,57.50,REDACTED PERSONAL DATA
Revenue,Director of Childrens Services,5105609682,16.01.2015,Leaving Care Costs,Accommodation Costs - Service Users,57.50,REDACTED PERSONAL DATA
Revenue,Director of Childrens Services,5105610779,23.01.2015,Leaving Care Costs,Accommodation Costs - Service Users,57.50,REDACTED PERSONAL DATA
Revenue,Director of Childrens Services,5105610779,23.01.2015,Leaving Care Costs,Accommodation Costs - Service Users,57.50,REDACTED PERSONAL DATA
Revenue,Director of Childrens Services,5105612127,30.01.2015,Leaving Care Costs,Accommodation Costs - Service Users,57.50,REDACTED PERSONAL DATA
Revenue,Director of Childrens Services,5105612127,30.01.2015,Leaving Care Costs,Accommodation Costs - Service Users,32.85,REDACTED PERSONAL DATA
Revenue,Head of ASC & Community Wellbeing,5105610609,23.01.2015,Leaseholds by LA,Accommodation Costs - Leaseholder Payments,510.25,REDACTED PERSONAL DATA
Revenue,Head of ASC & Community Wellbeing,5105610609,23.01.2015,Leaseholds by LA,Accommodation Costs - Leaseholder Payments,510.25,REDACTED PERSONAL DATA
Revenue,Head of ASC & Community Wellbeing,5105610609,23.01.2015,Leaseholds by LA,Accommodation Costs - Leaseholder Payments,510.25,REDACTED PERSONAL DATA
Revenue,Head of ASC & Community Wellbeing,5105610609,23.01.2015,Leaseholds by LA,Accommodation Costs - Leaseholder Payments,510.25,REDACTED PERSONAL DATA
Revenue,Head of ASC & Community Wellbeing,5105610609,23.01.2015,Leaseholds by LA,Accommodation Costs - Leaseholder Payments,510.25,REDACTED PERSONAL DATA
Revenue,Head of ASC & Community Wellbeing,5105610609,23.01.2015,Leaseholds by LA,Accommodation Costs - Leaseholder Payments,510.25,REDACTED PERSONAL DATA
Revenue,Head of Corp Gov & Monitoring Officer,5105608782,14.01.2015,Litigation Costs,Legal Fees - Other Parties,540.00,REDACTED PERSONAL DATA
Revenue,Director of Childrens Services,5105608067,09.01.2015,Adoption Costs,Support Children,186.49,REDACTED PERSONAL DATA
Revenue,Director of Childrens Services,5105607397,02.01.2015,Adoption Costs,Support Children,186.49,REDACTED PERSONAL DATA
Revenue,Director of Childrens Services,5105612035,30.01.2015,Adoption Costs,Support Children,186.49,REDACTED PERSONAL DATA
Revenue,Director of Childrens Services,5105610657,23.01.2015,Adoption Costs,Support Children,186.49,REDACTED PERSONAL DATA
Revenue,Director of Childrens Services,5105609592,16.01.2015,Adoption Costs,Support Children,186.49,REDACTED PERSONAL DATA
Revenue,Head of ASC & Community Wellbeing,5105610611,23.01.2015,Leaseholds by LA,Accommodation Costs - Leaseholder Payments,780.00,REDACTED PERSONAL DATA
Revenue,Head of ASC & Community Wellbeing,5105610598,23.01.2015,Leaseholds by LA,Accommodation Costs - Leaseholder Payments,835.08,REDACTED PERSONAL DATA
Revenue,Head of ASC & Community Wellbeing,5105610598,23.01.2015,Leaseholds by LA,Accommodation Costs - Leaseholder Payments,789.01,REDACTED PERSONAL DATA
Revenue,Head of ASC & Community Wellbeing,5105610598,23.01.2015,Leaseholds by LA,Accommodation Costs - Leaseholder Payments,649.83,REDACTED PERSONAL DATA
Revenue,Director of Childrens Services,5105608063,09.01.2015,Adoption Costs,Support Children,87.15,REDACTED PERSONAL DATA
Revenue,Director of Childrens Services,5105607387,02.01.2015,Adoption Costs,Support Children,87.15,REDACTED PERSONAL DATA
Revenue,Director of Childrens Services,5105612031,30.01.2015,Adoption Costs,Support Children,87.15,REDACTED PERSONAL DATA
Revenue,Director of Childrens Services,5105610653,23.01.2015,Adoption Costs,Support Children,87.15,REDACTED PERSONAL DATA
Revenue,Director of Childrens Services,5105609588,16.01.2015,Adoption Costs,Support Children,87.15,REDACTED PERSONAL DATA
Revenue,Director of Childrens Services,5105607623,02.01.2015,In-house Fostering,Boarding Out Allowances,242.08,REDACTED PERSONAL DATA
Revenue,Director of Childrens Services,5105607624,02.01.2015,In-house Fostering,Boarding Out Allowances,150.00,REDACTED PERSONAL DATA
Revenue,Director of Childrens Services,5105608184,09.01.2015,In-house Fostering,Boarding Out Allowances,242.08,REDACTED PERSONAL DATA
Revenue,Director of Childrens Services,5105608184,09.01.2015,In-house Fostering,Boarding Out Allowances,150.00,REDACTED PERSONAL DATA
Revenue,Director of Childrens Services,5105609708,16.01.2015,In-house Fostering,Boarding Out Allowances,242.08,REDACTED PERSONAL DATA
Revenue,Director of Childrens Services,5105609708,16.01.2015,In-house Fostering,Boarding Out Allowances,150.00,REDACTED PERSONAL DATA
Revenue,Director of Childrens Services,5105610807,23.01.2015,In-house Fostering,Boarding Out Allowances,150.00,REDACTED PERSONAL DATA
Revenue,Director of Childrens Services,5105610807,23.01.2015,In-house Fostering,Boarding Out Allowances,242.08,REDACTED PERSONAL DATA
Revenue,Director of Childrens Services,5105612154,30.01.2015,In-house Fostering,Boarding Out Allowances,150.00,REDACTED PERSONAL DATA
Revenue,Director of Childrens Services,5105612154,30.01.2015,In-house Fostering,Boarding Out Allowances,242.08,REDACTED PERSONAL DATA
Revenue,Head of ASC & Community Wellbeing,5105609931,16.01.2015,Supporting People Older Persons,Payment to Private Contractors,82.31,ABBEYFIELD WEST WIGHT SOCIETY
Revenue,Head of ASC & Community Wellbeing,5105610208,21.01.2015,"Options,Prevention & Register Team",Computer Maintenance,474.48,ABRITAS LTD
Revenue,Head of ASC & Community Wellbeing,5105608053,09.01.2015,Elderly Frail Residential Care,Charges from Independent Providers,"1,700.44",ACACIA CARE HOME
Revenue,Head of ASC & Community Wellbeing,5105609902,16.01.2015,Elderly Frail Residential Care,Charges from Independent Providers,485.84,ACACIA CARE HOME
Revenue,Head of ASC & Community Wellbeing,5105611186,28.01.2015,Elderly Frail Residential Care,Charges from Independent Providers,"1,700.44",ACACIA CARE HOME
Revenue,Head of ASC & Community Wellbeing,5105611857,28.01.2015,Elderly Frail Residential Care,Charges from Independent Providers,910.95,ACACIA CARE HOME
Revenue,Head of ASC & Community Wellbeing,5105611186,28.01.2015,Elderly Frail Residential Care,Charges from Independent Providers,"1,700.44",ACACIA CARE HOME
Revenue,Head of ASC & Community Wellbeing,5105611186,28.01.2015,Elderly Mentally Ill Residential Care,Charges from Independent Providers,"1,781.36",ACACIA CARE HOME
Revenue,Head of ASC & Community Wellbeing,5105610929,28.01.2015,31 Carter Avenue,Interview & recruitment expenses,44.00,ACCESS PERSONAL CHECKING SERVICES LTD
Revenue,Head of ASC & Community Wellbeing,5105610929,28.01.2015,Seagulls,Interview & recruitment expenses,44.00,ACCESS PERSONAL CHECKING SERVICES LTD
Revenue,Head of ASC & Community Wellbeing,5105610929,28.01.2015,Seagulls,Interview & recruitment expenses,6.00,ACCESS PERSONAL CHECKING SERVICES LTD
Revenue,Head of ASC & Community Wellbeing,5105610929,28.01.2015,Plean Dene,Interview & recruitment expenses,44.00,ACCESS PERSONAL CHECKING SERVICES LTD
Revenue,Head of ASC & Community Wellbeing,5105610929,28.01.2015,Plean Dene,Interview & recruitment expenses,6.00,ACCESS PERSONAL CHECKING SERVICES LTD
Revenue,Head of ASC & Community Wellbeing,5105610929,28.01.2015,40 Venner Avenue,Interview & recruitment expenses,132.00,ACCESS PERSONAL CHECKING SERVICES LTD
Revenue,Head of ASC & Community Wellbeing,5105610929,28.01.2015,40 Venner Avenue,Interview & recruitment expenses,18.00,ACCESS PERSONAL CHECKING SERVICES LTD
Revenue,Head of ASC & Community Wellbeing,5105610929,28.01.2015,Hospital Team,Interview & recruitment expenses,44.00,ACCESS PERSONAL CHECKING SERVICES LTD
Revenue,Head of ASC & Community Wellbeing,5105610929,28.01.2015,Hospital Team,Interview & recruitment expenses,6.00,ACCESS PERSONAL CHECKING SERVICES LTD
Revenue,Head of ASC & Community Wellbeing,5105610929,28.01.2015,Adelaide Resource Centre,Interview & recruitment expenses,44.00,ACCESS PERSONAL CHECKING SERVICES LTD
Revenue,Head of ASC & Community Wellbeing,5105610929,28.01.2015,Adelaide Resource Centre,Interview & recruitment expenses,6.00,ACCESS PERSONAL CHECKING SERVICES LTD
Revenue,Head of Economy & Tourism,5105610929,28.01.2015,The Heights,Interview & recruitment expenses,44.00,ACCESS PERSONAL CHECKING SERVICES LTD
Revenue,Head of Economy & Tourism,5105610929,28.01.2015,The Heights,Interview & recruitment expenses,6.00,ACCESS PERSONAL CHECKING SERVICES LTD
Revenue,Director of Childrens Services,5105609412,14.01.2015,Clatterford Pupil Referral Unit (PRU),Interview & recruitment expenses,44.00,ACCESS PERSONAL CHECKING SERVICES LTD
Revenue,Director of Childrens Services,5105610929,28.01.2015,Clatterford Pupil Referral Unit (PRU),Interview & recruitment expenses,6.00,ACCESS PERSONAL CHECKING SERVICES LTD
Revenue,Director of Childrens Services,5105610929,28.01.2015,Outreach Services,Interview & recruitment expenses,44.00,ACCESS PERSONAL CHECKING SERVICES LTD
Revenue,Director of Childrens Services,5105610929,28.01.2015,Outreach Services,Interview & recruitment expenses,6.00,ACCESS PERSONAL CHECKING SERVICES LTD
Revenue,Director of Childrens Services,5105610929,28.01.2015,Youth Offending Team,Interview & recruitment expenses,88.00,ACCESS PERSONAL CHECKING SERVICES LTD
Revenue,Director of Childrens Services,5105610929,28.01.2015,Youth Offending Team,Interview & recruitment expenses,12.00,ACCESS PERSONAL CHECKING SERVICES LTD
Revenue,Director of Childrens Services,5105610929,28.01.2015,Direct Payments Children & Families,Interview & recruitment expenses,88.00,ACCESS PERSONAL CHECKING SERVICES LTD
Revenue,Director of Childrens Services,5105610929,28.01.2015,Direct Payments Children & Families,Interview & recruitment expenses,12.00,ACCESS PERSONAL CHECKING SERVICES LTD
Revenue,Director of Childrens Services,5105610929,28.01.2015,In-house Fostering,Interview & recruitment expenses,484.00,ACCESS PERSONAL CHECKING SERVICES LTD
Revenue,Director of Childrens Services,5105610929,28.01.2015,In-house Fostering,Interview & recruitment expenses,72.00,ACCESS PERSONAL CHECKING SERVICES LTD
Revenue,Director of Childrens Services,5105610929,28.01.2015,Children In Need 2,Interview & recruitment expenses,26.00,ACCESS PERSONAL CHECKING SERVICES LTD
Revenue,Director of Childrens Services,5105610929,28.01.2015,Children In Need 2,Interview & recruitment expenses,6.00,ACCESS PERSONAL CHECKING SERVICES LTD
Revenue,Director of Childrens Services,5105610929,28.01.2015,Safeguarding Support,Interview & recruitment expenses,44.00,ACCESS PERSONAL CHECKING SERVICES LTD
Revenue,Director of Childrens Services,5105610929,28.01.2015,Safeguarding Support,Interview & recruitment expenses,12.00,ACCESS PERSONAL CHECKING SERVICES LTD
Revenue,Director of Childrens Services,5105610929,28.01.2015,Hearing Impaired Service,Interview & recruitment expenses,44.00,ACCESS PERSONAL CHECKING SERVICES LTD
Revenue,Director of Childrens Services,5105610929,28.01.2015,Hearing Impaired Service,Interview & recruitment expenses,6.00,ACCESS PERSONAL CHECKING SERVICES LTD
Revenue,Director of Childrens Services,5105610929,28.01.2015,Beaulieu House,Interview & recruitment expenses,44.00,ACCESS PERSONAL CHECKING SERVICES LTD
Revenue,Director of Childrens Services,5105610929,28.01.2015,Beaulieu House,Interview & recruitment expenses,6.00,ACCESS PERSONAL CHECKING SERVICES LTD
Revenue,Head of Economy & Tourism,5105610929,28.01.2015,Environment officers,Interview & recruitment expenses,44.00,ACCESS PERSONAL CHECKING SERVICES LTD
Revenue,Head of Economy & Tourism,5105610929,28.01.2015,Environment officers,Interview & recruitment expenses,6.00,ACCESS PERSONAL CHECKING SERVICES LTD
Revenue,Head of Planning & Regulatory Services,5105607917,14.01.2015,Licensing Services,Interview & recruitment expenses,132.00,ACCESS PERSONAL CHECKING SERVICES LTD
Revenue,Head of Planning & Regulatory Services,5105607917,14.01.2015,Licensing Services,Professional Services,18.00,ACCESS PERSONAL CHECKING SERVICES LTD
Revenue,Head of ASC & Community Wellbeing,5105610357,21.01.2015,S75 Integrated Community Equipment Store,Operational Equipment,"2,101.00",ACCORA  LIMITED
Revenue,Head of ASC & Community Wellbeing,5105608362,09.01.2015,Elderly Frail Homecare,Charges from Independent Providers,737.94,ACORN CARE SERVICE LTD
Revenue,Head of ASC & Community Wellbeing,5105608363,09.01.2015,Elderly Frail Homecare,Charges from Independent Providers,613.42,ACORN CARE SERVICE LTD
Revenue,Head of ASC & Community Wellbeing,5105608364,09.01.2015,Elderly Frail Homecare,Charges from Independent Providers,120.48,ACORN CARE SERVICE LTD
Revenue,Head of ASC & Community Wellbeing,5105608359,09.01.2015,Elderly Frail Homecare,Charges from Independent Providers,639.94,ACORN CARE SERVICE LTD
Revenue,Head of ASC & Community Wellbeing,5105608361,09.01.2015,Elderly Frail Homecare,Charges from Independent Providers,436.74,ACORN CARE SERVICE LTD
Revenue,Head of ASC & Community Wellbeing,5105608349,09.01.2015,Elderly Frail Homecare,Charges from Independent Providers,89.04,ACORN CARE SERVICE LTD
Revenue,Head of ASC & Community Wellbeing,5105608345,09.01.2015,Elderly Frail Homecare,Charges from Independent Providers,"1,921.30",ACORN CARE SERVICE LTD
Revenue,Head of ASC & Community Wellbeing,5105608350,09.01.2015,Elderly Frail Homecare,Charges from Independent Providers,"1,174.68",ACORN CARE SERVICE LTD
Revenue,Head of ASC & Community Wellbeing,5105608344,09.01.2015,Elderly Frail Homecare,Charges from Independent Providers,"2,085.48",ACORN CARE SERVICE LTD
Revenue,Head of ASC & Community Wellbeing,5105608353,09.01.2015,Elderly Frail Homecare,Charges from Independent Providers,542.16,ACORN CARE SERVICE LTD
Revenue,Head of ASC & Community Wellbeing,5105608354,09.01.2015,Elderly Frail Homecare,Charges from Independent Providers,530.18,ACORN CARE SERVICE LTD
Revenue,Head of ASC & Community Wellbeing,5105608355,09.01.2015,Elderly Frail Homecare,Charges from Independent Providers,101.60,ACORN CARE SERVICE LTD
Revenue,Head of ASC & Community Wellbeing,5105608356,09.01.2015,Elderly Frail Homecare,Charges from Independent Providers,60.24,ACORN CARE SERVICE LTD
Revenue,Head of ASC & Community Wellbeing,5105608357,09.01.2015,Elderly Frail Homecare,Charges from Independent Providers,211.50,ACORN CARE SERVICE LTD
Revenue,Head of ASC & Community Wellbeing,5105608358,09.01.2015,Elderly Frail Homecare,Charges from Independent Providers,738.35,ACORN CARE SERVICE LTD
Revenue,Head of ASC & Community Wellbeing,5105608346,09.01.2015,Elderly Frail Homecare,Charges from Independent Providers,285.92,ACORN CARE SERVICE LTD
Revenue,Head of ASC & Community Wellbeing,5105608347,09.01.2015,Elderly Frail Homecare,Charges from Independent Providers,"1,573.77",ACORN CARE SERVICE LTD
Revenue,Head of ASC & Community Wellbeing,5105608351,09.01.2015,Elderly Frail Homecare,Charges from Independent Providers,858.42,ACORN CARE SERVICE LTD
Revenue,Head of ASC & Community Wellbeing,5105608352,09.01.2015,Elderly Frail Homecare,Charges from Independent Providers,210.84,ACORN CARE SERVICE LTD
Revenue,Head of ASC & Community Wellbeing,5105608366,09.01.2015,Elderly Frail Homecare,Regular Respite Care,120.48,ACORN CARE SERVICE LTD
Revenue,Head of ASC & Community Wellbeing,5105608360,09.01.2015,Elderly Frail Homecare,Regular Respite Care,240.96,ACORN CARE SERVICE LTD
Revenue,Head of ASC & Community Wellbeing,5105608388,09.01.2015,Elderly Frail Homecare,Regular Respite Care,120.48,ACORN CARE SERVICE LTD
Revenue,Head of ASC & Community Wellbeing,5105608368,09.01.2015,Elderly Frail Homecare,Regular Respite Care,120.48,ACORN CARE SERVICE LTD
Revenue,Head of ASC & Community Wellbeing,5105608370,09.01.2015,Elderly Frail Homecare,Regular Respite Care,-771.68,ACORN CARE SERVICE LTD
Revenue,Head of ASC & Community Wellbeing,5105608371,09.01.2015,Elderly Frail Homecare,Regular Respite Care,118.72,ACORN CARE SERVICE LTD
Revenue,Head of ASC & Community Wellbeing,5105608371,09.01.2015,Elderly Frail Homecare,Regular Respite Care,120.48,ACORN CARE SERVICE LTD
Revenue,Head of ASC & Community Wellbeing,5105608377,09.01.2015,Elderly Frail Homecare,Regular Respite Care,93.74,ACORN CARE SERVICE LTD
Revenue,Head of ASC & Community Wellbeing,5105608380,09.01.2015,Elderly Frail Homecare,Charges from Independent Providers,301.20,ACORN CARE SERVICE LTD
Revenue,Head of ASC & Community Wellbeing,5105608381,09.01.2015,Elderly Frail Homecare,Charges from Independent Providers,527.10,ACORN CARE SERVICE LTD
Revenue,Head of ASC & Community Wellbeing,5105608379,09.01.2015,Elderly Frail Homecare,Charges from Independent Providers,421.68,ACORN CARE SERVICE LTD
Revenue,Head of ASC & Community Wellbeing,5105608375,09.01.2015,Elderly Frail Homecare,Charges from Independent Providers,44.96,ACORN CARE SERVICE LTD
Revenue,Head of ASC & Community Wellbeing,5105608382,09.01.2015,Elderly Frail Homecare,Charges from Independent Providers,361.44,ACORN CARE SERVICE LTD
Revenue,Head of ASC & Community Wellbeing,5105608383,09.01.2015,Elderly Frail Homecare,Charges from Independent Providers,"2,522.44",ACORN CARE SERVICE LTD
Revenue,Head of ASC & Community Wellbeing,5105608384,09.01.2015,Elderly Frail Homecare,Charges from Independent Providers,737.94,ACORN CARE SERVICE LTD
Revenue,Head of ASC & Community Wellbeing,5105608385,09.01.2015,Elderly Frail Homecare,Charges from Independent Providers,919.76,ACORN CARE SERVICE LTD
Revenue,Head of ASC & Community Wellbeing,5105608373,09.01.2015,Elderly Frail Homecare,Charges from Independent Providers,715.46,ACORN CARE SERVICE LTD
Revenue,Head of ASC & Community Wellbeing,5105608374,09.01.2015,Elderly Frail Homecare,Charges from Independent Providers,500.91,ACORN CARE SERVICE LTD
Revenue,Head of ASC & Community Wellbeing,5105608376,09.01.2015,Elderly Frail Homecare,Charges from Independent Providers,527.10,ACORN CARE SERVICE LTD
Revenue,Head of ASC & Community Wellbeing,5105608369,09.01.2015,Elderly Frail Homecare,Charges from Independent Providers,527.10,ACORN CARE SERVICE LTD
Revenue,Head of ASC & Community Wellbeing,5105608348,09.01.2015,Elderly Frail Homecare,Charges from Independent Providers,"1,142.58",ACORN CARE SERVICE LTD
Revenue,Head of ASC & Community Wellbeing,5105608387,09.01.2015,Elderly Frail Homecare,Charges from Independent Providers,234.53,ACORN CARE SERVICE LTD
Revenue,Head of ASC & Community Wellbeing,5105608386,09.01.2015,Elderly Frail Homecare,Charges from Independent Providers,392.00,ACORN CARE SERVICE LTD
Revenue,Head of ASC & Community Wellbeing,5105608378,09.01.2015,Elderly Frail Homecare,Charges from Independent Providers,203.20,ACORN CARE SERVICE LTD
Revenue,Head of ASC & Community Wellbeing,5105608372,09.01.2015,Elderly Frail Homecare,Charges from Independent Providers,398.98,ACORN CARE SERVICE LTD
Revenue,Head of ASC & Community Wellbeing,5105608367,09.01.2015,Elderly Frail Homecare,Charges from Independent Providers,555.82,ACORN CARE SERVICE LTD
Revenue,Head of ASC & Community Wellbeing,5105608365,09.01.2015,Elderly Frail Homecare,Charges from Independent Providers,"2,665.84",ACORN CARE SERVICE LTD
Revenue,Chief Fire Officer,5105609837,16.01.2015,Fire Technical Support,Vehicle Maintenance Costs,244.00,ADAMS MOREY LTD
Revenue,Chief Fire Officer,5105609788,16.01.2015,Fire Technical Support,Vehicle Maintenance Costs,14.50,ADAMS MOREY LTD
Revenue,Chief Fire Officer,5105609759,16.01.2015,Fire Technical Support,Vehicle Maintenance Costs,14.50,ADAMS MOREY LTD
Revenue,Chief Fire Officer,5105609759,16.01.2015,Fire Technical Support,Vehicle Maintenance Costs,36.00,ADAMS MOREY LTD
Revenue,Chief Fire Officer,5105607958,07.01.2015,Fire Technical Support,Vehicle Maintenance Costs,16.65,ADAMS MOREY LTD
Revenue,Chief Fire Officer,5105607958,07.01.2015,Fire Technical Support,Vehicle Maintenance Costs,16.65,ADAMS MOREY LTD
Revenue,Chief Fire Officer,5105607958,07.01.2015,Fire Technical Support,Vehicle Maintenance Costs,36.66,ADAMS MOREY LTD
Revenue,Chief Fire Officer,5105607958,07.01.2015,Fire Technical Support,Vehicle Maintenance Costs,36.66,ADAMS MOREY LTD
Revenue,Chief Fire Officer,5105608243,09.01.2015,Fire Technical Support,Vehicle Maintenance Costs,14.50,ADAMS MOREY LTD
Revenue,Chief Fire Officer,5105608246,09.01.2015,Fire Technical Support,Vehicle Maintenance Costs,49.00,ADAMS MOREY LTD
Revenue,Chief Fire Officer,5105611979,28.01.2015,Fire Technical Support,Vehicle Maintenance Costs,14.50,ADAMS MOREY LTD
Revenue,Chief Fire Officer,5105611976,28.01.2015,Fire Technical Support,Vehicle Maintenance Costs,40.00,ADAMS MOREY LTD
Revenue,Chief Fire Officer,5105610445,21.01.2015,Fire Technical Support,Vehicle Maintenance Costs,40.00,ADAMS MOREY LTD
Revenue,Chief Fire Officer,5105610055,16.01.2015,Fire Technical Support,Vehicle Maintenance Costs,5.94,ADAMS MOREY LTD
Revenue,Chief Fire Officer,5105610055,16.01.2015,Fire Technical Support,Vehicle Maintenance Costs,4.55,ADAMS MOREY LTD
Revenue,Chief Fire Officer,5105610055,16.01.2015,Fire Technical Support,Vehicle Maintenance Costs,4.27,ADAMS MOREY LTD
Revenue,Chief Fire Officer,5105610055,16.01.2015,Fire Technical Support,Vehicle Maintenance Costs,530.40,ADAMS MOREY LTD
Revenue,Chief Fire Officer,5105610056,16.01.2015,Fire Technical Support,Vehicle Maintenance Costs,14.60,ADAMS MOREY LTD
Revenue,Chief Fire Officer,5105610056,16.01.2015,Fire Technical Support,Vehicle Maintenance Costs,24.80,ADAMS MOREY LTD
Revenue,Chief Fire Officer,5105610056,16.01.2015,Fire Technical Support,Vehicle Maintenance Costs,6.44,ADAMS MOREY LTD
Revenue,Chief Fire Officer,5105610056,16.01.2015,Fire Technical Support,Vehicle Maintenance Costs,4.06,ADAMS MOREY LTD
Revenue,Chief Fire Officer,5105610056,16.01.2015,Fire Technical Support,Vehicle Maintenance Costs,2.27,ADAMS MOREY LTD
Revenue,Chief Fire Officer,5105610056,16.01.2015,Fire Technical Support,Vehicle Maintenance Costs,53.39,ADAMS MOREY LTD
Revenue,Chief Fire Officer,5105610056,16.01.2015,Fire Technical Support,Vehicle Maintenance Costs,6.26,ADAMS MOREY LTD
Revenue,Chief Fire Officer,5105610056,16.01.2015,Fire Technical Support,Vehicle Maintenance Costs,8.18,ADAMS MOREY LTD
Revenue,Chief Fire Officer,5105611047,28.01.2015,Fire Technical Support,Vehicle Maintenance Costs,36.00,ADAMS MOREY LTD
Revenue,Chief Fire Officer,5105611024,23.01.2015,Fire Technical Support,Vehicle Maintenance Costs,76.57,ADAMS MOREY LTD
Revenue,Chief Fire Officer,5105611024,23.01.2015,Fire Technical Support,Vehicle Maintenance Costs,6.13,ADAMS MOREY LTD
Revenue,Chief Fire Officer,5105611024,23.01.2015,Fire Technical Support,Vehicle Maintenance Costs,7.76,ADAMS MOREY LTD
Revenue,Chief Fire Officer,5105610988,23.01.2015,Fire Technical Support,Vehicle Maintenance Costs,8.01,ADAMS MOREY LTD
Revenue,Chief Fire Officer,5105610988,23.01.2015,Fire Technical Support,Vehicle Maintenance Costs,8.01,ADAMS MOREY LTD
Revenue,Chief Fire Officer,5105610988,23.01.2015,Fire Technical Support,Vehicle Maintenance Costs,8.01,ADAMS MOREY LTD
Revenue,Chief Fire Officer,5105610988,23.01.2015,Fire Technical Support,Vehicle Maintenance Costs,8.01,ADAMS MOREY LTD
Revenue,Chief Fire Officer,5105610988,23.01.2015,Fire Technical Support,Vehicle Maintenance Costs,11.64,ADAMS MOREY LTD
Revenue,Chief Fire Officer,5105610988,23.01.2015,Fire Technical Support,Vehicle Maintenance Costs,11.64,ADAMS MOREY LTD
Revenue,Chief Fire Officer,5105610988,23.01.2015,Fire Technical Support,Vehicle Maintenance Costs,11.64,ADAMS MOREY LTD
Revenue,Chief Fire Officer,5105610988,23.01.2015,Fire Technical Support,Vehicle Maintenance Costs,11.64,ADAMS MOREY LTD
Revenue,Chief Fire Officer,5105610988,23.01.2015,Fire Technical Support,Vehicle Maintenance Costs,13.67,ADAMS MOREY LTD
Revenue,Chief Fire Officer,5105610988,23.01.2015,Fire Technical Support,Vehicle Maintenance Costs,13.67,ADAMS MOREY LTD
Revenue,Chief Fire Officer,5105610988,23.01.2015,Fire Technical Support,Vehicle Maintenance Costs,13.67,ADAMS MOREY LTD
Revenue,Chief Fire Officer,5105610988,23.01.2015,Fire Technical Support,Vehicle Maintenance Costs,13.67,ADAMS MOREY LTD
Revenue,Chief Fire Officer,5105610988,23.01.2015,Fire Technical Support,Vehicle Maintenance Costs,25.71,ADAMS MOREY LTD
Revenue,Chief Fire Officer,5105610988,23.01.2015,Fire Technical Support,Vehicle Maintenance Costs,25.71,ADAMS MOREY LTD
Revenue,Chief Fire Officer,5105610988,23.01.2015,Fire Technical Support,Vehicle Maintenance Costs,25.71,ADAMS MOREY LTD
Revenue,Chief Fire Officer,5105610988,23.01.2015,Fire Technical Support,Vehicle Maintenance Costs,25.71,ADAMS MOREY LTD
Revenue,Chief Fire Officer,5105610988,23.01.2015,Fire Technical Support,Vehicle Maintenance Costs,39.48,ADAMS MOREY LTD
Revenue,Chief Fire Officer,5105610988,23.01.2015,Fire Technical Support,Vehicle Maintenance Costs,39.48,ADAMS MOREY LTD
Revenue,Chief Fire Officer,5105611782,28.01.2015,Fire Technical Support,Vehicle Maintenance Costs,77.60,ADAMS MOREY LTD
Revenue,Managing Director & Head of Paid Service,5105610040,21.01.2015,Drug Misuse - Adults,Payment to Private Contractors,"1,770.00",ADDICTION RECOVERY CENTRE (ARC)
Revenue,Managing Director & Head of Paid Service,5105610040,21.01.2015,Drug Misuse - Adults,Payment to Private Contractors,590.00,ADDICTION RECOVERY CENTRE (ARC)
Revenue,Head of ASC & Community Wellbeing,5105611061,28.01.2015,Elderly Frail Residential Care,Charges from Independent Providers,"1,812.44",ADIEMUS CARE LTD
Revenue,Director of Childrens Services,5105607964,07.01.2015,Adoption Costs,Advertising & Publicity,536.25,ADOPTION UK
Revenue,Head of HR & Organisational Change,5105609517,16.01.2015,"County Hall,Newport",Security of Buildings,138.90,ADT FIRE AND SECURITY PLC
Capital,Head of HR & Organisational Change,5105609366,14.01.2015,Strategic Projects,Security of Buildings,376.00,ADT FIRE AND SECURITY PLC
Capital,Head of HR & Organisational Change,5105609516,16.01.2015,Strategic Projects,Security of Buildings,200.00,ADT FIRE AND SECURITY PLC
Revenue,Head of ASC & Community Wellbeing,5105607904,07.01.2015,Gouldings Resource Centre,Maintenance of Operational Equipment,230.98,ADT FIRE AND SECURITY PLC
Revenue,Head of Economy & Tourism,5105607905,07.01.2015,Cothey Bottom Store RYDE,Payment to Private Contractors,492.13,ADT FIRE AND SECURITY PLC
Revenue,Head of Economy & Tourism,5105607791,07.01.2015,Medina Theatre,Payment to Private Contractors,332.83,ADT FIRE AND SECURITY PLC
Capital,Chief Fire Officer,5105610889,23.01.2015,Fire Capital Projects,Payment to Contractors - Capital,275.00,ADT FIRE AND SECURITY PLC
Revenue,Director of Childrens Services,5105611839,28.01.2015,Children In Need 1,Agency staff,"1,665.00",AFFINITY WORKFORCE
Revenue,Director of Childrens Services,5105611839,28.01.2015,Children In Need 1,Agency staff,12.40,AFFINITY WORKFORCE
Revenue,Director of Childrens Services,5105603911,07.01.2015,Children in Care Team,Agency staff,"1,665.00",AFFINITY WORKFORCE
Revenue,Director of Childrens Services,5105607819,09.01.2015,Referral & Assessment,Agency staff,"1,665.00",AFFINITY WORKFORCE
Revenue,Director of Childrens Services,5105607744,07.01.2015,Referral & Assessment,Agency staff,"1,665.00",AFFINITY WORKFORCE
Revenue,Director of Childrens Services,5105607854,09.01.2015,Referral & Assessment,Agency staff,945.00,AFFINITY WORKFORCE
Revenue,Director of Childrens Services,5105607819,09.01.2015,Referral & Assessment,Agency staff,44.10,AFFINITY WORKFORCE
Revenue,Director of Childrens Services,5105608280,09.01.2015,Referral & Assessment,Agency staff,"1,665.00",AFFINITY WORKFORCE
Revenue,Director of Childrens Services,5105608285,09.01.2015,Referral & Assessment,Agency staff,"1,665.00",AFFINITY WORKFORCE
Revenue,Director of Childrens Services,5105609828,16.01.2015,Referral & Assessment,Agency staff,"1,350.00",AFFINITY WORKFORCE
Revenue,Director of Childrens Services,5105610426,23.01.2015,Referral & Assessment,Agency staff,"1,665.00",AFFINITY WORKFORCE
Revenue,Director of Childrens Services,5105610426,23.01.2015,Referral & Assessment,Agency staff,72.45,AFFINITY WORKFORCE
Revenue,Director of Childrens Services,5105611823,28.01.2015,Referral & Assessment,Agency staff,"1,665.00",AFFINITY WORKFORCE
Revenue,Director of Childrens Services,5105611823,28.01.2015,Referral & Assessment,Agency staff,49.05,AFFINITY WORKFORCE
Revenue,Director of Childrens Services,5105607852,09.01.2015,Children In Need 2,Agency staff,967.50,AFFINITY WORKFORCE
Revenue,Director of Childrens Services,5105607849,09.01.2015,Children In Need 3,Agency staff,"1,012.50",AFFINITY WORKFORCE
Revenue,Director of Childrens Services,5105607849,09.01.2015,Children In Need 3,Agency staff,43.65,AFFINITY WORKFORCE
Revenue,Director of Childrens Services,5105607786,09.01.2015,Children In Need 3,Agency staff,"1,591.00",AFFINITY WORKFORCE
Revenue,Director of Childrens Services,5105607781,09.01.2015,Children In Need 3,Agency staff,"1,327.50",AFFINITY WORKFORCE
Revenue,Director of Childrens Services,5105607748,07.01.2015,Children In Need 3,Agency staff,"1,651.30",AFFINITY WORKFORCE
Revenue,Director of Childrens Services,5105608279,14.01.2015,Children In Need 3,Agency staff,"1,591.00",AFFINITY WORKFORCE
Revenue,Director of Childrens Services,5105608282,09.01.2015,Children In Need 3,Agency staff,"1,591.00",AFFINITY WORKFORCE
Revenue,Director of Childrens Services,5105608283,09.01.2015,Children In Need 3,Agency staff,"1,591.00",AFFINITY WORKFORCE
Revenue,Director of Childrens Services,5105608284,09.01.2015,Children In Need 3,Agency staff,"1,591.00",AFFINITY WORKFORCE
Revenue,Director of Childrens Services,5105608281,09.01.2015,Children In Need 3,Agency staff,"1,665.00",AFFINITY WORKFORCE
Revenue,Director of Childrens Services,5105607749,07.01.2015,Children In Need 3,Agency staff,"1,237.50",AFFINITY WORKFORCE
Revenue,Director of Childrens Services,5105607750,07.01.2015,Children In Need 3,Agency staff,"1,350.00",AFFINITY WORKFORCE
Revenue,Director of Childrens Services,5105607750,07.01.2015,Children In Need 3,Agency staff,23.85,AFFINITY WORKFORCE
Revenue,Director of Childrens Services,5105608281,09.01.2015,Children In Need 3,Agency staff,19.80,AFFINITY WORKFORCE
Revenue,Director of Childrens Services,5105611841,30.01.2015,Children In Need 3,Agency staff,"1,692.25",AFFINITY WORKFORCE
Revenue,Director of Childrens Services,5105612293,30.01.2015,Children In Need 3,Agency staff,"2,324.56",AFFINITY WORKFORCE
Revenue,Director of Childrens Services,5105610455,23.01.2015,Children In Need 3,Agency staff,"1,591.00",AFFINITY WORKFORCE
Revenue,Director of Childrens Services,5105610428,23.01.2015,Children In Need 3,Agency staff,990.00,AFFINITY WORKFORCE
Revenue,Director of Childrens Services,5105610428,23.01.2015,Children In Need 3,Agency staff,10.35,AFFINITY WORKFORCE
Revenue,Director of Childrens Services,5105609825,16.01.2015,Children In Need 3,Agency staff,"1,004.45",AFFINITY WORKFORCE
Revenue,Head of ASC & Community Wellbeing,5105608756,14.01.2015,Info and Advice Service,Payments to Voluntary and Other Associations,"2,525.00",AGE CONCERN ISLE OF WIGHT
Revenue,Head of ASC & Community Wellbeing,5105608756,14.01.2015,Info and Advice Service,Payments to Voluntary and Other Associations,"2,525.00",AGE CONCERN ISLE OF WIGHT
Revenue,Head of ASC & Community Wellbeing,5105608757,14.01.2015,Info and Advice Service,Payments to Voluntary and Other Associations,"10,200.00",AGE CONCERN ISLE OF WIGHT
Revenue,Head of ASC & Community Wellbeing,5105608757,14.01.2015,Info and Advice Service,Payments to Voluntary and Other Associations,"10,200.00",AGE CONCERN ISLE OF WIGHT
Revenue,Head of ASC & Community Wellbeing,5105608792,14.01.2015,Learning Disability Homes Management & Admin,Publications,54.46,AGORA BUSINESS PUBLICATIONS LLP
Revenue,Head of ASC & Community Wellbeing,5105611929,28.01.2015,S75 Integrated Community Equipment Store,General Materials,243.50,AKW MEDI-CARE LTD
Revenue,Head of ASC & Community Wellbeing,5105611929,28.01.2015,S75 Integrated Community Equipment Store,General Materials,591.00,AKW MEDI-CARE LTD
Revenue,Head of ASC & Community Wellbeing,5105611929,28.01.2015,S75 Integrated Community Equipment Store,General Materials,201.00,AKW MEDI-CARE LTD
Revenue,Director of Childrens Services,5105607931,07.01.2015,LSCB (Local Safeguarding Childrens Board),Professional Services,"1,200.00",ALAN BEDFORD CONSULTING
Revenue,Managing Director & Head of Paid Service,5105610554,23.01.2015,Contraception,Payment to Private Contractors,535.00,ALBERT STREET PRACTICE
Revenue,Managing Director & Head of Paid Service,5105610554,23.01.2015,STI Tests & Treatment,Payment to Private Contractors,35.00,ALBERT STREET PRACTICE
Revenue,Managing Director & Head of Paid Service,5105610554,23.01.2015,Stop Smoking Services & Interventions,Payment to Private Contractors,640.00,ALBERT STREET PRACTICE
Revenue,Head of Economy & Tourism,5105612240,30.01.2015,Dinosaur Isle Museum (Sandown Geology),General Materials,37.86,ALEC TIRANTI LTD
Revenue,Head of Economy & Tourism,5105612240,30.01.2015,Dinosaur Isle Museum (Sandown Geology),General Materials,14.62,ALEC TIRANTI LTD
Revenue,Head of Economy & Tourism,5105612240,30.01.2015,Dinosaur Isle Museum (Sandown Geology),General Materials,37.46,ALEC TIRANTI LTD
Revenue,Head of Economy & Tourism,5105612240,30.01.2015,Dinosaur Isle Museum (Sandown Geology),General Materials,63.34,ALEC TIRANTI LTD
Revenue,Head of Economy & Tourism,5105612240,30.01.2015,Dinosaur Isle Museum (Sandown Geology),General Materials,31.15,ALEC TIRANTI LTD
Revenue,Head of Economy & Tourism,5105612240,30.01.2015,Dinosaur Isle Museum (Sandown Geology),General Materials,58.40,ALEC TIRANTI LTD
Revenue,Head of Economy & Tourism,5105612240,30.01.2015,Dinosaur Isle Museum (Sandown Geology),General Materials,58.40,ALEC TIRANTI LTD
Revenue,Head of Planning & Regulatory Services,5105612303,30.01.2015,Development Control,Advertising & Publicity,378.10,ALEXANDER ADVERTISING (INT) LTD
Revenue,Head of Planning & Regulatory Services,5105609844,16.01.2015,Development Control,Advertising & Publicity,745.54,ALEXANDER ADVERTISING (INT) LTD
Revenue,Head of Planning & Regulatory Services,5105608734,14.01.2015,Development Control,Advertising & Publicity,517.79,ALEXANDER ADVERTISING (INT) LTD
Revenue,Head of Planning & Regulatory Services,5105608739,14.01.2015,Development Control,Advertising & Publicity,533.48,ALEXANDER ADVERTISING (INT) LTD
Revenue,Head of Planning & Regulatory Services,5105611007,23.01.2015,Development Control,Advertising & Publicity,644.36,ALEXANDER ADVERTISING (INT) LTD
Revenue,Director of Childrens Services,5105609801,16.01.2015,Special Educational Needs Transport,Taxis - Contract Hire,376.00,ALPHA (IOW) LTD
Revenue,Director of Childrens Services,5105609801,16.01.2015,Special Educational Needs Transport,Taxis - Contract Hire,355.60,ALPHA (IOW) LTD
Revenue,Director of Childrens Services,5105609801,16.01.2015,Special Educational Needs Transport,Taxis - Contract Hire,396.90,ALPHA (IOW) LTD
Revenue,Director of Childrens Services,5105609801,16.01.2015,Special Educational Needs Transport,Taxis - Contract Hire,313.35,ALPHA (IOW) LTD
Revenue,Director of Childrens Services,5105609801,16.01.2015,Special Educational Needs Transport,Taxis - Contract Hire,321.45,ALPHA (IOW) LTD
Revenue,Director of Childrens Services,5105612356,30.01.2015,Special Educational Needs Transport,Taxis - Contract Hire,188.00,ALPHA (IOW) LTD
Revenue,Director of Childrens Services,5105612356,30.01.2015,Special Educational Needs Transport,Taxis - Contract Hire,260.00,ALPHA (IOW) LTD
Revenue,Director of Childrens Services,5105610858,23.01.2015,Special Educational Needs Transport,Taxis - Contract Hire,267.90,ALPHA (IOW) LTD
Revenue,Director of Childrens Services,5105610858,23.01.2015,Special Educational Needs Transport,Taxis - Contract Hire,457.20,ALPHA (IOW) LTD
Revenue,Director of Childrens Services,5105610858,23.01.2015,Special Educational Needs Transport,Taxis - Contract Hire,461.75,ALPHA (IOW) LTD
Revenue,Director of Childrens Services,5105610858,23.01.2015,Special Educational Needs Transport,Taxis - Contract Hire,188.00,ALPHA (IOW) LTD
Revenue,Director of Childrens Services,5105610858,23.01.2015,Special Educational Needs Transport,Taxis - Contract Hire,260.00,ALPHA (IOW) LTD
Revenue,Director of Childrens Services,5105612356,30.01.2015,Special Educational Needs Transport,Taxis - Contract Hire,321.45,ALPHA (IOW) LTD
Revenue,Director of Childrens Services,5105612356,30.01.2015,Special Educational Needs Transport,Taxis - Contract Hire,320.00,ALPHA (IOW) LTD
Revenue,Director of Childrens Services,5105612356,30.01.2015,Special Educational Needs Transport,Taxis - Contract Hire,304.80,ALPHA (IOW) LTD
Revenue,Director of Childrens Services,5105612356,30.01.2015,Special Educational Needs Transport,Taxis - Contract Hire,267.90,ALPHA (IOW) LTD
Revenue,Director of Childrens Services,5105612356,30.01.2015,Special Educational Needs Transport,Taxis - Contract Hire,457.20,ALPHA (IOW) LTD
Revenue,Director of Childrens Services,5105612356,30.01.2015,Special Educational Needs Transport,Taxis - Contract Hire,461.75,ALPHA (IOW) LTD
Revenue,Director of Childrens Services,5105612356,30.01.2015,Special Educational Needs Transport,Taxis - Contract Hire,100.00,ALPHA (IOW) LTD
Revenue,Director of Childrens Services,5105612356,30.01.2015,Special Educational Needs Transport,Taxis - Contract Hire,376.00,ALPHA (IOW) LTD
Revenue,Director of Childrens Services,5105612356,30.01.2015,Special Educational Needs Transport,Taxis - Contract Hire,355.60,ALPHA (IOW) LTD
Revenue,Director of Childrens Services,5105612356,30.01.2015,Special Educational Needs Transport,Taxis - Contract Hire,396.90,ALPHA (IOW) LTD
Revenue,Director of Childrens Services,5105612356,30.01.2015,Special Educational Needs Transport,Taxis - Contract Hire,313.35,ALPHA (IOW) LTD
Revenue,Director of Childrens Services,5105610858,23.01.2015,Special Educational Needs Transport,Taxis - Contract Hire,321.45,ALPHA (IOW) LTD
Revenue,Director of Childrens Services,5105610858,23.01.2015,Special Educational Needs Transport,Taxis - Contract Hire,320.00,ALPHA (IOW) LTD
Revenue,Director of Childrens Services,5105610858,23.01.2015,Special Educational Needs Transport,Taxis - Contract Hire,304.80,ALPHA (IOW) LTD
Revenue,Director of Childrens Services,5105610858,23.01.2015,Special Educational Needs Transport,Taxis - Contract Hire,100.00,ALPHA (IOW) LTD
Revenue,Director of Childrens Services,5105610858,23.01.2015,Special Educational Needs Transport,Taxis - Contract Hire,376.00,ALPHA (IOW) LTD
Revenue,Director of Childrens Services,5105610858,23.01.2015,Special Educational Needs Transport,Taxis - Contract Hire,355.60,ALPHA (IOW) LTD
Revenue,Director of Childrens Services,5105610858,23.01.2015,Special Educational Needs Transport,Taxis - Contract Hire,396.90,ALPHA (IOW) LTD
Revenue,Director of Childrens Services,5105610858,23.01.2015,Special Educational Needs Transport,Taxis - Contract Hire,313.35,ALPHA (IOW) LTD
Revenue,Director of Childrens Services,5105609801,16.01.2015,Special Educational Needs Transport,Taxis - Contract Hire,188.00,ALPHA (IOW) LTD
Revenue,Director of Childrens Services,5105609801,16.01.2015,Special Educational Needs Transport,Taxis - Contract Hire,260.00,ALPHA (IOW) LTD
Revenue,Director of Childrens Services,5105609801,16.01.2015,Special Educational Needs Transport,Taxis - Contract Hire,100.00,ALPHA (IOW) LTD
Revenue,Director of Childrens Services,5105609801,16.01.2015,Special Educational Needs Transport,Taxis - Contract Hire,320.00,ALPHA (IOW) LTD
Revenue,Director of Childrens Services,5105609801,16.01.2015,Special Educational Needs Transport,Taxis - Contract Hire,304.80,ALPHA (IOW) LTD
Revenue,Director of Childrens Services,5105609801,16.01.2015,Special Educational Needs Transport,Taxis - Contract Hire,267.90,ALPHA (IOW) LTD
Revenue,Director of Childrens Services,5105609801,16.01.2015,Special Educational Needs Transport,Taxis - Contract Hire,457.20,ALPHA (IOW) LTD
Revenue,Director of Childrens Services,5105609801,16.01.2015,Special Educational Needs Transport,Taxis - Contract Hire,461.75,ALPHA (IOW) LTD
Revenue,Director of Childrens Services,5105609801,16.01.2015,Home to School Transport,Taxis - Contract Hire,428.25,ALPHA (IOW) LTD
Revenue,Director of Childrens Services,5105609801,16.01.2015,Home to School Transport,Taxis - Contract Hire,415.50,ALPHA (IOW) LTD
Revenue,Director of Childrens Services,5105609801,16.01.2015,Home to School Transport,Taxis - Contract Hire,254.00,ALPHA (IOW) LTD
Revenue,Director of Childrens Services,5105609801,16.01.2015,Home to School Transport,Taxis - Contract Hire,396.90,ALPHA (IOW) LTD
Revenue,Director of Childrens Services,5105609801,16.01.2015,Home to School Transport,Taxis - Contract Hire,314.95,ALPHA (IOW) LTD
Revenue,Director of Childrens Services,5105610858,23.01.2015,Home to School Transport,Taxis - Contract Hire,415.50,ALPHA (IOW) LTD
Revenue,Director of Childrens Services,5105610858,23.01.2015,Home to School Transport,Taxis - Contract Hire,396.90,ALPHA (IOW) LTD
Revenue,Director of Childrens Services,5105610858,23.01.2015,Home to School Transport,Taxis - Contract Hire,314.95,ALPHA (IOW) LTD
Revenue,Director of Childrens Services,5105610858,23.01.2015,Home to School Transport,Taxis - Contract Hire,428.25,ALPHA (IOW) LTD
Revenue,Director of Childrens Services,5105612356,30.01.2015,Home to School Transport,Taxis - Contract Hire,415.50,ALPHA (IOW) LTD
Revenue,Director of Childrens Services,5105612356,30.01.2015,Home to School Transport,Taxis - Contract Hire,254.00,ALPHA (IOW) LTD
Revenue,Director of Childrens Services,5105612356,30.01.2015,Home to School Transport,Taxis - Contract Hire,396.90,ALPHA (IOW) LTD
Revenue,Director of Childrens Services,5105612356,30.01.2015,Home to School Transport,Taxis - Contract Hire,314.95,ALPHA (IOW) LTD
Revenue,Director of Childrens Services,5105612356,30.01.2015,Home to School Transport,Taxis - Contract Hire,428.25,ALPHA (IOW) LTD
Revenue,Director of Childrens Services,5105610858,23.01.2015,Home to School Transport,Taxis - Contract Hire,254.00,ALPHA (IOW) LTD
Revenue,Head of ASC & Community Wellbeing,5105611101,28.01.2015,Learning Disability Residential Care,Charges from Independent Providers,"3,836.84",ALPHAGRANGE LTD
Revenue,Director of Childrens Services,5105607814,14.01.2015,Home to School Transport,Taxis - Contract Hire,486.00,AMAR CABS OF NEWPORT
Revenue,Director of Childrens Services,5105610057,23.01.2015,Home to School Transport,Taxis - Contract Hire,540.00,AMAR CABS OF NEWPORT
Revenue,Director of Childrens Services,5105611820,28.01.2015,Home to School Transport,Taxis - Contract Hire,405.00,AMAR CABS OF NEWPORT
Revenue,Head of ASC & Community Wellbeing,5105611103,28.01.2015,Elderly Frail Residential Care,Charges from Independent Providers,"2,093.84",ANCONA CARE HOME
Revenue,Head of ASC & Community Wellbeing,5105611103,28.01.2015,Elderly Frail Residential Care,Charges from Independent Providers,"1,700.44",ANCONA CARE HOME
Revenue,Head of ASC & Community Wellbeing,5105611103,28.01.2015,Elderly Mentally Ill Residential Care,Charges from Independent Providers,"1,781.36",ANCONA CARE HOME
Revenue,Head of ASC & Community Wellbeing,5105611103,28.01.2015,REDACTED PERSONAL DATA,Order Settlement to Bal Sht GL,"1,781.36",ANCONA CARE HOME
Revenue,Head of Economy & Tourism,5105609806,16.01.2015,Rights of Way Operations,Payment to Private Contractors,280.00,REDACTED PERSONAL DATA
Revenue,Head of Economy & Tourism,5105607784,07.01.2015,Rights of Way Operations,Payment to Private Contractors,280.00,REDACTED PERSONAL DATA
Revenue,Head of Exchequer Services,5105610834,23.01.2015,Staff Benefits,Payment to Private Contractors,225.00,REDACTED PERSONAL DATA
Revenue,Head of Economy & Tourism,5105610049,16.01.2015,Print Unit,Printing Costs,93.20,ANTALIS MCNAUGHTON
Revenue,Head of Economy & Tourism,5105610049,16.01.2015,Print Unit,Printing Costs,46.20,ANTALIS MCNAUGHTON
Revenue,Head of Economy & Tourism,5105612218,30.01.2015,Print Unit,Printing Costs,29.70,ANTALIS MCNAUGHTON
Revenue,Head of Economy & Tourism,5105612218,30.01.2015,Print Unit,Printing Costs,69.90,ANTALIS MCNAUGHTON
Capital,Head of HR & Organisational Change,5105609894,16.01.2015,Strategic Projects,ICT Hardware & Software - Capital,313.00,APPLE DISTRIBUTION INTERNATIONAL
Capital,Head of HR & Organisational Change,5105609894,16.01.2015,Strategic Projects,ICT Hardware & Software - Capital,313.00,APPLE DISTRIBUTION INTERNATIONAL
Capital,Head of HR & Organisational Change,5105608736,16.01.2015,Strategic Projects,ICT Hardware & Software - Capital,313.00,APPLE DISTRIBUTION INTERNATIONAL
Capital,Head of HR & Organisational Change,5105608736,16.01.2015,Strategic Projects,ICT Hardware & Software - Capital,313.00,APPLE DISTRIBUTION INTERNATIONAL
Capital,Head of HR & Organisational Change,5105612308,30.01.2015,Strategic Projects,ICT Hardware & Software - Capital,562.00,APPLE DISTRIBUTION INTERNATIONAL
Capital,Head of HR & Organisational Change,5105612308,30.01.2015,Strategic Projects,ICT Hardware & Software - Capital,63.00,APPLE DISTRIBUTION INTERNATIONAL
Revenue,Head of HR & Organisational Change,5105607968,14.01.2015,County Hall Central Mail Room,Clothing & Laundry,6.48,ARCO LTD
Revenue,Head of HR & Organisational Change,5105608261,14.01.2015,County Hall Central Mail Room,Clothing & Laundry,13.96,ARCO LTD
Revenue,Head of HR & Organisational Change,5105608263,21.01.2015,County Hall Central Mail Room,Clothing & Laundry,107.69,ARCO LTD
Revenue,Head of HR & Organisational Change,5105608258,12.01.2015,County Hall Central Mail Room,Clothing & Laundry,62.16,ARCO LTD
Revenue,Head of HR & Organisational Change,5105609330,14.01.2015,County Hall Central Mail Room,Clothing & Laundry,15.54,ARCO LTD
Revenue,Head of HR & Organisational Change,5105608769,14.01.2015,County Hall Central Mail Room,Clothing & Laundry,29.18,ARCO LTD
Revenue,Head of HR & Organisational Change,5105608799,12.01.2015,County Hall Central Mail Room,Clothing & Laundry,-62.16,ARCO LTD
Revenue,Head of HR & Organisational Change,5105608261,14.01.2015,Corporate Stores,Clothing & Laundry,41.89,ARCO LTD
Revenue,Head of HR & Organisational Change,5105608263,21.01.2015,Corporate Stores,Clothing & Laundry,323.06,ARCO LTD
Revenue,Head of HR & Organisational Change,5105608769,14.01.2015,Corporate Stores,Clothing & Laundry,87.55,ARCO LTD
Revenue,Head of HR & Organisational Change,5105609330,14.01.2015,Corporate Stores,Clothing & Laundry,46.62,ARCO LTD
Revenue,Head of HR & Organisational Change,5105607968,14.01.2015,Corporate Stores,Clothing & Laundry,19.46,ARCO LTD
Revenue,Head of ASC & Community Wellbeing,5105606601,09.01.2015,Community Outreach,Clothing & Laundry,1.80,ARCO LTD
Revenue,Head of ASC & Community Wellbeing,5105606601,09.01.2015,Community Outreach,Clothing & Laundry,14.99,ARCO LTD
Revenue,Head of ASC & Community Wellbeing,5105608786,14.01.2015,Community Outreach,Clothing & Laundry,6.55,ARCO LTD
Revenue,Head of ASC & Community Wellbeing,5105608786,14.01.2015,Community Outreach,Clothing & Laundry,18.00,ARCO LTD
Revenue,Head of ASC & Community Wellbeing,5105608786,14.01.2015,Community Outreach,Clothing & Laundry,39.30,ARCO LTD
Revenue,Head of ASC & Community Wellbeing,5105608786,14.01.2015,Community Outreach,Clothing & Laundry,6.55,ARCO LTD
Revenue,Head of ASC & Community Wellbeing,5105608786,14.01.2015,Community Outreach,Clothing & Laundry,13.10,ARCO LTD
Revenue,Head of ASC & Community Wellbeing,5105608786,14.01.2015,Community Outreach,Clothing & Laundry,21.96,ARCO LTD
Revenue,Head of ASC & Community Wellbeing,5105608786,14.01.2015,Community Outreach,Clothing & Laundry,12.80,ARCO LTD
Revenue,Head of ASC & Community Wellbeing,5105608786,14.01.2015,Community Outreach,Clothing & Laundry,21.96,ARCO LTD
Revenue,Head of ASC & Community Wellbeing,5105610203,23.01.2015,Community Outreach,Clothing & Laundry,21.78,ARCO LTD
Revenue,Head of ASC & Community Wellbeing,5105610203,23.01.2015,Community Outreach,Clothing & Laundry,43.56,ARCO LTD
Revenue,Head of ASC & Community Wellbeing,5105610203,23.01.2015,Community Outreach,Clothing & Laundry,14.40,ARCO LTD
Revenue,Head of ASC & Community Wellbeing,5105610203,23.01.2015,Community Outreach,Clothing & Laundry,21.78,ARCO LTD
Revenue,Head of ASC & Community Wellbeing,5105611963,28.01.2015,Community Outreach,Clothing & Laundry,6.55,ARCO LTD
Revenue,Head of ASC & Community Wellbeing,5105611963,28.01.2015,Community Outreach,Clothing & Laundry,3.60,ARCO LTD
Revenue,Head of ASC & Community Wellbeing,5105611963,28.01.2015,Community Outreach,Clothing & Laundry,6.55,ARCO LTD
Revenue,Head of ASC & Community Wellbeing,5105608030,09.01.2015,Community Outreach,Clothing & Laundry,14.99,ARCO LTD
Revenue,Head of ASC & Community Wellbeing,5105609396,14.01.2015,Community Outreach,Clothing & Laundry,34.20,ARCO LTD
Revenue,Head of ASC & Community Wellbeing,5105609396,14.01.2015,Community Outreach,Clothing & Laundry,98.01,ARCO LTD
Revenue,Head of ASC & Community Wellbeing,5105609396,14.01.2015,Community Outreach,Clothing & Laundry,43.56,ARCO LTD
Revenue,Head of ASC & Community Wellbeing,5105609396,14.01.2015,Community Outreach,Clothing & Laundry,19.20,ARCO LTD
Revenue,Head of ASC & Community Wellbeing,5105609396,14.01.2015,Community Outreach,Clothing & Laundry,19.20,ARCO LTD
Revenue,Head of ASC & Community Wellbeing,5105607975,09.01.2015,Community Outreach,Clothing & Laundry,131.40,ARCO LTD
Revenue,Head of ASC & Community Wellbeing,5105608030,09.01.2015,Community Outreach,Clothing & Laundry,1.80,ARCO LTD
Revenue,Head of ASC & Community Wellbeing,5105607975,09.01.2015,Community Outreach,Clothing & Laundry,228.69,ARCO LTD
Revenue,Head of ASC & Community Wellbeing,5105607975,09.01.2015,Community Outreach,Clothing & Laundry,185.13,ARCO LTD
Revenue,Head of ASC & Community Wellbeing,5105607975,09.01.2015,Community Outreach,Clothing & Laundry,119.79,ARCO LTD
Revenue,Head of ASC & Community Wellbeing,5105607975,09.01.2015,Community Outreach,Clothing & Laundry,87.12,ARCO LTD
Revenue,Head of ASC & Community Wellbeing,5105607975,09.01.2015,Community Outreach,Clothing & Laundry,87.12,ARCO LTD
Revenue,Head of ASC & Community Wellbeing,5105607975,09.01.2015,Community Outreach,Clothing & Laundry,87.12,ARCO LTD
Revenue,Head of Economy & Tourism,5105605715,02.01.2015,Environment officers,Clothing & Laundry,74.04,ARCO LTD
Revenue,Managing Director & Head of Paid Service,5105610555,23.01.2015,Contraception,Payment to Private Contractors,875.00,ARGYLL HOUSE SURGERY
Revenue,Managing Director & Head of Paid Service,5105610555,23.01.2015,STI Tests & Treatment,Payment to Private Contractors,5.00,ARGYLL HOUSE SURGERY
Revenue,Managing Director & Head of Paid Service,5105610555,23.01.2015,Stop Smoking Services & Interventions,Payment to Private Contractors,320.00,ARGYLL HOUSE SURGERY
Revenue,Head of ASC & Community Wellbeing,5105609427,14.01.2015,S75 Integrated Community Equipment Store,Maintenance of Operational Equipment,424.50,ARJO MED AB LTD
Revenue,Head of ASC & Community Wellbeing,5105609427,14.01.2015,S75 Integrated Community Equipment Store,Maintenance of Operational Equipment,99.00,ARJO MED AB LTD
Revenue,Head of ASC & Community Wellbeing,5105609427,14.01.2015,S75 Integrated Community Equipment Store,Maintenance of Operational Equipment,2.80,ARJO MED AB LTD
Revenue,Head of ASC & Community Wellbeing,5105609427,14.01.2015,S75 Integrated Community Equipment Store,Maintenance of Operational Equipment,424.50,ARJO MED AB LTD
Revenue,Head of ASC & Community Wellbeing,5105610540,23.01.2015,Saxonbury,Minor Works,116.60,ARJO MED AB LTD
Revenue,Head of ASC & Community Wellbeing,5105611837,28.01.2015,Westminster House,Consumable Cleaning Materials,105.00,ARJO MED AB LTD
Revenue,Head of HR & Organisational Change,5105612229,30.01.2015,"Seaclose Offices, Newport",Prop Svs only - Day to day mtce,86.63,ASSA ABLOY ENTRANCE SYSTEMS LTD
Revenue,Head of ASC & Community Wellbeing,5105612245,30.01.2015,Gouldings Resource Centre,Prop Svs only - Day to day mtce,145.00,ASSA ABLOY ENTRANCE SYSTEMS LTD
Revenue,Head of Economy & Tourism,5105612224,30.01.2015,Ventnor Library,Prop Svs only - Day to day mtce,36.53,ASSA ABLOY ENTRANCE SYSTEMS LTD
Revenue,Head of Economy & Tourism,5105612226,30.01.2015,Medina Leisure Centre,Prop Svs only - Day to day mtce,53.10,ASSA ABLOY ENTRANCE SYSTEMS LTD
Revenue,Director of Childrens Services,5105611936,28.01.2015,Clatterford Pupil Referral Unit (PRU),Training,99.00,ASSESSMENT & QUALIFICATION ALLIANCE
Revenue,Chief Fire Officer,5105611005,23.01.2015,Deputy Chief Fire Office,Conference Expenses,379.36,ATOS WORLDLINE
Revenue,Chief Fire Officer,5105611773,28.01.2015,Fire Technical Support,Vehicle Maintenance Costs,355.82,ATS EUROMASTER LTD
Revenue,Chief Fire Officer,5105611773,28.01.2015,Fire Technical Support,Vehicle Maintenance Costs,210.62,ATS EUROMASTER LTD
Revenue,Chief Fire Officer,5105611773,28.01.2015,Fire Technical Support,Vehicle Maintenance Costs,8.69,ATS EUROMASTER LTD
Revenue,Chief Fire Officer,5105611773,28.01.2015,Fire Technical Support,Vehicle Maintenance Costs,2.32,ATS EUROMASTER LTD
Revenue,Chief Fire Officer,5105611773,28.01.2015,Fire Technical Support,Vehicle Maintenance Costs,3.72,ATS EUROMASTER LTD
Revenue,Chief Fire Officer,5105611773,28.01.2015,Fire Technical Support,Vehicle Maintenance Costs,135.00,ATS EUROMASTER LTD
Revenue,Chief Fire Officer,5105611773,28.01.2015,Fire Technical Support,Vehicle Maintenance Costs,649.40,ATS EUROMASTER LTD
Revenue,Chief Fire Officer,5105611773,28.01.2015,Fire Technical Support,Vehicle Maintenance Costs,15.36,ATS EUROMASTER LTD
Revenue,Chief Fire Officer,5105611773,28.01.2015,Fire Technical Support,Vehicle Maintenance Costs,12.40,ATS EUROMASTER LTD
Revenue,Chief Fire Officer,5105611773,28.01.2015,Fire Technical Support,Vehicle Maintenance Costs,1.24,ATS EUROMASTER LTD
Revenue,Head of Economy & Tourism,5105607785,14.01.2015,Cemeteries Administration,Vehicle Maintenance Costs,5.85,ATS EUROMASTER LTD
Revenue,Director of Childrens Services,5105608770,21.01.2015,Purchased Residential,Charges from Independent Providers,"23,124.42",AUTISM WESSEX
Revenue,Director of Childrens Services,5105608323,14.01.2015,Purchased Residential,Charges from Independent Providers,"31,774.75",AUTISM WESSEX
Revenue,Director of Childrens Services,5105608323,14.01.2015,NHS Funded Placements,Charges from Independent Providers,"3,531.12",AUTISM WESSEX
Revenue,Director of Childrens Services,5105608770,21.01.2015,NHS Funded Placements,Charges from Independent Providers,"2,566.47",AUTISM WESSEX
Revenue,Director of Childrens Services,5105608323,14.01.2015,Independ. & Non-Maint. Special Schls & Independ. Specialist Provision,Charges from Independent Providers,"17,873.63",AUTISM WESSEX
Revenue,Director of Childrens Services,5105608770,21.01.2015,Independ. & Non-Maint. Special Schls & Independ. Specialist Provision,Charges from Independent Providers,"11,721.21",AUTISM WESSEX
Revenue,Director of Childrens Services,5105607912,07.01.2015,Thompson House Tuition Centre (PRU),Minor Works,21.25,AUTOCLOCK SYSTEMS LTD
Revenue,Director of Childrens Services,5105607912,07.01.2015,Thompson House Tuition Centre (PRU),Minor Works,147.50,AUTOCLOCK SYSTEMS LTD
Revenue,Director of Childrens Services,5105607912,07.01.2015,Thompson House Tuition Centre (PRU),Minor Works,128.63,AUTOCLOCK SYSTEMS LTD
Revenue,Director of Childrens Services,5105607912,07.01.2015,Clatterford Pupil Referral Unit (PRU),Minor Works,128.63,AUTOCLOCK SYSTEMS LTD
Revenue,Director of Childrens Services,5105607912,07.01.2015,Clatterford Pupil Referral Unit (PRU),Minor Works,147.50,AUTOCLOCK SYSTEMS LTD
Revenue,Director of Childrens Services,5105607912,07.01.2015,Clatterford Pupil Referral Unit (PRU),Minor Works,21.25,AUTOCLOCK SYSTEMS LTD
Revenue,Head of Exchequer Services,5105607948,21.01.2015,Housing Benefit,Stationery,"1,309.00",AUTOMAIL ENVELOPES LTD
Revenue,Head of ASC & Community Wellbeing,5105611074,28.01.2015,Elderly Frail Residential Care,Charges from Independent Providers,"2,093.84",AUTUMN HOUSE CARE LTD
Revenue,Head of ASC & Community Wellbeing,5105611074,28.01.2015,Elderly Frail Residential Care,Charges from Independent Providers,"2,093.84",AUTUMN HOUSE CARE LTD
Revenue,Head of ASC & Community Wellbeing,5105610955,23.01.2015,Elderly Mentally Ill Residential Care,Charges from Independent Providers,"1,495.60",AUTUMN HOUSE CARE LTD
Revenue,Head of ASC & Community Wellbeing,5105611074,28.01.2015,Elderly Mentally Ill Residential Care,Charges from Independent Providers,673.02,AUTUMN HOUSE CARE LTD
Revenue,Head of ASC & Community Wellbeing,5105611074,28.01.2015,Elderly Mentally Ill Residential Care,Charges from Independent Providers,"2,093.84",AUTUMN HOUSE CARE LTD
Revenue,Head of ASC & Community Wellbeing,5105611074,28.01.2015,Elderly Mentally Ill Residential Care,Charges from Independent Providers,"2,093.84",AUTUMN HOUSE CARE LTD
Revenue,Head of ASC & Community Wellbeing,5105611074,28.01.2015,Elderly Mentally Ill Residential Care,Charges from Independent Providers,"1,781.36",AUTUMN HOUSE CARE LTD
Revenue,Head of ASC & Community Wellbeing,5105611074,28.01.2015,Elderly Mentally Ill Residential Care,Charges from Independent Providers,"2,093.84",AUTUMN HOUSE CARE LTD
Revenue,Head of ASC & Community Wellbeing,5105611074,28.01.2015,Elderly Mentally Ill Residential Care,Charges from Independent Providers,"2,093.84",AUTUMN HOUSE CARE LTD
Revenue,Head of ASC & Community Wellbeing,5105611074,28.01.2015,Elderly Mentally Ill Residential Care,Charges from Independent Providers,"2,093.84",AUTUMN HOUSE CARE LTD
Revenue,Head of ASC & Community Wellbeing,5105611074,28.01.2015,Elderly Mentally Ill Residential Care,Charges from Independent Providers,"2,093.84",AUTUMN HOUSE CARE LTD
Revenue,Head of ASC & Community Wellbeing,5105611074,28.01.2015,Elderly Mentally Ill Residential Care,Charges from Independent Providers,"2,093.84",AUTUMN HOUSE CARE LTD
Revenue,Head of ASC & Community Wellbeing,5105611074,28.01.2015,Elderly Mentally Ill Residential Care,Charges from Independent Providers,"2,093.84",AUTUMN HOUSE CARE LTD
Revenue,Head of ASC & Community Wellbeing,5105611074,28.01.2015,Elderly Mentally Ill Residential Care,Charges from Independent Providers,"2,093.84",AUTUMN HOUSE CARE LTD
Revenue,Head of ASC & Community Wellbeing,5105611074,28.01.2015,Elderly Mentally Ill Residential Care,Charges from Independent Providers,"2,093.84",AUTUMN HOUSE CARE LTD
Revenue,Head of ASC & Community Wellbeing,5105611074,28.01.2015,Elderly Mentally Ill Residential Care,Charges from Independent Providers,"2,093.84",AUTUMN HOUSE CARE LTD
Revenue,Head of ASC & Community Wellbeing,5105611074,28.01.2015,Elderly Mentally Ill Residential Care,Charges from Independent Providers,"1,781.36",AUTUMN HOUSE CARE LTD
Revenue,Head of ASC & Community Wellbeing,5105611074,28.01.2015,Elderly Mentally Ill Residential Care,Charges from Independent Providers,"2,093.84",AUTUMN HOUSE CARE LTD
Revenue,Head of ASC & Community Wellbeing,5105611074,28.01.2015,Elderly Mentally Ill Residential Care,Charges from Independent Providers,"1,781.36",AUTUMN HOUSE CARE LTD
Revenue,Head of ASC & Community Wellbeing,5105611074,28.01.2015,Elderly Mentally Ill Residential Care,Charges from Independent Providers,"2,093.84",AUTUMN HOUSE CARE LTD
Revenue,Head of ASC & Community Wellbeing,5105611074,28.01.2015,Elderly Mentally Ill Residential Care,Charges from Independent Providers,"2,093.84",AUTUMN HOUSE CARE LTD
Revenue,Head of ASC & Community Wellbeing,5105611074,28.01.2015,Elderly Mentally Ill Residential Care,Charges from Independent Providers,"2,093.84",AUTUMN HOUSE CARE LTD
Revenue,Head of ASC & Community Wellbeing,5105611074,28.01.2015,Mental Health Residential Care,Charges from Independent Providers,"1,700.44",AUTUMN HOUSE CARE LTD
Revenue,Head of ASC & Community Wellbeing,5105611074,28.01.2015,Physical Disability Residential Care,Charges from Independent Providers,"2,093.84",AUTUMN HOUSE CARE LTD
Revenue,Head of ASC & Community Wellbeing,5105611074,28.01.2015,REDACTED PERSONAL DATA,Order Settlement to Bal Sht GL,"1,781.36",AUTUMN HOUSE CARE LTD
Revenue,Head of ASC & Community Wellbeing,5105611074,28.01.2015,REDACTED PERSONAL DATA,Order Settlement to Bal Sht GL,"2,093.84",AUTUMN HOUSE CARE LTD
Revenue,Head of HR & Organisational Change,5105612335,30.01.2015,Payroll,Consultants Fees,138.00,AVALON VALE UK LTD
Revenue,Head of Economy & Tourism,5105609393,14.01.2015,Duke of Edingburgh Award,Stationery,153.80,AWARD SCHEME LTD
Revenue,Head of Economy & Tourism,5105609393,14.01.2015,Duke of Edingburgh Award,Stationery,6.25,AWARD SCHEME LTD
Revenue,Director of Childrens Services,5105607420,02.01.2015,Leaving Care Costs,Accommodation Costs - Service Users,50.00,REDACTED PERSONAL DATA
Revenue,Director of Childrens Services,5105608081,09.01.2015,Leaving Care Costs,Accommodation Costs - Service Users,50.00,REDACTED PERSONAL DATA
Revenue,Director of Childrens Services,5105609606,16.01.2015,Leaving Care Costs,Accommodation Costs - Service Users,50.00,REDACTED PERSONAL DATA
Revenue,Director of Childrens Services,5105610671,23.01.2015,Leaving Care Costs,Accommodation Costs - Service Users,50.00,REDACTED PERSONAL DATA
Revenue,Director of Childrens Services,5105612049,30.01.2015,Leaving Care Costs,Accommodation Costs - Service Users,50.00,REDACTED PERSONAL DATA
Revenue,Head of ASC & Community Wellbeing,5105611088,28.01.2015,Learning Disability Residential Care,Charges from Independent Providers,"2,745.40",REDACTED PERSONAL DATA
Revenue,Head of ASC & Community Wellbeing,5105611088,28.01.2015,Learning Disability Residential Care,Charges from Independent Providers,"1,894.76",REDACTED PERSONAL DATA
Revenue,Head of ASC & Community Wellbeing,5105611088,28.01.2015,Learning Disability Residential Care,Charges from Independent Providers,"1,894.76",REDACTED PERSONAL DATA
Revenue,Head of ASC & Community Wellbeing,5105610595,23.01.2015,Leaseholds by LA,Accommodation Costs - Leaseholder Payments,815.49,REDACTED PERSONAL DATA
Revenue,Head of Exchequer Services,5105610734,23.01.2015,Staff Benefits,Payment to Private Contractors,100.00,REDACTED PERSONAL DATA
Revenue,Head of Exchequer Services,5105610734,23.01.2015,Staff Benefits,Payment to Private Contractors,50.00,REDACTED PERSONAL DATA
Revenue,Head of Exchequer Services,5105610734,23.01.2015,Staff Benefits,Payment to Private Contractors,243.00,REDACTED PERSONAL DATA
Revenue,Head of ASC & Community Wellbeing,5105610602,23.01.2015,Leaseholds by LA,Accommodation Costs - Leaseholder Payments,799.50,REDACTED PERSONAL DATA
Revenue,Head of ASC & Community Wellbeing,5105610602,23.01.2015,Leaseholds by LA,Accommodation Costs - Leaseholder Payments,888.33,REDACTED PERSONAL DATA
Revenue,Head of ASC & Community Wellbeing,5105610602,23.01.2015,Leaseholds by LA,Accommodation Costs - Leaseholder Payments,866.67,REDACTED PERSONAL DATA
Revenue,Head of ASC & Community Wellbeing,5105610602,23.01.2015,Leaseholds by LA,Accommodation Costs - Leaseholder Payments,866.67,REDACTED PERSONAL DATA
Revenue,Head of ASC & Community Wellbeing,5105610602,23.01.2015,Leaseholds by LA,Accommodation Costs - Leaseholder Payments,799.50,REDACTED PERSONAL DATA
Revenue,Head of Planning & Regulatory Services,5105612328,30.01.2015,Coast Protection,Payment to Private Contractors,"4,226.00",B W MOORING SERVICES LTD
Revenue,Head of Planning & Regulatory Services,5105612330,30.01.2015,Coast Protection,Payment to Private Contractors,536.25,B W MOORING SERVICES LTD
Capital,Head of ASC & Community Wellbeing,5105609862,21.01.2015,Adelaide & Gouldings Fixtures & Fittings,"Plant, Equipment & Furniture - Capital",458.00,B.E.S REHAB LTD
Revenue,Director of Childrens Services,5105609464,14.01.2015,In-house Fostering,Professional Services,554.88,BAAF REGISTERED CHARITY
Revenue,Director of Childrens Services,5105607806,07.01.2015,Targeted Youth Support,Training,630.00,BABCOCK 4S LTD
Revenue,Director of Childrens Services,5105607697,07.01.2015,Workforce Development Schools,Training,"1,260.00",BABCOCK LDP LLP
Revenue,Director of Childrens Services,5105606576,07.01.2015,Purchased Residential,Charges from Independent Providers,"12,835.71",BACK ON TRACK
Revenue,Director of Childrens Services,5105610522,23.01.2015,Purchased Residential,Charges from Independent Providers,"13,263.57",BACK ON TRACK
Revenue,Director of Childrens Services,5105611768,28.01.2015,In-house Fostering,Charges from Independent Providers,87.00,BACK ON TRACK
Revenue,Director of Childrens Services,5105610529,23.01.2015,In-house Fostering,Charges from Independent Providers,174.00,BACK ON TRACK
Revenue,Head of HR & Organisational Change,5105609403,14.01.2015,"Bugle House,Newport",Rent of Buildings and Rooms,"7,910.35",BAE SYSTEMS
Revenue,Chief Fire Officer,5105608778,14.01.2015,Fire Technical Support,Payment to Private Contractors,644.70,BALLYCLARE LTD
Revenue,Chief Fire Officer,5105609428,14.01.2015,Fire Technical Support,Payment to Private Contractors,"6,683.45",BALLYCLARE LTD
Revenue,Head of HR & Organisational Change,5105612195,30.01.2015,Corporate Stores,Vehicle Hire External,730.71,BARTLETTS SERVICE STATION
Revenue,Chief Fire Officer,5105611933,28.01.2015,Diversity & Workforce,Operational Equipment,150.00,BARTLETTS SERVICE STATION
Revenue,Head of Exchequer Services,5105610714,23.01.2015,Staff Benefits,Payment to Private Contractors,12.00,BARTON PRIMARY & EARLY YEARS
Revenue,Head of Exchequer Services,5105610714,23.01.2015,Staff Benefits,Payment to Private Contractors,50.00,BARTON PRIMARY & EARLY YEARS
Revenue,Head of Exchequer Services,5105610714,23.01.2015,Staff Benefits,Payment to Private Contractors,11.67,BARTON PRIMARY & EARLY YEARS
Revenue,Head of Economy & Tourism,5105609392,14.01.2015,IOW Festival of Walking,Advertising & Publicity,540.00,BAUER CONSUMER MEDIA LTD
Revenue,Director of Childrens Services,5105610061,16.01.2015,Independ. & Non-Maint. Special Schls & Independ. Specialist Provision,Transport of Clients,420.00,BEACON TAXIS
Revenue,Head of ASC & Community Wellbeing,5105611303,28.01.2015,Elderly Mentally Ill Nursing Mainland,Charges from Independent Providers,"2,269.40",BEAUMONT LODGE LTD
Revenue,Managing Director & Head of Paid Service,5105610570,23.01.2015,Contraception,Payment to Private Contractors,515.00,BEECH GROVE SURGERY
Revenue,Managing Director & Head of Paid Service,5105610570,23.01.2015,STI Tests & Treatment,Payment to Private Contractors,5.00,BEECH GROVE SURGERY
Revenue,Managing Director & Head of Paid Service,5105610570,23.01.2015,Stop Smoking Services & Interventions,Payment to Private Contractors,880.00,BEECH GROVE SURGERY
Revenue,Head of Economy & Tourism,5105608259,14.01.2015,The Heights,Payment to Private Contractors,257.50,BEL SOLUTIONS LTD
Revenue,Head of Economy & Tourism,5105608259,14.01.2015,Medina Leisure Centre,Payment to Private Contractors,292.50,BEL SOLUTIONS LTD
Revenue,Head of Economy & Tourism,5105608259,14.01.2015,Westridge Squash Courts,Payment to Private Contractors,198.87,BEL SOLUTIONS LTD
Revenue,Head of ASC & Community Wellbeing,5105609871,16.01.2015,Community Laundry Service,Clothing & Laundry,13.74,BERENDSEN
Revenue,Head of ASC & Community Wellbeing,5105609868,16.01.2015,Community Laundry Service,Clothing & Laundry,13.74,BERENDSEN
Revenue,Head of ASC & Community Wellbeing,5105609543,16.01.2015,Community Laundry Service,Clothing & Laundry,13.74,BERENDSEN
Revenue,Head of ASC & Community Wellbeing,5105610174,21.01.2015,Leaseholds by LA,Accommodation Costs - Bed & Breakfast,"2,783.00",BERTRAM LODGE
Revenue,Head of ASC & Community Wellbeing,5105608783,16.01.2015,Downside Community & Learning Centre,Consumable Cleaning Materials,15.27,BETA PAK LTD
Revenue,Head of ASC & Community Wellbeing,5105608772,14.01.2015,Downside Community & Learning Centre,Consumable Cleaning Materials,5.09,BETA PAK LTD
Revenue,Head of ASC & Community Wellbeing,5105609877,16.01.2015,Downside Community & Learning Centre,Consumable Cleaning Materials,28.92,BETA PAK LTD
Revenue,Head of ASC & Community Wellbeing,5105608789,14.01.2015,Downside Community & Learning Centre,Consumable Cleaning Materials,9.10,BETA PAK LTD
Revenue,Head of ASC & Community Wellbeing,5105608787,14.01.2015,Downside Community & Learning Centre,Consumable Cleaning Materials,11.21,BETA PAK LTD
Revenue,Head of ASC & Community Wellbeing,5105608787,14.01.2015,Downside Community & Learning Centre,Consumable Cleaning Materials,8.16,BETA PAK LTD
Revenue,Head of ASC & Community Wellbeing,5105608787,14.01.2015,Downside Community & Learning Centre,Consumable Cleaning Materials,4.34,BETA PAK LTD
Revenue,Head of ASC & Community Wellbeing,5105608787,14.01.2015,Downside Community & Learning Centre,Consumable Cleaning Materials,3.14,BETA PAK LTD
Revenue,Head of ASC & Community Wellbeing,5105608787,14.01.2015,Downside Community & Learning Centre,Consumable Cleaning Materials,7.59,BETA PAK LTD
Revenue,Head of ASC & Community Wellbeing,5105608787,14.01.2015,Downside Community & Learning Centre,Consumable Cleaning Materials,7.59,BETA PAK LTD
Revenue,Head of ASC & Community Wellbeing,5105608751,30.01.2015,31 Carter Avenue,Operational Equipment,119.31,BETA PAK LTD
Revenue,Head of ASC & Community Wellbeing,5105606613,23.01.2015,31 Carter Avenue,Operational Equipment,5.46,BETA PAK LTD
Revenue,Head of ASC & Community Wellbeing,5105611804,30.01.2015,31 Carter Avenue,Operational Equipment,71.47,BETA PAK LTD
Revenue,Head of ASC & Community Wellbeing,5105611046,28.01.2015,31 Carter Avenue,Operational Equipment,8.75,BETA PAK LTD
Revenue,Head of ASC & Community Wellbeing,5105610452,30.01.2015,31 Carter Avenue,Operational Equipment,49.00,BETA PAK LTD
Revenue,Head of ASC & Community Wellbeing,5105606609,16.01.2015,Overbrook,Operational Equipment,12.85,BETA PAK LTD
Revenue,Head of ASC & Community Wellbeing,5105606287,14.01.2015,Overbrook,Operational Equipment,62.73,BETA PAK LTD
Revenue,Head of ASC & Community Wellbeing,5105607889,28.01.2015,Overbrook,Operational Equipment,43.80,BETA PAK LTD
Revenue,Head of ASC & Community Wellbeing,5105607934,14.01.2015,Overbrook,Operational Equipment,52.66,BETA PAK LTD
Revenue,Head of ASC & Community Wellbeing,5105607923,14.01.2015,Overbrook,Operational Equipment,15.37,BETA PAK LTD
Revenue,Head of ASC & Community Wellbeing,5105607927,14.01.2015,Overbrook,Operational Equipment,43.80,BETA PAK LTD
Revenue,Head of ASC & Community Wellbeing,5105609336,14.01.2015,Overbrook,Operational Equipment,-43.80,BETA PAK LTD
Revenue,Head of ASC & Community Wellbeing,5105609873,21.01.2015,Seagulls,Operational Equipment,70.59,BETA PAK LTD
Revenue,Head of ASC & Community Wellbeing,5105609815,21.01.2015,Seagulls,Operational Equipment,1.75,BETA PAK LTD
Revenue,Head of ASC & Community Wellbeing,5105609494,21.01.2015,Seagulls,Operational Equipment,42.81,BETA PAK LTD
Revenue,Head of ASC & Community Wellbeing,5105607741,14.01.2015,Seagulls,Operational Equipment,23.00,BETA PAK LTD
Revenue,Head of ASC & Community Wellbeing,5105606580,09.01.2015,Seagulls,Operational Equipment,91.93,BETA PAK LTD
Revenue,Head of ASC & Community Wellbeing,5105606321,14.01.2015,Seagulls,Operational Equipment,4.98,BETA PAK LTD
Revenue,Head of ASC & Community Wellbeing,5105610981,28.01.2015,Seagulls,Operational Equipment,10.98,BETA PAK LTD
Revenue,Head of ASC & Community Wellbeing,5105606219,07.01.2015,Plean Dene,Operational Equipment,56.94,BETA PAK LTD
Revenue,Head of ASC & Community Wellbeing,5105606586,14.01.2015,Plean Dene,Operational Equipment,20.98,BETA PAK LTD
Revenue,Head of ASC & Community Wellbeing,5105607740,07.01.2015,Plean Dene,Operational Equipment,19.40,BETA PAK LTD
Revenue,Head of ASC & Community Wellbeing,5105607753,07.01.2015,Plean Dene,Operational Equipment,53.85,BETA PAK LTD
Revenue,Head of ASC & Community Wellbeing,5105607740,07.01.2015,Plean Dene,Operational Equipment,45.96,BETA PAK LTD
Revenue,Head of ASC & Community Wellbeing,5105609409,14.01.2015,Plean Dene,Operational Equipment,20.98,BETA PAK LTD
Revenue,Head of ASC & Community Wellbeing,5105609410,14.01.2015,Plean Dene,Operational Equipment,-20.98,BETA PAK LTD
Revenue,Head of ASC & Community Wellbeing,5105608253,21.01.2015,Plean Dene,Operational Equipment,65.82,BETA PAK LTD
Revenue,Head of ASC & Community Wellbeing,5105608253,21.01.2015,Plean Dene,Operational Equipment,45.96,BETA PAK LTD
Revenue,Head of ASC & Community Wellbeing,5105609876,21.01.2015,Plean Dene,Operational Equipment,48.60,BETA PAK LTD
Revenue,Head of ASC & Community Wellbeing,5105609779,21.01.2015,Plean Dene,Operational Equipment,56.94,BETA PAK LTD
Revenue,Head of ASC & Community Wellbeing,5105610985,23.01.2015,Plean Dene,Operational Equipment,102.69,BETA PAK LTD
Revenue,Head of ASC & Community Wellbeing,5105611797,30.01.2015,Plean Dene,Operational Equipment,19.33,BETA PAK LTD
Revenue,Head of ASC & Community Wellbeing,5105610361,23.01.2015,Plean Dene,Operational Equipment,2.56,BETA PAK LTD
Revenue,Head of ASC & Community Wellbeing,5105609369,14.01.2015,Saxonbury,Operational Equipment,-2.04,BETA PAK LTD
Revenue,Head of ASC & Community Wellbeing,5105608781,14.01.2015,Saxonbury,Operational Equipment,1.47,BETA PAK LTD
Revenue,Head of ASC & Community Wellbeing,5105607714,14.01.2015,Saxonbury,Operational Equipment,92.22,BETA PAK LTD
Revenue,Head of ASC & Community Wellbeing,5105607815,21.01.2015,Saxonbury,Operational Equipment,23.14,BETA PAK LTD
Revenue,Head of ASC & Community Wellbeing,5105606437,07.01.2015,Saxonbury,Operational Equipment,8.52,BETA PAK LTD
Revenue,Head of ASC & Community Wellbeing,5105606578,09.01.2015,Saxonbury,Operational Equipment,13.76,BETA PAK LTD
Revenue,Head of ASC & Community Wellbeing,5105606281,09.01.2015,Saxonbury,Operational Equipment,10.10,BETA PAK LTD
Revenue,Head of ASC & Community Wellbeing,5105606175,14.01.2015,Saxonbury,Operational Equipment,10.80,BETA PAK LTD
Revenue,Head of ASC & Community Wellbeing,5105610430,23.01.2015,Saxonbury,Operational Equipment,17.40,BETA PAK LTD
Revenue,Head of ASC & Community Wellbeing,5105610372,23.01.2015,Saxonbury,Operational Equipment,283.00,BETA PAK LTD
Revenue,Head of ASC & Community Wellbeing,5105606235,07.01.2015,Highmead,Operational Equipment,18.66,BETA PAK LTD
Revenue,Head of ASC & Community Wellbeing,5105607683,07.01.2015,Highmead,Operational Equipment,208.73,BETA PAK LTD
Revenue,Head of ASC & Community Wellbeing,5105607684,07.01.2015,Highmead,Operational Equipment,-6.11,BETA PAK LTD
Revenue,Head of ASC & Community Wellbeing,5105607738,07.01.2015,Highmead,Operational Equipment,33.00,BETA PAK LTD
Revenue,Head of ASC & Community Wellbeing,5105607887,09.01.2015,Highmead,Operational Equipment,197.52,BETA PAK LTD
Revenue,Head of ASC & Community Wellbeing,5105608269,09.01.2015,Highmead,Operational Equipment,22.00,BETA PAK LTD
Revenue,Head of ASC & Community Wellbeing,5105609378,14.01.2015,Highmead,Operational Equipment,22.00,BETA PAK LTD
Revenue,Head of ASC & Community Wellbeing,5105609379,21.01.2015,Highmead,Operational Equipment,-22.00,BETA PAK LTD
Revenue,Head of ASC & Community Wellbeing,5105609879,21.01.2015,Highmead,Operational Equipment,22.94,BETA PAK LTD
Revenue,Head of ASC & Community Wellbeing,5105611778,30.01.2015,Highmead,Operational Equipment,467.68,BETA PAK LTD
Revenue,Head of ASC & Community Wellbeing,5105611796,30.01.2015,Highmead,Operational Equipment,57.98,BETA PAK LTD
Revenue,Head of ASC & Community Wellbeing,5105611827,30.01.2015,Highmead,Operational Equipment,40.42,BETA PAK LTD
Revenue,Head of ASC & Community Wellbeing,5105611049,30.01.2015,Highmead,Operational Equipment,17.49,BETA PAK LTD
Revenue,Head of ASC & Community Wellbeing,5105611974,30.01.2015,Highmead,Operational Equipment,20.89,BETA PAK LTD
Revenue,Head of ASC & Community Wellbeing,5105608014,09.01.2015,The Laurels,Operational Equipment,17.06,BETA PAK LTD
Revenue,Head of ASC & Community Wellbeing,5105608017,09.01.2015,The Laurels,Operational Equipment,-17.06,BETA PAK LTD
Revenue,Head of ASC & Community Wellbeing,5105608018,09.01.2015,The Laurels,Operational Equipment,302.82,BETA PAK LTD
Revenue,Head of ASC & Community Wellbeing,5105608025,09.01.2015,The Laurels,Operational Equipment,-21.98,BETA PAK LTD
Revenue,Head of ASC & Community Wellbeing,5105608021,09.01.2015,The Laurels,Operational Equipment,-302.82,BETA PAK LTD
Revenue,Head of ASC & Community Wellbeing,5105604796,07.01.2015,The Laurels,Operational Equipment,9.28,BETA PAK LTD
Revenue,Head of ASC & Community Wellbeing,5105604366,07.01.2015,The Laurels,Operational Equipment,46.40,BETA PAK LTD
Revenue,Head of ASC & Community Wellbeing,5105611025,30.01.2015,The Laurels,Operational Equipment,11.47,BETA PAK LTD
Revenue,Head of ASC & Community Wellbeing,5105610425,21.01.2015,The Laurels,Operational Equipment,6.68,BETA PAK LTD
Revenue,Head of ASC & Community Wellbeing,5105611965,28.01.2015,Community Outreach,Consumable Cleaning Materials,370.67,BETA PAK LTD
Revenue,Head of ASC & Community Wellbeing,5105612005,30.01.2015,Community Outreach,Consumable Cleaning Materials,75.39,BETA PAK LTD
Revenue,Head of ASC & Community Wellbeing,5105611844,28.01.2015,Adelaide Resource Centre,Consumable Cleaning Materials,209.75,BETA PAK LTD
Revenue,Head of ASC & Community Wellbeing,5105611044,28.01.2015,Adelaide Resource Centre,Consumable Cleaning Materials,174.94,BETA PAK LTD
Revenue,Head of ASC & Community Wellbeing,5105611791,28.01.2015,Adelaide Resource Centre,Consumable Cleaning Materials,19.97,BETA PAK LTD
Revenue,Head of ASC & Community Wellbeing,5105607716,07.01.2015,Gouldings Resource Centre,Consumable Cleaning Materials,11.32,BETA PAK LTD
Revenue,Head of ASC & Community Wellbeing,5105609350,14.01.2015,Gouldings Resource Centre,Consumable Cleaning Materials,55.16,BETA PAK LTD
Revenue,Head of ASC & Community Wellbeing,5105609823,16.01.2015,Westminster House,Consumable Cleaning Materials,63.44,BETA PAK LTD
Revenue,Head of ASC & Community Wellbeing,5105612188,30.01.2015,Westminster House,Consumable Cleaning Materials,166.48,BETA PAK LTD
Revenue,Head of ASC & Community Wellbeing,5105612189,30.01.2015,Westminster House,Clothing & Laundry,86.04,BETA PAK LTD
Revenue,Head of ASC & Community Wellbeing,5105608311,09.01.2015,Mental Health Day Services,Professional Services,89.76,BETA PAK LTD
Revenue,Head of ASC & Community Wellbeing,5105608312,09.01.2015,Mental Health Day Services,Professional Services,-89.76,BETA PAK LTD
Revenue,Head of ASC & Community Wellbeing,5105608314,09.01.2015,Mental Health Day Services,Professional Services,89.76,BETA PAK LTD
Revenue,Head of Economy & Tourism,5105609803,16.01.2015,Dinosaur Isle Museum (Sandown Geology),Operational Equipment,138.16,BETA PAK LTD
Revenue,Head of Economy & Tourism,5105609892,16.01.2015,Dinosaur Isle Museum (Sandown Geology),Operational Equipment,19.84,BETA PAK LTD
Revenue,Head of Economy & Tourism,5105609776,16.01.2015,Dinosaur Isle Museum (Sandown Geology),Operational Equipment,32.56,BETA PAK LTD
Revenue,Head of ASC & Community Wellbeing,5105609275,14.01.2015,Elderly Frail Homecare,Charges from Independent Providers,359.08,BETTER AT HOME IOW LTD
Revenue,Head of ASC & Community Wellbeing,5105609457,14.01.2015,Elderly Frail Homecare,Charges from Independent Providers,106.96,BETTER AT HOME IOW LTD
Revenue,Head of ASC & Community Wellbeing,5105609268,14.01.2015,Elderly Frail Homecare,Charges from Independent Providers,977.92,BETTER AT HOME IOW LTD
Revenue,Head of ASC & Community Wellbeing,5105609217,14.01.2015,Elderly Frail Homecare,Charges from Independent Providers,886.24,BETTER AT HOME IOW LTD
Revenue,Head of ASC & Community Wellbeing,5105609218,14.01.2015,Elderly Frail Homecare,Charges from Independent Providers,553.90,BETTER AT HOME IOW LTD
Revenue,Head of ASC & Community Wellbeing,5105609219,14.01.2015,Elderly Frail Homecare,Charges from Independent Providers,"1,004.66",BETTER AT HOME IOW LTD
Revenue,Head of ASC & Community Wellbeing,5105609216,14.01.2015,Elderly Frail Homecare,Charges from Independent Providers,"1,398.12",BETTER AT HOME IOW LTD
Revenue,Head of ASC & Community Wellbeing,5105609230,14.01.2015,Elderly Frail Homecare,Charges from Independent Providers,477.50,BETTER AT HOME IOW LTD
Revenue,Head of ASC & Community Wellbeing,5105609226,14.01.2015,Elderly Frail Homecare,Charges from Independent Providers,404.92,BETTER AT HOME IOW LTD
Revenue,Head of ASC & Community Wellbeing,5105609231,14.01.2015,Elderly Frail Homecare,Charges from Independent Providers,886.24,BETTER AT HOME IOW LTD
Revenue,Head of ASC & Community Wellbeing,5105609220,14.01.2015,Elderly Frail Homecare,Charges from Independent Providers,"1,413.40",BETTER AT HOME IOW LTD
Revenue,Head of ASC & Community Wellbeing,5105609215,14.01.2015,Elderly Frail Homecare,Charges from Independent Providers,"1,268.24",BETTER AT HOME IOW LTD
Revenue,Head of ASC & Community Wellbeing,5105609227,14.01.2015,Elderly Frail Homecare,Charges from Independent Providers,114.60,BETTER AT HOME IOW LTD
Revenue,Head of ASC & Community Wellbeing,5105609456,14.01.2015,Elderly Frail Homecare,Charges from Independent Providers,53.48,BETTER AT HOME IOW LTD
Revenue,Head of ASC & Community Wellbeing,5105609224,14.01.2015,Elderly Frail Homecare,Charges from Independent Providers,626.48,BETTER AT HOME IOW LTD
Revenue,Head of ASC & Community Wellbeing,5105609260,14.01.2015,Elderly Frail Homecare,Charges from Independent Providers,297.96,BETTER AT HOME IOW LTD
Revenue,Head of ASC & Community Wellbeing,5105609262,14.01.2015,Elderly Frail Homecare,Charges from Independent Providers,332.34,BETTER AT HOME IOW LTD
Revenue,Head of ASC & Community Wellbeing,5105609262,14.01.2015,Elderly Frail Homecare,Charges from Independent Providers,45.84,BETTER AT HOME IOW LTD
Revenue,Head of ASC & Community Wellbeing,5105609259,14.01.2015,Elderly Frail Homecare,Charges from Independent Providers,359.08,BETTER AT HOME IOW LTD
Revenue,Head of ASC & Community Wellbeing,5105609273,14.01.2015,Elderly Frail Homecare,Charges from Independent Providers,110.78,BETTER AT HOME IOW LTD
Revenue,Head of ASC & Community Wellbeing,5105609274,14.01.2015,Elderly Frail Homecare,Charges from Independent Providers,603.56,BETTER AT HOME IOW LTD
Revenue,Head of ASC & Community Wellbeing,5105609458,14.01.2015,Elderly Frail Homecare,Charges from Independent Providers,244.48,BETTER AT HOME IOW LTD
Revenue,Head of ASC & Community Wellbeing,5105609225,14.01.2015,Elderly Frail Homecare,Charges from Independent Providers,985.56,BETTER AT HOME IOW LTD
Revenue,Head of ASC & Community Wellbeing,5105609238,14.01.2015,Elderly Frail Homecare,Charges from Independent Providers,217.74,BETTER AT HOME IOW LTD
Revenue,Head of ASC & Community Wellbeing,5105609234,14.01.2015,Elderly Frail Homecare,Charges from Independent Providers,45.84,BETTER AT HOME IOW LTD
Revenue,Head of ASC & Community Wellbeing,5105609236,14.01.2015,Elderly Frail Homecare,Charges from Independent Providers,126.06,BETTER AT HOME IOW LTD
Revenue,Head of ASC & Community Wellbeing,5105609237,14.01.2015,Elderly Frail Homecare,Charges from Independent Providers,641.76,BETTER AT HOME IOW LTD
Revenue,Head of ASC & Community Wellbeing,5105609232,14.01.2015,Elderly Frail Homecare,Charges from Independent Providers,580.64,BETTER AT HOME IOW LTD
Revenue,Head of ASC & Community Wellbeing,5105609233,14.01.2015,Elderly Frail Homecare,Charges from Independent Providers,213.92,BETTER AT HOME IOW LTD
Revenue,Head of ASC & Community Wellbeing,5105609222,14.01.2015,Elderly Frail Homecare,Charges from Independent Providers,427.84,BETTER AT HOME IOW LTD
Revenue,Head of ASC & Community Wellbeing,5105609223,14.01.2015,Elderly Frail Homecare,Charges from Independent Providers,679.96,BETTER AT HOME IOW LTD
Revenue,Head of ASC & Community Wellbeing,5105609229,14.01.2015,Elderly Frail Homecare,Charges from Independent Providers,626.48,BETTER AT HOME IOW LTD
Revenue,Head of ASC & Community Wellbeing,5105609246,14.01.2015,Elderly Frail Homecare,Charges from Independent Providers,183.36,BETTER AT HOME IOW LTD
Revenue,Head of ASC & Community Wellbeing,5105609247,14.01.2015,Elderly Frail Homecare,Charges from Independent Providers,404.92,BETTER AT HOME IOW LTD
Revenue,Head of ASC & Community Wellbeing,5105609248,14.01.2015,Elderly Frail Homecare,Charges from Independent Providers,213.92,BETTER AT HOME IOW LTD
Revenue,Head of ASC & Community Wellbeing,5105609235,14.01.2015,Elderly Frail Homecare,Charges from Independent Providers,488.96,BETTER AT HOME IOW LTD
Revenue,Head of ASC & Community Wellbeing,5105609245,14.01.2015,Elderly Frail Homecare,Charges from Independent Providers,34.38,BETTER AT HOME IOW LTD
Revenue,Head of ASC & Community Wellbeing,5105609244,14.01.2015,Elderly Frail Homecare,Charges from Independent Providers,45.84,BETTER AT HOME IOW LTD
Revenue,Head of ASC & Community Wellbeing,5105609241,14.01.2015,Elderly Frail Homecare,Charges from Independent Providers,427.84,BETTER AT HOME IOW LTD
Revenue,Head of ASC & Community Wellbeing,5105609240,14.01.2015,Elderly Frail Homecare,Charges from Independent Providers,198.64,BETTER AT HOME IOW LTD
Revenue,Head of ASC & Community Wellbeing,5105609266,14.01.2015,Elderly Frail Homecare,Charges from Independent Providers,"1,237.68",BETTER AT HOME IOW LTD
Revenue,Head of ASC & Community Wellbeing,5105609265,14.01.2015,Elderly Frail Homecare,Charges from Independent Providers,"1,069.60",BETTER AT HOME IOW LTD
Revenue,Head of ASC & Community Wellbeing,5105609253,14.01.2015,Elderly Frail Homecare,Charges from Independent Providers,603.56,BETTER AT HOME IOW LTD
Revenue,Head of ASC & Community Wellbeing,5105609250,14.01.2015,Elderly Frail Homecare,Charges from Independent Providers,213.92,BETTER AT HOME IOW LTD
Revenue,Head of ASC & Community Wellbeing,5105609256,14.01.2015,Elderly Frail Homecare,Charges from Independent Providers,263.58,BETTER AT HOME IOW LTD
Revenue,Head of ASC & Community Wellbeing,5105609459,14.01.2015,Elderly Frail Homecare,Charges from Independent Providers,99.32,BETTER AT HOME IOW LTD
Revenue,Head of ASC & Community Wellbeing,5105609279,14.01.2015,Elderly Frail Homecare,Charges from Independent Providers,137.52,BETTER AT HOME IOW LTD
Revenue,Head of ASC & Community Wellbeing,5105609251,14.01.2015,Elderly Frail Homecare,Charges from Independent Providers,420.20,BETTER AT HOME IOW LTD
Revenue,Head of ASC & Community Wellbeing,5105609221,14.01.2015,Elderly Frail Homecare,Charges from Independent Providers,"1,054.32",BETTER AT HOME IOW LTD
Revenue,Head of ASC & Community Wellbeing,5105609276,14.01.2015,Elderly Frail Homecare,Charges from Independent Providers,213.92,BETTER AT HOME IOW LTD
Revenue,Head of ASC & Community Wellbeing,5105609277,14.01.2015,Elderly Frail Homecare,Charges from Independent Providers,141.34,BETTER AT HOME IOW LTD
Revenue,Head of ASC & Community Wellbeing,5105609277,14.01.2015,Elderly Frail Homecare,Charges from Independent Providers,76.40,BETTER AT HOME IOW LTD
Revenue,Head of ASC & Community Wellbeing,5105610096,21.01.2015,Elderly Frail Homecare,Charges from Independent Providers,"2,353.12",BETTER AT HOME IOW LTD
Revenue,Head of ASC & Community Wellbeing,5105610095,21.01.2015,Elderly Frail Homecare,Charges from Independent Providers,53.48,BETTER AT HOME IOW LTD
Revenue,Head of ASC & Community Wellbeing,5105610097,21.01.2015,Elderly Frail Homecare,Charges from Independent Providers,855.68,BETTER AT HOME IOW LTD
Revenue,Head of ASC & Community Wellbeing,5105610098,21.01.2015,Elderly Frail Homecare,Charges from Independent Providers,91.68,BETTER AT HOME IOW LTD
Revenue,Head of ASC & Community Wellbeing,5105609258,14.01.2015,Elderly Frail Homecare,Regular Respite Care,152.80,BETTER AT HOME IOW LTD
Revenue,Head of ASC & Community Wellbeing,5105609261,14.01.2015,Elderly Frail Homecare,Regular Respite Care,30.56,BETTER AT HOME IOW LTD
Revenue,Head of ASC & Community Wellbeing,5105609242,14.01.2015,Elderly Frail Homecare,Regular Respite Care,183.36,BETTER AT HOME IOW LTD
Revenue,Head of ASC & Community Wellbeing,5105609239,14.01.2015,Elderly Frail Homecare,Regular Respite Care,122.24,BETTER AT HOME IOW LTD
Revenue,Head of ASC & Community Wellbeing,5105609243,14.01.2015,Elderly Frail Homecare,Regular Respite Care,122.24,BETTER AT HOME IOW LTD
Revenue,Head of ASC & Community Wellbeing,5105609278,14.01.2015,Elderly Frail Homecare,Regular Respite Care,213.92,BETTER AT HOME IOW LTD
Revenue,Head of ASC & Community Wellbeing,5105609278,14.01.2015,Elderly Frail Homecare,Regular Respite Care,175.72,BETTER AT HOME IOW LTD
Revenue,Head of ASC & Community Wellbeing,5105609460,14.01.2015,Elderly Frail Homecare,Regular Respite Care,305.60,BETTER AT HOME IOW LTD
Revenue,Head of ASC & Community Wellbeing,5105609460,14.01.2015,Elderly Frail Homecare,Regular Respite Care,99.32,BETTER AT HOME IOW LTD
Revenue,Head of ASC & Community Wellbeing,5105609280,14.01.2015,Elderly Frail Homecare,Regular Respite Care,30.56,BETTER AT HOME IOW LTD
Revenue,Head of ASC & Community Wellbeing,5105609270,14.01.2015,Elderly Frail Homecare,Regular Respite Care,45.84,BETTER AT HOME IOW LTD
Revenue,Head of ASC & Community Wellbeing,5105609269,14.01.2015,Elderly Frail Homecare,Regular Respite Care,61.12,BETTER AT HOME IOW LTD
Revenue,Head of ASC & Community Wellbeing,5105609271,14.01.2015,Elderly Frail Homecare,Regular Respite Care,61.12,BETTER AT HOME IOW LTD
Revenue,Head of ASC & Community Wellbeing,5105609272,14.01.2015,Elderly Frail Homecare,Regular Respite Care,30.56,BETTER AT HOME IOW LTD
Revenue,Head of ASC & Community Wellbeing,5105610480,21.01.2015,Elderly Frail Homecare,Regular Respite Care,30.56,BETTER AT HOME IOW LTD
Revenue,Head of ASC & Community Wellbeing,5105610965,23.01.2015,Elderly Frail Homecare,Regular Respite Care,61.12,BETTER AT HOME IOW LTD
Revenue,Head of ASC & Community Wellbeing,5105607711,07.01.2015,Elderly Frail Homecare,Charges from Independent Providers,44.52,BETTER AT HOME IOW LTD
Revenue,Head of ASC & Community Wellbeing,5105609263,14.01.2015,Elderly Mentally Ill Homecare,Charges from Independent Providers,962.64,BETTER AT HOME IOW LTD
Revenue,Head of ASC & Community Wellbeing,5105609249,14.01.2015,Elderly Mentally Ill Homecare,Charges from Independent Providers,641.76,BETTER AT HOME IOW LTD
Revenue,Head of ASC & Community Wellbeing,5105609264,14.01.2015,Elderly Mentally Ill Homecare,Charges from Independent Providers,427.84,BETTER AT HOME IOW LTD
Revenue,Head of ASC & Community Wellbeing,5105609228,14.01.2015,Mental Health Homecare,Charges from Independent Providers,305.60,BETTER AT HOME IOW LTD
Revenue,Head of ASC & Community Wellbeing,5105609252,14.01.2015,Physical Disability Homecare,Charges from Independent Providers,68.76,BETTER AT HOME IOW LTD
Revenue,Head of ASC & Community Wellbeing,5105609267,14.01.2015,Physical Disability Homecare,Charges from Independent Providers,431.66,BETTER AT HOME IOW LTD
Revenue,Head of ASC & Community Wellbeing,5105609254,14.01.2015,Physical Disability Homecare,Charges from Independent Providers,427.84,BETTER AT HOME IOW LTD
Revenue,Head of ASC & Community Wellbeing,5105609255,14.01.2015,Physical Disability Homecare,Charges from Independent Providers,320.88,BETTER AT HOME IOW LTD
Revenue,Head of ASC & Community Wellbeing,5105609257,14.01.2015,Physical Disability Homecare,Charges from Independent Providers,427.84,BETTER AT HOME IOW LTD
Revenue,Head of Economy & Tourism,5105611958,28.01.2015,Public Libraries Central,Stationery,80.92,BIBLIOTHECA LTD
Revenue,Head of HR & Organisational Change,5105610222,30.01.2015,"Civic Centre,Sandown","Refuse Collection, Disposal and Recycling Costs",49.02,BIFFA WASTE SERVICES LTD
Revenue,Head of HR & Organisational Change,5105609884,23.01.2015,"Civic Centre,Sandown","Refuse Collection, Disposal and Recycling Costs",10.69,BIFFA WASTE SERVICES LTD
Revenue,Head of HR & Organisational Change,5105606488,16.01.2015,"Civic Centre,Sandown","Refuse Collection, Disposal and Recycling Costs",47.72,BIFFA WASTE SERVICES LTD
Revenue,Head of HR & Organisational Change,5105606491,16.01.2015,"Civic Centre,Sandown","Refuse Collection, Disposal and Recycling Costs",92.48,BIFFA WASTE SERVICES LTD
Revenue,Head of HR & Organisational Change,5105609884,23.01.2015,"Bugle House,Newport","Refuse Collection, Disposal and Recycling Costs",189.55,BIFFA WASTE SERVICES LTD
Revenue,Head of HR & Organisational Change,5105609884,23.01.2015,"Westridge, Ryde","Refuse Collection, Disposal and Recycling Costs",30.26,BIFFA WASTE SERVICES LTD
Revenue,Head of HR & Organisational Change,5105609884,23.01.2015,ICT Contracts,"Refuse Collection, Disposal and Recycling Costs",59.33,BIFFA WASTE SERVICES LTD
Revenue,Head of ASC & Community Wellbeing,5105609884,23.01.2015,S75 Integrated Community Equipment Store,"Refuse Collection, Disposal and Recycling Costs",133.96,BIFFA WASTE SERVICES LTD
Revenue,Head of ASC & Community Wellbeing,5105609884,23.01.2015,31 Carter Avenue,"Refuse Collection, Disposal and Recycling Costs",103.25,BIFFA WASTE SERVICES LTD
Revenue,Head of ASC & Community Wellbeing,5105609884,23.01.2015,Overbrook,"Refuse Collection, Disposal and Recycling Costs",135.05,BIFFA WASTE SERVICES LTD
Revenue,Head of ASC & Community Wellbeing,5105609884,23.01.2015,Seagulls,"Refuse Collection, Disposal and Recycling Costs",103.25,BIFFA WASTE SERVICES LTD
Revenue,Head of ASC & Community Wellbeing,5105609884,23.01.2015,Plean Dene,"Refuse Collection, Disposal and Recycling Costs",200.55,BIFFA WASTE SERVICES LTD
Revenue,Head of ASC & Community Wellbeing,5105609884,23.01.2015,Saxonbury,"Refuse Collection, Disposal and Recycling Costs",97.75,BIFFA WASTE SERVICES LTD
Revenue,Head of ASC & Community Wellbeing,5105609884,23.01.2015,40 Venner Avenue,"Refuse Collection, Disposal and Recycling Costs",5.95,BIFFA WASTE SERVICES LTD
Revenue,Head of ASC & Community Wellbeing,5105609884,23.01.2015,Highmead,"Refuse Collection, Disposal and Recycling Costs",54.60,BIFFA WASTE SERVICES LTD
Revenue,Head of ASC & Community Wellbeing,5105609884,23.01.2015,The Laurels,"Refuse Collection, Disposal and Recycling Costs",54.60,BIFFA WASTE SERVICES LTD
Revenue,Head of Economy & Tourism,5105609884,23.01.2015,17 Fairlee Road,"Refuse Collection, Disposal and Recycling Costs",224.00,BIFFA WASTE SERVICES LTD
Revenue,Head of ASC & Community Wellbeing,5105607770,07.01.2015,Gouldings Resource Centre,"Refuse Collection, Disposal and Recycling Costs",91.60,BIFFA WASTE SERVICES LTD
Revenue,Head of ASC & Community Wellbeing,5105607950,14.01.2015,Gouldings Resource Centre,"Refuse Collection, Disposal and Recycling Costs",284.16,BIFFA WASTE SERVICES LTD
Revenue,Head of ASC & Community Wellbeing,5105609884,23.01.2015,Westminster House,"Refuse Collection, Disposal and Recycling Costs",54.60,BIFFA WASTE SERVICES LTD
Revenue,Head of Economy & Tourism,5105609884,23.01.2015,Leisure Management & Admin,"Refuse Collection, Disposal and Recycling Costs",189.55,BIFFA WASTE SERVICES LTD
Revenue,Head of Economy & Tourism,5105609884,23.01.2015,Public Libraries Central,"Refuse Collection, Disposal and Recycling Costs","1,208.12",BIFFA WASTE SERVICES LTD
Revenue,Director of Childrens Services,5105609884,23.01.2015,Learning & Development Running Costs,"Refuse Collection, Disposal and Recycling Costs",61.03,BIFFA WASTE SERVICES LTD
Revenue,Head of Economy & Tourism,5105609884,23.01.2015,Cothey Bottom Store RYDE,"Refuse Collection, Disposal and Recycling Costs",15.13,BIFFA WASTE SERVICES LTD
Revenue,Head of Economy & Tourism,5105609884,23.01.2015,Dinosaur Isle Museum (Sandown Geology),"Refuse Collection, Disposal and Recycling Costs",18.36,BIFFA WASTE SERVICES LTD
Revenue,Head of Economy & Tourism,5105609884,23.01.2015,The Heights,"Refuse Collection, Disposal and Recycling Costs",409.39,BIFFA WASTE SERVICES LTD
Revenue,Head of Economy & Tourism,5105609884,23.01.2015,Medina Leisure Centre,"Refuse Collection, Disposal and Recycling Costs",409.20,BIFFA WASTE SERVICES LTD
Revenue,Head of Economy & Tourism,5105609884,23.01.2015,Westridge Squash Courts,"Refuse Collection, Disposal and Recycling Costs",15.13,BIFFA WASTE SERVICES LTD
Revenue,Head of Economy & Tourism,5105609884,23.01.2015,Ryde Harbour,"Refuse Collection, Disposal and Recycling Costs",58.07,BIFFA WASTE SERVICES LTD
Revenue,Head of Economy & Tourism,5105609884,23.01.2015,Seaclose Amusements,"Refuse Collection, Disposal and Recycling Costs",14.46,BIFFA WASTE SERVICES LTD
Revenue,Director of Childrens Services,5105609884,23.01.2015,Family Information Zone,"Refuse Collection, Disposal and Recycling Costs",20.80,BIFFA WASTE SERVICES LTD
Revenue,Director of Childrens Services,5105609884,23.01.2015,Specialist Service Business Admin,"Refuse Collection, Disposal and Recycling Costs",195.50,BIFFA WASTE SERVICES LTD
Revenue,Director of Childrens Services,5105609884,23.01.2015,Beaulieu House,"Refuse Collection, Disposal and Recycling Costs",217.75,BIFFA WASTE SERVICES LTD
Revenue,Director of Childrens Services,5105609884,23.01.2015,Parent Partnership,"Refuse Collection, Disposal and Recycling Costs",20.80,BIFFA WASTE SERVICES LTD
Revenue,Director of Childrens Services,5105609884,23.01.2015,Education Participation Team,"Refuse Collection, Disposal and Recycling Costs",11.05,BIFFA WASTE SERVICES LTD
Revenue,Head of Economy & Tourism,5105609884,23.01.2015,Ferry Management,"Refuse Collection, Disposal and Recycling Costs",103.25,BIFFA WASTE SERVICES LTD
Revenue,Head of Economy & Tourism,5105609884,23.01.2015,Fort Victoria,"Refuse Collection, Disposal and Recycling Costs",97.75,BIFFA WASTE SERVICES LTD
Revenue,Head of Economy & Tourism,5105609884,23.01.2015,Newport Harbour Account,"Refuse Collection, Disposal and Recycling Costs",448.44,BIFFA WASTE SERVICES LTD
Revenue,Head of Economy & Tourism,5105609884,23.01.2015,Newport Harbour Account,"Refuse Collection, Disposal and Recycling Costs",220.01,BIFFA WASTE SERVICES LTD
Revenue,Chief Fire Officer,5105607928,09.01.2015,Fire Operations,"Refuse Collection, Disposal and Recycling Costs",41.00,BIFFA WASTE SERVICES LTD
Revenue,Chief Fire Officer,5105607805,07.01.2015,Fire Operations,"Refuse Collection, Disposal and Recycling Costs",23.60,BIFFA WASTE SERVICES LTD
Revenue,Chief Fire Officer,5105607752,07.01.2015,Fire Operations,"Refuse Collection, Disposal and Recycling Costs",141.00,BIFFA WASTE SERVICES LTD
Revenue,Chief Fire Officer,5105607971,09.01.2015,Fire Operations,"Refuse Collection, Disposal and Recycling Costs",107.90,BIFFA WASTE SERVICES LTD
Revenue,Chief Fire Officer,5105605869,07.01.2015,Fire Operations,"Refuse Collection, Disposal and Recycling Costs",107.20,BIFFA WASTE SERVICES LTD
Revenue,Chief Fire Officer,5105605870,07.01.2015,Fire Operations,"Refuse Collection, Disposal and Recycling Costs",23.04,BIFFA WASTE SERVICES LTD
Revenue,Chief Fire Officer,5105605872,07.01.2015,Fire Operations,"Refuse Collection, Disposal and Recycling Costs",52.80,BIFFA WASTE SERVICES LTD
Revenue,Chief Fire Officer,5105612354,30.01.2015,Fire Operations,"Refuse Collection, Disposal and Recycling Costs",0.30,BIFFA WASTE SERVICES LTD
Revenue,Head of Planning & Regulatory Services,5105609884,23.01.2015,Planning Business Support,"Refuse Collection, Disposal and Recycling Costs",195.50,BIFFA WASTE SERVICES LTD
Revenue,Head of Planning & Regulatory Services,5105609884,23.01.2015,Regulatory Management & Admin Support,"Refuse Collection, Disposal and Recycling Costs",97.75,BIFFA WASTE SERVICES LTD
Revenue,Head of Economy & Tourism,5105609884,23.01.2015,Crematorium,"Refuse Collection, Disposal and Recycling Costs",134.47,BIFFA WASTE SERVICES LTD
Revenue,Director of Childrens Services,5105607615,02.01.2015,Leaving Care Costs,Support Children,65.00,REDACTED PERSONAL DATA
Revenue,Director of Childrens Services,5105608177,09.01.2015,Leaving Care Costs,Support Children,65.00,REDACTED PERSONAL DATA
Revenue,Director of Childrens Services,5105609702,16.01.2015,Leaving Care Costs,Support Children,65.00,REDACTED PERSONAL DATA
Revenue,Director of Childrens Services,5105610801,23.01.2015,Leaving Care Costs,Support Children,65.00,REDACTED PERSONAL DATA
Revenue,Director of Childrens Services,5105612148,30.01.2015,Leaving Care Costs,Support Children,65.00,REDACTED PERSONAL DATA
Revenue,Head of Exchequer Services,5105610954,23.01.2015,Staff Benefits,Payment to Private Contractors,156.60,BLACKBERRY LANE PRE-SCHOOL
Revenue,Director of Childrens Services,5105608270,09.01.2015,Purchased Fostering,Charges from Independent Providers,"3,101.55",BLUE SKY FOSTERING LTD
Revenue,Director of Childrens Services,5105608271,09.01.2015,Purchased Fostering,Charges from Independent Providers,"3,101.55",BLUE SKY FOSTERING LTD
Revenue,Director of Childrens Services,5105608255,09.01.2015,Purchased Fostering,Charges from Independent Providers,"3,101.55",BLUE SKY FOSTERING LTD
Revenue,Director of Childrens Services,5105609849,16.01.2015,Purchased Fostering,Charges from Independent Providers,-108.16,BLUE SKY FOSTERING LTD
Revenue,Director of Childrens Services,5105609850,16.01.2015,Purchased Fostering,Charges from Independent Providers,-124.80,BLUE SKY FOSTERING LTD
Revenue,Director of Childrens Services,5105609851,16.01.2015,Purchased Fostering,Charges from Independent Providers,-124.80,BLUE SKY FOSTERING LTD
Revenue,Director of Childrens Services,5105609852,16.01.2015,Purchased Fostering,Charges from Independent Providers,-128.96,BLUE SKY FOSTERING LTD
Revenue,Director of Childrens Services,5105609864,16.01.2015,Purchased Fostering,Charges from Independent Providers,-128.96,BLUE SKY FOSTERING LTD
Revenue,Director of Childrens Services,5105609853,16.01.2015,Purchased Fostering,Charges from Independent Providers,-108.16,BLUE SKY FOSTERING LTD
Revenue,Director of Childrens Services,5105609854,16.01.2015,Purchased Fostering,Charges from Independent Providers,-124.80,BLUE SKY FOSTERING LTD
Revenue,Director of Childrens Services,5105609855,16.01.2015,Purchased Fostering,Charges from Independent Providers,-128.96,BLUE SKY FOSTERING LTD
Revenue,Director of Childrens Services,5105609856,16.01.2015,Purchased Fostering,Charges from Independent Providers,-124.80,BLUE SKY FOSTERING LTD
Revenue,Director of Childrens Services,5105609857,16.01.2015,Purchased Fostering,Charges from Independent Providers,-124.80,BLUE SKY FOSTERING LTD
Revenue,Director of Childrens Services,5105609858,16.01.2015,Purchased Fostering,Charges from Independent Providers,-108.16,BLUE SKY FOSTERING LTD
Revenue,Director of Childrens Services,5105609859,16.01.2015,Purchased Fostering,Charges from Independent Providers,-128.96,BLUE SKY FOSTERING LTD
Revenue,Director of Childrens Services,5105609860,16.01.2015,Purchased Fostering,Charges from Independent Providers,-124.80,BLUE SKY FOSTERING LTD
Revenue,Director of Childrens Services,5105609861,16.01.2015,Purchased Fostering,Charges from Independent Providers,-128.96,BLUE SKY FOSTERING LTD
Revenue,Director of Childrens Services,5105609866,16.01.2015,Purchased Fostering,Charges from Independent Providers,-124.80,BLUE SKY FOSTERING LTD
Revenue,Director of Childrens Services,5105607929,07.01.2015,Beaulieu House,General Materials,33.50,BOC LTD
Revenue,Director of Childrens Services,5105609499,14.01.2015,Short Breaks,Charges from Independent Providers,520.00,BODSTER EQUINE ASSISTED LEARN CIC
Revenue,Head of ASC & Community Wellbeing,5105607984,07.01.2015,Plean Dene,Catering Purchases,58.04,BOOKER CASH & CARRY LTD
Revenue,Head of ASC & Community Wellbeing,5105607963,07.01.2015,Plean Dene,Catering Purchases,33.82,BOOKER CASH & CARRY LTD
Revenue,Head of ASC & Community Wellbeing,5105607953,07.01.2015,Plean Dene,Catering Purchases,148.45,BOOKER CASH & CARRY LTD
Revenue,Head of ASC & Community Wellbeing,5105607983,07.01.2015,Plean Dene,Catering Purchases,65.78,BOOKER CASH & CARRY LTD
Revenue,Head of ASC & Community Wellbeing,5105608742,14.01.2015,Plean Dene,Catering Purchases,26.44,BOOKER CASH & CARRY LTD
Revenue,Head of ASC & Community Wellbeing,5105608743,14.01.2015,Plean Dene,Catering Purchases,12.94,BOOKER CASH & CARRY LTD
Revenue,Head of ASC & Community Wellbeing,5105608713,09.01.2015,Plean Dene,Catering Purchases,43.95,BOOKER CASH & CARRY LTD
Revenue,Head of ASC & Community Wellbeing,5105608707,09.01.2015,Plean Dene,Catering Purchases,15.23,BOOKER CASH & CARRY LTD
Revenue,Head of ASC & Community Wellbeing,5105608698,09.01.2015,Plean Dene,Catering Purchases,27.58,BOOKER CASH & CARRY LTD
Revenue,Head of ASC & Community Wellbeing,5105607953,07.01.2015,Plean Dene,Catering Purchases,32.90,BOOKER CASH & CARRY LTD
Revenue,Head of ASC & Community Wellbeing,5105610331,21.01.2015,Plean Dene,Catering Purchases,27.46,BOOKER CASH & CARRY LTD
Revenue,Head of ASC & Community Wellbeing,5105610333,21.01.2015,Plean Dene,Catering Purchases,136.38,BOOKER CASH & CARRY LTD
Revenue,Head of ASC & Community Wellbeing,5105610333,21.01.2015,Plean Dene,Catering Purchases,32.91,BOOKER CASH & CARRY LTD
Revenue,Head of ASC & Community Wellbeing,5105609870,21.01.2015,Plean Dene,Catering Purchases,41.43,BOOKER CASH & CARRY LTD
Revenue,Head of ASC & Community Wellbeing,5105609811,21.01.2015,Plean Dene,Catering Purchases,196.39,BOOKER CASH & CARRY LTD
Revenue,Head of ASC & Community Wellbeing,5105609811,21.01.2015,Plean Dene,Catering Purchases,48.79,BOOKER CASH & CARRY LTD
Revenue,Head of ASC & Community Wellbeing,5105612227,30.01.2015,Plean Dene,Catering Purchases,12.58,BOOKER CASH & CARRY LTD
Revenue,Head of ASC & Community Wellbeing,5105611962,28.01.2015,Plean Dene,Catering Purchases,11.73,BOOKER CASH & CARRY LTD
Revenue,Head of ASC & Community Wellbeing,5105611964,28.01.2015,Plean Dene,Catering Purchases,14.02,BOOKER CASH & CARRY LTD
Revenue,Head of ASC & Community Wellbeing,5105611966,28.01.2015,Plean Dene,Catering Purchases,166.10,BOOKER CASH & CARRY LTD
Revenue,Head of ASC & Community Wellbeing,5105611868,28.01.2015,Plean Dene,Catering Purchases,18.18,BOOKER CASH & CARRY LTD
Revenue,Head of ASC & Community Wellbeing,5105611966,28.01.2015,Plean Dene,Catering Purchases,2.98,BOOKER CASH & CARRY LTD
Revenue,Managing Director & Head of Paid Service,5105610926,23.01.2015,Contraception,Payment to Private Contractors,322.50,BOOTS THE CHEMIST LTD (Ryde)
Revenue,Managing Director & Head of Paid Service,5105610926,23.01.2015,Contraception,Payment to Private Contractors,78.00,BOOTS THE CHEMIST LTD (Ryde)
Revenue,Managing Director & Head of Paid Service,5105610926,23.01.2015,Drug Misuse - Adults,Payment to Private Contractors,602.00,BOOTS THE CHEMIST LTD (Ryde)
Revenue,Managing Director & Head of Paid Service,5105610926,23.01.2015,Drug Misuse - Adults,Payment to Private Contractors,910.00,BOOTS THE CHEMIST LTD (Ryde)
Revenue,Managing Director & Head of Paid Service,5105610926,23.01.2015,Drug Misuse - Adults,Payment to Private Contractors,30.00,BOOTS THE CHEMIST LTD (Ryde)
Revenue,Managing Director & Head of Paid Service,5105610923,23.01.2015,Drug Misuse - Adults,Payment to Private Contractors,63.00,BOOTS UK LTD (107 HIGH ST SANDOWN)
Revenue,Managing Director & Head of Paid Service,5105610923,23.01.2015,Drug Misuse - Adults,Payment to Private Contractors,470.00,BOOTS UK LTD (107 HIGH ST SANDOWN)
Revenue,Managing Director & Head of Paid Service,5105610923,23.01.2015,Drug Misuse - Adults,Payment to Private Contractors,30.00,BOOTS UK LTD (107 HIGH ST SANDOWN)
Revenue,Managing Director & Head of Paid Service,5105610886,23.01.2015,Drug Misuse - Adults,Payment to Private Contractors,30.00,BOOTS UK LTD (COWES)
Revenue,Managing Director & Head of Paid Service,5105610866,23.01.2015,Drug Misuse - Adults,Payment to Private Contractors,30.00,BOOTS UK LTD (FRESHWATER)
Revenue,Managing Director & Head of Paid Service,5105610921,23.01.2015,Contraception,Payment to Private Contractors,301.00,BOOTS UK LTD (NEWPORT)
Revenue,Managing Director & Head of Paid Service,5105610921,23.01.2015,Contraception,Payment to Private Contractors,72.80,BOOTS UK LTD (NEWPORT)
Revenue,Managing Director & Head of Paid Service,5105610921,23.01.2015,Drug Misuse - Adults,Payment to Private Contractors,30.00,BOOTS UK LTD (NEWPORT)
Revenue,Managing Director & Head of Paid Service,5105610865,23.01.2015,Contraception,Payment to Private Contractors,86.00,BOOTS UK LTD (SANDOWN LARGE STORE)
Revenue,Managing Director & Head of Paid Service,5105610865,23.01.2015,Contraception,Payment to Private Contractors,15.60,BOOTS UK LTD (SANDOWN LARGE STORE)
Revenue,Managing Director & Head of Paid Service,5105610865,23.01.2015,Drug Misuse - Adults,Payment to Private Contractors,10.50,BOOTS UK LTD (SANDOWN LARGE STORE)
Revenue,Managing Director & Head of Paid Service,5105610865,23.01.2015,Drug Misuse - Adults,Payment to Private Contractors,238.00,BOOTS UK LTD (SANDOWN LARGE STORE)
Revenue,Managing Director & Head of Paid Service,5105610865,23.01.2015,Drug Misuse - Adults,Payment to Private Contractors,30.00,BOOTS UK LTD (SANDOWN LARGE STORE)
Revenue,Managing Director & Head of Paid Service,5105610496,21.01.2015,Contraception,Payment to Private Contractors,21.50,BOOTS UK LTD (SHANKLIN)
Revenue,Managing Director & Head of Paid Service,5105610496,21.01.2015,Contraception,Payment to Private Contractors,5.20,BOOTS UK LTD (SHANKLIN)
Revenue,Managing Director & Head of Paid Service,5105694914,07.01.2015,Contraception,Payment to Private Contractors,43.00,BOOTS UK LTD (SHANKLIN)
Revenue,Managing Director & Head of Paid Service,5105694914,07.01.2015,Contraception,Payment to Private Contractors,10.40,BOOTS UK LTD (SHANKLIN)
Revenue,Managing Director & Head of Paid Service,5105610496,21.01.2015,Drug Misuse - Adults,Payment to Private Contractors,208.00,BOOTS UK LTD (SHANKLIN)
Revenue,Managing Director & Head of Paid Service,5105610897,23.01.2015,Drug Misuse - Adults,Payment to Private Contractors,26.00,BOOTS UK LTD (SHANKLIN)
Revenue,Managing Director & Head of Paid Service,5105610897,23.01.2015,Drug Misuse - Adults,Payment to Private Contractors,30.00,BOOTS UK LTD (SHANKLIN)
Revenue,Managing Director & Head of Paid Service,5105694914,07.01.2015,Drug Misuse - Adults,Payment to Private Contractors,240.00,BOOTS UK LTD (SHANKLIN)
Revenue,Managing Director & Head of Paid Service,5105694914,07.01.2015,Drug Misuse - Adults,Payment to Private Contractors,30.00,BOOTS UK LTD (SHANKLIN)
Revenue,Managing Director & Head of Paid Service,5105610875,23.01.2015,Contraception,Payment to Private Contractors,43.00,BOOTS UK LTD (TOWER HOUSE)
Revenue,Managing Director & Head of Paid Service,5105610875,23.01.2015,Contraception,Payment to Private Contractors,5.20,BOOTS UK LTD (TOWER HOUSE)
Revenue,Managing Director & Head of Paid Service,5105610875,23.01.2015,Drug Misuse - Adults,Payment to Private Contractors,59.50,BOOTS UK LTD (TOWER HOUSE)
Revenue,Managing Director & Head of Paid Service,5105610875,23.01.2015,Drug Misuse - Adults,Payment to Private Contractors,128.00,BOOTS UK LTD (TOWER HOUSE)
Revenue,Managing Director & Head of Paid Service,5105610875,23.01.2015,Drug Misuse - Adults,Payment to Private Contractors,30.00,BOOTS UK LTD (TOWER HOUSE)
Revenue,Managing Director & Head of Paid Service,5105610907,23.01.2015,Contraception,Payment to Private Contractors,623.50,BOOTS UK LTD
Revenue,Managing Director & Head of Paid Service,5105610907,23.01.2015,Contraception,Payment to Private Contractors,150.80,BOOTS UK LTD
Revenue,Managing Director & Head of Paid Service,5105610907,23.01.2015,Drug Misuse - Adults,Payment to Private Contractors,168.00,BOOTS UK LTD
Revenue,Managing Director & Head of Paid Service,5105610907,23.01.2015,Drug Misuse - Adults,Payment to Private Contractors,64.00,BOOTS UK LTD
Revenue,Managing Director & Head of Paid Service,5105610907,23.01.2015,Drug Misuse - Adults,Payment to Private Contractors,30.00,BOOTS UK LTD
Revenue,Managing Director & Head of Paid Service,5105610924,23.01.2015,Contraception,Payment to Private Contractors,21.50,BOOTS UK LTD (YLB BEMBRIDGE)
Revenue,Managing Director & Head of Paid Service,5105610924,23.01.2015,Drug Misuse - Adults,Payment to Private Contractors,7.00,BOOTS UK LTD (YLB BEMBRIDGE)
Revenue,Managing Director & Head of Paid Service,5105610924,23.01.2015,Drug Misuse - Adults,Payment to Private Contractors,30.00,BOOTS UK LTD (YLB BEMBRIDGE)
Revenue,Head of Economy & Tourism,5105609461,14.01.2015,The Heights,Stock Purchases,163.53,BRAKE BROS LTD
Revenue,Head of ASC & Community Wellbeing,5105610628,23.01.2015,Leaseholds by LA,Accommodation Costs - Leaseholder Payments,746.81,BRAMBLE LETTINGS
Revenue,Head of ASC & Community Wellbeing,5105610628,23.01.2015,Leaseholds by LA,Accommodation Costs - Leaseholder Payments,746.81,BRAMBLE LETTINGS
Revenue,Head of ASC & Community Wellbeing,5105610628,23.01.2015,Leaseholds by LA,Accommodation Costs - Leaseholder Payments,746.81,BRAMBLE LETTINGS
Revenue,Head of ASC & Community Wellbeing,5105610628,23.01.2015,Leaseholds by LA,Accommodation Costs - Leaseholder Payments,746.81,BRAMBLE LETTINGS
Revenue,Head of ASC & Community Wellbeing,5105610628,23.01.2015,Leaseholds by LA,Accommodation Costs - Leaseholder Payments,746.81,BRAMBLE LETTINGS
Revenue,Head of ASC & Community Wellbeing,5105610628,23.01.2015,Leaseholds by LA,Accommodation Costs - Leaseholder Payments,588.38,BRAMBLE LETTINGS
Revenue,Head of ASC & Community Wellbeing,5105610628,23.01.2015,Leaseholds by LA,Accommodation Costs - Leaseholder Payments,588.38,BRAMBLE LETTINGS
Revenue,Head of ASC & Community Wellbeing,5105610628,23.01.2015,Leaseholds by LA,Accommodation Costs - Leaseholder Payments,588.38,BRAMBLE LETTINGS
Revenue,Head of ASC & Community Wellbeing,5105610628,23.01.2015,Leaseholds by LA,Accommodation Costs - Leaseholder Payments,588.38,BRAMBLE LETTINGS
Revenue,Head of ASC & Community Wellbeing,5105610628,23.01.2015,Leaseholds by LA,Accommodation Costs - Leaseholder Payments,588.38,BRAMBLE LETTINGS
Revenue,Head of ASC & Community Wellbeing,5105610628,23.01.2015,Leaseholds by LA,Accommodation Costs - Leaseholder Payments,746.81,BRAMBLE LETTINGS
Revenue,Head of ASC & Community Wellbeing,5105610628,23.01.2015,Leaseholds by LA,Accommodation Costs - Leaseholder Payments,588.38,BRAMBLE LETTINGS
Revenue,Head of ASC & Community Wellbeing,5105610628,23.01.2015,Leaseholds by LA,Accommodation Costs - Leaseholder Payments,746.81,BRAMBLE LETTINGS
Revenue,Head of ASC & Community Wellbeing,5105610628,23.01.2015,Leaseholds by LA,Accommodation Costs - Leaseholder Payments,769.43,BRAMBLE LETTINGS
Revenue,Head of ASC & Community Wellbeing,5105610628,23.01.2015,Leaseholds by LA,Accommodation Costs - Leaseholder Payments,746.81,BRAMBLE LETTINGS
Revenue,Head of ASC & Community Wellbeing,5105610628,23.01.2015,Leaseholds by LA,Accommodation Costs - Leaseholder Payments,746.81,BRAMBLE LETTINGS
Revenue,Head of ASC & Community Wellbeing,5105610628,23.01.2015,Leaseholds by LA,Accommodation Costs - Leaseholder Payments,746.81,BRAMBLE LETTINGS
Revenue,Head of ASC & Community Wellbeing,5105610628,23.01.2015,Leaseholds by LA,Accommodation Costs - Leaseholder Payments,746.81,BRAMBLE LETTINGS
Revenue,Head of ASC & Community Wellbeing,5105610628,23.01.2015,Leaseholds by LA,Accommodation Costs - Leaseholder Payments,746.81,BRAMBLE LETTINGS
Revenue,Head of ASC & Community Wellbeing,5105610628,23.01.2015,Leaseholds by LA,Accommodation Costs - Leaseholder Payments,746.81,BRAMBLE LETTINGS
Revenue,Head of ASC & Community Wellbeing,5105610628,23.01.2015,Leaseholds by LA,Accommodation Costs - Leaseholder Payments,746.81,BRAMBLE LETTINGS
Revenue,Head of ASC & Community Wellbeing,5105610628,23.01.2015,Leaseholds by LA,Accommodation Costs - Leaseholder Payments,746.81,BRAMBLE LETTINGS
Revenue,Managing Director & Head of Paid Service,5105607776,07.01.2015,Strengthening Families,Payments to Voluntary and Other Associations,100.00,BRAVEHEART SOCIAL ENTERPRISES LTD
Revenue,Director of Childrens Services,5105610030,16.01.2015,Adoption Team,Professional Subscriptions,100.00,BREATHE INTERNET LTD
Revenue,Director of Childrens Services,5105606555,09.01.2015,Independ. & Non-Maint. Special Schls & Independ. Specialist Provision,Charges from Independent Providers,"18,483.00",BRECKENBROUGH SCHOOL LTD
Revenue,Head of ASC & Community Wellbeing,5105611585,28.01.2015,Elderly Frail Residential Care,Charges from Independent Providers,"2,048.76",BRENDONCARE FOUNDATION
Revenue,Head of ASC & Community Wellbeing,5105611104,28.01.2015,Elderly Frail Residential Care,Charges from Independent Providers,"2,093.84",BRIGHSTONE CARE LTD
Revenue,Head of ASC & Community Wellbeing,5105611104,28.01.2015,Elderly Frail Residential Care,Charges from Independent Providers,"1,700.44",BRIGHSTONE CARE LTD
Revenue,Head of ASC & Community Wellbeing,5105611104,28.01.2015,Elderly Mentally Ill Residential Care,Charges from Independent Providers,"2,093.84",BRIGHSTONE CARE LTD
Revenue,Head of ASC & Community Wellbeing,5105611104,28.01.2015,Elderly Mentally Ill Residential Care,Charges from Independent Providers,"1,781.36",BRIGHSTONE CARE LTD
Revenue,Head of ASC & Community Wellbeing,5105610506,23.01.2015,Overbrook,Grounds Maintenance,48.00,BRIGHSTONE LANDSCAPING LTD
Revenue,Head of ASC & Community Wellbeing,5105610506,23.01.2015,Seagulls,Grounds Maintenance,48.00,BRIGHSTONE LANDSCAPING LTD
Revenue,Head of ASC & Community Wellbeing,5105610506,23.01.2015,Plean Dene,Grounds Maintenance,387.49,BRIGHSTONE LANDSCAPING LTD
Revenue,Head of ASC & Community Wellbeing,5105610506,23.01.2015,Saxonbury,Grounds Maintenance,48.00,BRIGHSTONE LANDSCAPING LTD
Revenue,Head of ASC & Community Wellbeing,5105610506,23.01.2015,40 Venner Avenue,Grounds Maintenance,48.00,BRIGHSTONE LANDSCAPING LTD
Revenue,Head of ASC & Community Wellbeing,5105610506,23.01.2015,Highmead,Grounds Maintenance,126.00,BRIGHSTONE LANDSCAPING LTD
Revenue,Head of ASC & Community Wellbeing,5105610506,23.01.2015,The Laurels,Grounds Maintenance,126.00,BRIGHSTONE LANDSCAPING LTD
Revenue,Head of Economy & Tourism,5105606600,02.01.2015,Beach Cleaning,Payment to Private Contractors,120.00,BRIGHSTONE LANDSCAPING LTD
Revenue,Head of Economy & Tourism,5105606556,02.01.2015,Beach Cleaning,Payment to Private Contractors,45.00,BRIGHSTONE LANDSCAPING LTD
Revenue,Head of Economy & Tourism,5105612252,30.01.2015,Beach Cleaning,Payment to Private Contractors,"1,150.00",BRIGHSTONE LANDSCAPING LTD
Revenue,Head of Economy & Tourism,5105611789,28.01.2015,Beach Cleaning,Payment to Private Contractors,125.00,BRIGHSTONE LANDSCAPING LTD
Revenue,Head of Economy & Tourism,5105610530,21.01.2015,Beach Cleaning,Beach Cleansing Contractors,"3,349.18",BRIGHSTONE LANDSCAPING LTD
Revenue,Head of Economy & Tourism,5105606596,02.01.2015,Beach Safety & Inspection / Beach Awards,Payment to Private Contractors,110.00,BRIGHSTONE LANDSCAPING LTD
Revenue,Head of Economy & Tourism,5105609485,14.01.2015,Museums & Collections Management,Heritage Acquisitions,350.00,BRITISH MUSEUM GREAT COURT LTD
Revenue,Head of ASC & Community Wellbeing,5105611015,23.01.2015,S75 Integrated Community Equipment Store,Payment to Private Contractors,"3,167.24",BRITISH RED CROSS SOCIETY
Revenue,Head of ASC & Community Wellbeing,5105611847,28.01.2015,S75 Integrated Community Equipment Store,Payment to Private Contractors,"4,519.60",BRITISH RED CROSS SOCIETY
Revenue,Managing Director & Head of Paid Service,5105608015,09.01.2015,Drug Misuse - Adults,Charges from Independent Providers,"1,588.57",BROADREACH HOUSE
Revenue,Managing Director & Head of Paid Service,5105607949,21.01.2015,Drug Misuse - Adults,Charges from Independent Providers,"2,592.63",BROADREACH HOUSE
Revenue,Managing Director & Head of Paid Service,5105607977,09.01.2015,Drug Misuse - Adults,Charges from Independent Providers,"2,581.43",BROADREACH HOUSE
Revenue,Managing Director & Head of Paid Service,5105612216,30.01.2015,Drug Misuse - Adults,Charges from Independent Providers,"2,780.00",BROADREACH HOUSE
Revenue,Head of Economy & Tourism,5105611010,23.01.2015,Transport Fleet Administration,Vehicle Fuel Costs,584.04,BROADWAY GARAGE
Revenue,Chief Fire Officer,5105610067,30.01.2015,Fire Technical Support,Vehicle Fuel Costs,165.74,BROADWAY GARAGE
Revenue,Managing Director & Head of Paid Service,5105610541,28.01.2015,STI Tests & Treatment,Payment to Private Contractors,15.00,BROOKSIDE HEALTH CENTRE
Revenue,Managing Director & Head of Paid Service,5105610541,28.01.2015,Stop Smoking Services & Interventions,Payment to Private Contractors,560.00,BROOKSIDE HEALTH CENTRE
Revenue,Head of Economy & Tourism,5105610186,23.01.2015,Parks and Gardens Misc Equip & Works,Operational Equipment,127.10,BROXAP LTD
Revenue,Chief Fire Officer,5105610403,21.01.2015,Deputy Chief Fire Office,Conference Expenses,5.28,BT CONFERENCING
Revenue,Head of HR & Organisational Change,5105611842,28.01.2015,Telephones,Fixed Telephones,629.30,BT FINANCE
Revenue,Chief Fire Officer,5105610901,30.01.2015,Deputy Chief Fire Office,Professional Subscriptions,-54.00,BUCKINGHAMSHIRE & MILTON KEYNES
Revenue,Chief Fire Officer,5105610330,30.01.2015,Deputy Chief Fire Office,Professional Subscriptions,"1,815.00",BUCKINGHAMSHIRE & MILTON KEYNES
Revenue,Head of Finance & S151 Officer,5105608708,14.01.2015,Transport contracts,Payment to Private Contractors,"5,021.00",BUCKINGHAMSHIRE COUNTY COUNCIL
Revenue,Head of ASC & Community Wellbeing,5105607826,07.01.2015,Elderly Frail Residential Care,Charges from Independent Providers,910.95,BUCKLAND CARE LTD
Revenue,Head of ASC & Community Wellbeing,5105610463,21.01.2015,Elderly Frail Residential Care,Charges from Independent Providers,910.95,BUCKLAND CARE LTD
Revenue,Head of ASC & Community Wellbeing,5105611125,28.01.2015,Elderly Frail Residential Care,Charges from Independent Providers,"2,093.84",BUCKLAND CARE LTD
Revenue,Head of ASC & Community Wellbeing,5105611125,28.01.2015,Elderly Frail Residential Care,Charges from Independent Providers,"2,093.84",BUCKLAND CARE LTD
Revenue,Head of ASC & Community Wellbeing,5105611125,28.01.2015,Elderly Frail Residential Care,Charges from Independent Providers,"2,093.84",BUCKLAND CARE LTD
Revenue,Head of ASC & Community Wellbeing,5105611125,28.01.2015,Elderly Frail Residential Care,Charges from Independent Providers,"2,093.84",BUCKLAND CARE LTD
Revenue,Head of ASC & Community Wellbeing,5105611125,28.01.2015,Elderly Frail Residential Care,Charges from Independent Providers,"1,700.44",BUCKLAND CARE LTD
Revenue,Head of ASC & Community Wellbeing,5105611125,28.01.2015,Elderly Frail Residential Care,Charges from Independent Providers,"1,700.44",BUCKLAND CARE LTD
Revenue,Head of ASC & Community Wellbeing,5105611125,28.01.2015,Elderly Frail Residential Care,Charges from Independent Providers,"2,093.84",BUCKLAND CARE LTD
Revenue,Head of ASC & Community Wellbeing,5105611125,28.01.2015,Elderly Frail Residential Care,Charges from Independent Providers,"1,700.44",BUCKLAND CARE LTD
Revenue,Head of ASC & Community Wellbeing,5105611125,28.01.2015,Elderly Mentally Ill Residential Care,Charges from Independent Providers,"2,093.84",BUCKLAND CARE LTD
Revenue,Head of ASC & Community Wellbeing,5105611125,28.01.2015,Elderly Mentally Ill Residential Care,Charges from Independent Providers,"1,781.36",BUCKLAND CARE LTD
Revenue,Head of ASC & Community Wellbeing,5105611125,28.01.2015,Elderly Mentally Ill Residential Care,Charges from Independent Providers,"1,781.36",BUCKLAND CARE LTD
Revenue,Head of ASC & Community Wellbeing,5105611125,28.01.2015,Elderly Mentally Ill Residential Care,Charges from Independent Providers,"2,093.84",BUCKLAND CARE LTD
Revenue,Head of ASC & Community Wellbeing,5105611125,28.01.2015,Elderly Mentally Ill Residential Care,Charges from Independent Providers,"2,093.84",BUCKLAND CARE LTD
Revenue,Head of ASC & Community Wellbeing,5105611125,28.01.2015,Elderly Mentally Ill Residential Care,Charges from Independent Providers,"1,781.36",BUCKLAND CARE LTD
Revenue,Head of ASC & Community Wellbeing,5105611125,28.01.2015,Elderly Mentally Ill Residential Care,Charges from Independent Providers,"1,781.36",BUCKLAND CARE LTD
Revenue,Head of ASC & Community Wellbeing,5105611125,28.01.2015,Elderly Mentally Ill Residential Care,Charges from Independent Providers,"2,093.84",BUCKLAND CARE LTD
Revenue,Head of ASC & Community Wellbeing,5105611125,28.01.2015,Elderly Mentally Ill Residential Care,Charges from Independent Providers,"2,093.84",BUCKLAND CARE LTD
Revenue,Head of ASC & Community Wellbeing,5105611125,28.01.2015,Elderly Mentally Ill Residential Care,Charges from Independent Providers,"2,093.84",BUCKLAND CARE LTD
Revenue,Head of ASC & Community Wellbeing,5105611125,28.01.2015,Elderly Mentally Ill Residential Care,Charges from Independent Providers,"1,781.36",BUCKLAND CARE LTD
Revenue,Head of ASC & Community Wellbeing,5105611125,28.01.2015,Elderly Mentally Ill Residential Care,Charges from Independent Providers,"1,781.36",BUCKLAND CARE LTD
Revenue,Head of ASC & Community Wellbeing,5105611125,28.01.2015,REDACTED PERSONAL DATA,Order Settlement to Bal Sht GL,"1,781.36",BUCKLAND CARE LTD
Revenue,Head of ASC & Community Wellbeing,5105611111,28.01.2015,Elderly Frail Nursing Island,Charges from Independent Providers,"2,780.40",BUCKLAND CARE LTD
Revenue,Head of ASC & Community Wellbeing,5105611111,28.01.2015,Elderly Frail Nursing Island,Charges from Independent Providers,"2,780.40",BUCKLAND CARE LTD
Revenue,Head of ASC & Community Wellbeing,5105611111,28.01.2015,Elderly Frail Nursing Island,Charges from Independent Providers,"2,780.40",BUCKLAND CARE LTD
Revenue,Head of ASC & Community Wellbeing,5105611111,28.01.2015,Elderly Frail Nursing Island,Charges from Independent Providers,"2,780.40",BUCKLAND CARE LTD
Revenue,Head of ASC & Community Wellbeing,5105611111,28.01.2015,Elderly Frail Nursing Island,Charges from Independent Providers,"2,780.40",BUCKLAND CARE LTD
Revenue,Head of ASC & Community Wellbeing,5105611111,28.01.2015,Elderly Frail Nursing Island,Charges from Independent Providers,"2,780.40",BUCKLAND CARE LTD
Revenue,Head of ASC & Community Wellbeing,5105611111,28.01.2015,Elderly Frail Nursing Island,Charges from Independent Providers,"2,780.40",BUCKLAND CARE LTD
Revenue,Head of ASC & Community Wellbeing,5105611111,28.01.2015,Elderly Frail Nursing Island,Charges from Independent Providers,"2,780.40",BUCKLAND CARE LTD
Revenue,Head of ASC & Community Wellbeing,5105611111,28.01.2015,Elderly Frail Nursing Island,Charges from Independent Providers,"2,780.40",BUCKLAND CARE LTD
Revenue,Head of ASC & Community Wellbeing,5105611111,28.01.2015,Elderly Mentally Ill Nursing Island,Charges from Independent Providers,"2,780.40",BUCKLAND CARE LTD
Revenue,Head of ASC & Community Wellbeing,5105611111,28.01.2015,Elderly Mentally Ill Nursing Island,Charges from Independent Providers,"2,780.40",BUCKLAND CARE LTD
Revenue,Head of ASC & Community Wellbeing,5105611854,28.01.2015,Elderly Mentally Ill Nursing Island,Charges from Independent Providers,695.10,BUCKLAND CARE LTD
Revenue,Head of ASC & Community Wellbeing,5105611854,28.01.2015,Elderly Mentally Ill Nursing Island,Charges from Independent Providers,"2,780.40",BUCKLAND CARE LTD
Revenue,Head of ASC & Community Wellbeing,5105611111,28.01.2015,Elderly Mentally Ill Nursing Island,Regular Respite Care,"2,780.40",BUCKLAND CARE LTD
Revenue,Head of ASC & Community Wellbeing,5105611111,28.01.2015,Funded Nursing Care Island,Charges from Independent Providers,443.80,BUCKLAND CARE LTD
Revenue,Head of ASC & Community Wellbeing,5105611111,28.01.2015,Funded Nursing Care Island,Charges from Independent Providers,443.80,BUCKLAND CARE LTD
Revenue,Head of ASC & Community Wellbeing,5105611111,28.01.2015,Funded Nursing Care Island,Charges from Independent Providers,443.80,BUCKLAND CARE LTD
Revenue,Head of ASC & Community Wellbeing,5105611111,28.01.2015,Funded Nursing Care Island,Charges from Independent Providers,443.80,BUCKLAND CARE LTD
Revenue,Head of ASC & Community Wellbeing,5105611111,28.01.2015,Funded Nursing Care Island,Charges from Independent Providers,443.80,BUCKLAND CARE LTD
Revenue,Head of ASC & Community Wellbeing,5105611111,28.01.2015,Funded Nursing Care Island,Charges from Independent Providers,443.80,BUCKLAND CARE LTD
Revenue,Head of ASC & Community Wellbeing,5105611111,28.01.2015,Funded Nursing Care Island,Charges from Independent Providers,443.80,BUCKLAND CARE LTD
Revenue,Head of ASC & Community Wellbeing,5105611111,28.01.2015,Funded Nursing Care Island,Charges from Independent Providers,443.80,BUCKLAND CARE LTD
Revenue,Head of ASC & Community Wellbeing,5105611111,28.01.2015,Funded Nursing Care Island,Charges from Independent Providers,443.80,BUCKLAND CARE LTD
Revenue,Head of ASC & Community Wellbeing,5105611111,28.01.2015,Funded Nursing Care Island,Charges from Independent Providers,443.80,BUCKLAND CARE LTD
Revenue,Head of ASC & Community Wellbeing,5105611111,28.01.2015,Funded Nursing Care Island,Charges from Independent Providers,443.80,BUCKLAND CARE LTD
Revenue,Head of ASC & Community Wellbeing,5105611111,28.01.2015,REDACTED PERSONAL DATA,Order Settlement to Bal Sht GL,"2,336.60",BUCKLAND CARE LTD
Revenue,Head of ASC & Community Wellbeing,5105611111,28.01.2015,REDACTED PERSONAL DATA,Order Settlement to Bal Sht GL,"2,336.60",BUCKLAND CARE LTD
Revenue,Head of ASC & Community Wellbeing,5105611111,28.01.2015,REDACTED PERSONAL DATA,Order Settlement to Bal Sht GL,"2,336.60",BUCKLAND CARE LTD
Revenue,Head of ASC & Community Wellbeing,5105610007,16.01.2015,Plean Dene,Consumable Cleaning Materials,74.78,BUNZL CLEANING & HYGIENE SUPPLIES LTD
Revenue,Head of ASC & Community Wellbeing,5105610010,16.01.2015,Plean Dene,Consumable Cleaning Materials,78.36,BUNZL CLEANING & HYGIENE SUPPLIES LTD
Revenue,Head of ASC & Community Wellbeing,5105611425,28.01.2015,Elderly Frail Nursing Mainland,Charges from Independent Providers,"1,841.84",BUPA CARE HOME (BNH) LTD
Revenue,Head of Finance & S151 Officer,5105607807,07.01.2015,Project Manager Waste Strategy,Consultants Fees,"6,796.00",BURGES SALMON LLP
Revenue,Head of Economy & Tourism,5105609781,26.01.2015,Properties  - Other Properties,Grounds Maintenance,120.00,C & J GROUND MAINTENANCE
Revenue,Head of Economy & Tourism,5105609420,14.01.2015,Properties  - Other Properties,Grounds Maintenance,735.00,C & J GROUND MAINTENANCE
Revenue,Head of Economy & Tourism,5105611037,28.01.2015,Properties  - Other Properties,Grounds Maintenance,150.00,C & J GROUND MAINTENANCE
Revenue,Head of Economy & Tourism,5105611815,26.01.2015,Properties  - Other Properties,Grounds Maintenance,-120.00,C & J GROUND MAINTENANCE
Revenue,Head of Economy & Tourism,5105611882,28.01.2015,Properties  - Other Properties,Grounds Maintenance,120.00,C & J GROUND MAINTENANCE
Revenue,Head of Economy & Tourism,5105612205,30.01.2015,Properties  - Other Properties,Grounds Maintenance,340.00,C & J GROUND MAINTENANCE
Revenue,Head of Economy & Tourism,5105612205,30.01.2015,Properties  - Other Properties,Grounds Maintenance,130.00,C & J GROUND MAINTENANCE
Revenue,Head of Economy & Tourism,5105612211,30.01.2015,Properties  - Other Properties,Grounds Maintenance,255.00,C & J GROUND MAINTENANCE
Revenue,Head of Economy & Tourism,5105612211,30.01.2015,Properties  - Other Properties,Grounds Maintenance,70.00,C & J GROUND MAINTENANCE
Revenue,Head of Economy & Tourism,5105612204,30.01.2015,Properties  - Other Properties,Grounds Maintenance,235.00,C & J GROUND MAINTENANCE
Revenue,Head of Economy & Tourism,5105612204,30.01.2015,Properties  - Other Properties,Grounds Maintenance,70.00,C & J GROUND MAINTENANCE
Revenue,Head of HR & Organisational Change,5105609545,16.01.2015,"Westridge, Ryde",Grounds Maintenance,137.00,C & J GROUND MAINTENANCE
Revenue,Head of ASC & Community Wellbeing,5105608785,14.01.2015,Mental Health Day Services,Grounds Maintenance,185.00,C & J GROUND MAINTENANCE
Revenue,Head of ASC & Community Wellbeing,5105610227,21.01.2015,Mental Health Day Services,Grounds Maintenance,140.00,C & J GROUND MAINTENANCE
Revenue,Head of ASC & Community Wellbeing,5105607778,07.01.2015,Mental Health Day Services,Grounds Maintenance,140.00,C & J GROUND MAINTENANCE
Revenue,Head of Economy & Tourism,5105612206,30.01.2015,"Car Park - St Thomas Street, Ryde",Payment to Private Contractors,"1,578.80",C & J GROUND MAINTENANCE
Revenue,Director of Childrens Services,5105607594,02.01.2015,In-house Fostering,Boarding Out Allowances,16.50,REDACTED PERSONAL DATA
Revenue,Director of Childrens Services,5105608160,09.01.2015,In-house Fostering,Boarding Out Allowances,16.50,REDACTED PERSONAL DATA
Revenue,Director of Childrens Services,5105609685,16.01.2015,In-house Fostering,Boarding Out Allowances,16.50,REDACTED PERSONAL DATA
Revenue,Director of Childrens Services,5105610782,23.01.2015,In-house Fostering,Boarding Out Allowances,16.50,REDACTED PERSONAL DATA
Revenue,Director of Childrens Services,5105612130,30.01.2015,In-house Fostering,Boarding Out Allowances,16.50,REDACTED PERSONAL DATA
Revenue,Director of Childrens Services,5105607543,02.01.2015,Children placed with Family&Friends,Boarding Out Allowances,278.50,REDACTED PERSONAL DATA
Revenue,Director of Childrens Services,5105610756,23.01.2015,Children placed with Family&Friends,Boarding Out Allowances,278.50,REDACTED PERSONAL DATA
Revenue,Director of Childrens Services,5105609663,16.01.2015,Children placed with Family&Friends,Boarding Out Allowances,278.50,REDACTED PERSONAL DATA
Revenue,Director of Childrens Services,5105608138,09.01.2015,Children placed with Family&Friends,Boarding Out Allowances,278.50,REDACTED PERSONAL DATA
Revenue,Director of Childrens Services,5105612107,30.01.2015,Children placed with Family&Friends,Boarding Out Allowances,278.50,REDACTED PERSONAL DATA
Revenue,Director of Childrens Services,5105607502,02.01.2015,Special Guardianship Order Costs,Support Children,125.79,REDACTED PERSONAL DATA
Revenue,Director of Childrens Services,5105608116,09.01.2015,Special Guardianship Order Costs,Support Children,125.79,REDACTED PERSONAL DATA
Revenue,Director of Childrens Services,5105609641,16.01.2015,Special Guardianship Order Costs,Support Children,125.79,REDACTED PERSONAL DATA
Revenue,Director of Childrens Services,5105610706,23.01.2015,Special Guardianship Order Costs,Support Children,125.79,REDACTED PERSONAL DATA
Revenue,Director of Childrens Services,5105612085,30.01.2015,Special Guardianship Order Costs,Support Children,125.79,REDACTED PERSONAL DATA
Revenue,Director of Childrens Services,5105607601,02.01.2015,Children placed with Family&Friends,Boarding Out Allowances,140.33,REDACTED PERSONAL DATA
Revenue,Director of Childrens Services,5105610790,23.01.2015,Children placed with Family&Friends,Boarding Out Allowances,140.33,REDACTED PERSONAL DATA
Revenue,Director of Childrens Services,5105609691,16.01.2015,Children placed with Family&Friends,Boarding Out Allowances,140.33,REDACTED PERSONAL DATA
Revenue,Director of Childrens Services,5105608166,09.01.2015,Children placed with Family&Friends,Boarding Out Allowances,140.33,REDACTED PERSONAL DATA
Revenue,Director of Childrens Services,5105612137,30.01.2015,Children placed with Family&Friends,Boarding Out Allowances,140.33,REDACTED PERSONAL DATA
Revenue,Director of Childrens Services,5105608148,09.01.2015,Adoption Costs,Support Children,125.79,REDACTED PERSONAL DATA
Revenue,Director of Childrens Services,5105608148,09.01.2015,Adoption Costs,Support Children,132.69,REDACTED PERSONAL DATA
Revenue,Director of Childrens Services,5105607568,02.01.2015,Adoption Costs,Support Children,125.79,REDACTED PERSONAL DATA
Revenue,Director of Childrens Services,5105607569,02.01.2015,Adoption Costs,Support Children,132.69,REDACTED PERSONAL DATA
Revenue,Director of Childrens Services,5105612117,30.01.2015,Adoption Costs,Support Children,125.79,REDACTED PERSONAL DATA
Revenue,Director of Childrens Services,5105612117,30.01.2015,Adoption Costs,Support Children,132.69,REDACTED PERSONAL DATA
Revenue,Director of Childrens Services,5105610768,23.01.2015,Adoption Costs,Support Children,125.79,REDACTED PERSONAL DATA
Revenue,Director of Childrens Services,5105610768,23.01.2015,Adoption Costs,Support Children,132.69,REDACTED PERSONAL DATA
Revenue,Director of Childrens Services,5105609673,16.01.2015,Adoption Costs,Support Children,125.79,REDACTED PERSONAL DATA
Revenue,Director of Childrens Services,5105609673,16.01.2015,Adoption Costs,Support Children,132.69,REDACTED PERSONAL DATA
Revenue,Head of Exchequer Services,5105610755,23.01.2015,Staff Benefits,Payment to Private Contractors,166.50,REDACTED PERSONAL DATA
Revenue,Director of Childrens Services,5105610822,23.01.2015,Children placed with Family&Friends,Boarding Out Allowances,199.00,REDACTED PERSONAL DATA
Revenue,Director of Childrens Services,5105609721,16.01.2015,Children placed with Family&Friends,Boarding Out Allowances,199.00,REDACTED PERSONAL DATA
Revenue,Director of Childrens Services,5105608197,09.01.2015,Children placed with Family&Friends,Boarding Out Allowances,199.00,REDACTED PERSONAL DATA
Revenue,Director of Childrens Services,5105607647,02.01.2015,Children placed with Family&Friends,Boarding Out Allowances,199.00,REDACTED PERSONAL DATA
Revenue,Director of Childrens Services,5105612167,30.01.2015,Children placed with Family&Friends,Boarding Out Allowances,199.00,REDACTED PERSONAL DATA
Revenue,Director of Childrens Services,5105607530,02.01.2015,Special Guardianship Order Costs,Support Children,125.79,REDACTED PERSONAL DATA
Revenue,Director of Childrens Services,5105608130,09.01.2015,Special Guardianship Order Costs,Support Children,125.79,REDACTED PERSONAL DATA
Revenue,Director of Childrens Services,5105609655,16.01.2015,Special Guardianship Order Costs,Support Children,125.79,REDACTED PERSONAL DATA
Revenue,Director of Childrens Services,5105610747,23.01.2015,Special Guardianship Order Costs,Support Children,125.79,REDACTED PERSONAL DATA
Revenue,Director of Childrens Services,5105612099,30.01.2015,Special Guardianship Order Costs,Support Children,125.79,REDACTED PERSONAL DATA
Revenue,Director of Childrens Services,5105609905,16.01.2015,In-house Fostering,Boarding Out Allowances,142.14,REDACTED PERSONAL DATA
Revenue,Director of Childrens Services,5105609905,16.01.2015,In-house Fostering,Boarding Out Allowances,114.18,REDACTED PERSONAL DATA
Revenue,Director of Childrens Services,5105610784,23.01.2015,In-house Fostering,Boarding Out Allowances,199.00,REDACTED PERSONAL DATA
Revenue,Director of Childrens Services,5105610784,23.01.2015,In-house Fostering,Boarding Out Allowances,159.85,REDACTED PERSONAL DATA
Revenue,Director of Childrens Services,5105612132,30.01.2015,In-house Fostering,Boarding Out Allowances,199.00,REDACTED PERSONAL DATA
Revenue,Director of Childrens Services,5105612132,30.01.2015,In-house Fostering,Boarding Out Allowances,159.85,REDACTED PERSONAL DATA
Revenue,Director of Childrens Services,5105608120,09.01.2015,Adoption Costs,Support Children,168.39,REDACTED PERSONAL DATA
Revenue,Director of Childrens Services,5105608120,09.01.2015,Adoption Costs,Support Children,168.39,REDACTED PERSONAL DATA
Revenue,Director of Childrens Services,5105607510,02.01.2015,Adoption Costs,Support Children,168.39,REDACTED PERSONAL DATA
Revenue,Director of Childrens Services,5105607511,02.01.2015,Adoption Costs,Support Children,168.39,REDACTED PERSONAL DATA
Revenue,Director of Childrens Services,5105612089,30.01.2015,Adoption Costs,Support Children,168.39,REDACTED PERSONAL DATA
Revenue,Director of Childrens Services,5105612089,30.01.2015,Adoption Costs,Support Children,168.39,REDACTED PERSONAL DATA
Revenue,Director of Childrens Services,5105610710,23.01.2015,Adoption Costs,Support Children,168.39,REDACTED PERSONAL DATA
Revenue,Director of Childrens Services,5105610710,23.01.2015,Adoption Costs,Support Children,168.39,REDACTED PERSONAL DATA
Revenue,Director of Childrens Services,5105609645,16.01.2015,Adoption Costs,Support Children,168.39,REDACTED PERSONAL DATA
Revenue,Director of Childrens Services,5105609645,16.01.2015,Adoption Costs,Support Children,168.39,REDACTED PERSONAL DATA
Revenue,Director of Childrens Services,5105607627,02.01.2015,Special Guardianship Order Costs,Support Children,116.80,REDACTED PERSONAL DATA
Revenue,Director of Childrens Services,5105608186,09.01.2015,Special Guardianship Order Costs,Support Children,116.80,REDACTED PERSONAL DATA
Revenue,Director of Childrens Services,5105609710,16.01.2015,Special Guardianship Order Costs,Support Children,116.80,REDACTED PERSONAL DATA
Revenue,Director of Childrens Services,5105610809,23.01.2015,Special Guardianship Order Costs,Support Children,116.80,REDACTED PERSONAL DATA
Revenue,Director of Childrens Services,5105612156,30.01.2015,Special Guardianship Order Costs,Support Children,116.80,REDACTED PERSONAL DATA
Revenue,Director of Childrens Services,5105607497,02.01.2015,In-house Fostering,Boarding Out Allowances,10.00,REDACTED PERSONAL DATA
Revenue,Director of Childrens Services,5105608113,09.01.2015,In-house Fostering,Boarding Out Allowances,10.00,REDACTED PERSONAL DATA
Revenue,Director of Childrens Services,5105608113,09.01.2015,In-house Fostering,Boarding Out Allowances,199.00,REDACTED PERSONAL DATA
Revenue,Director of Childrens Services,5105608113,09.01.2015,In-house Fostering,Boarding Out Allowances,245.00,REDACTED PERSONAL DATA
Revenue,Director of Childrens Services,5105607672,02.01.2015,In-house Fostering,Boarding Out Allowances,242.08,REDACTED PERSONAL DATA
Revenue,Director of Childrens Services,5105607673,02.01.2015,In-house Fostering,Boarding Out Allowances,200.00,REDACTED PERSONAL DATA
Revenue,Director of Childrens Services,5105607498,02.01.2015,In-house Fostering,Boarding Out Allowances,199.00,REDACTED PERSONAL DATA
Revenue,Director of Childrens Services,5105607499,02.01.2015,In-house Fostering,Boarding Out Allowances,245.00,REDACTED PERSONAL DATA
Revenue,Director of Childrens Services,5105608113,09.01.2015,In-house Fostering,Boarding Out Allowances,242.08,REDACTED PERSONAL DATA
Revenue,Director of Childrens Services,5105608113,09.01.2015,In-house Fostering,Boarding Out Allowances,200.00,REDACTED PERSONAL DATA
Revenue,Director of Childrens Services,5105609638,16.01.2015,In-house Fostering,Boarding Out Allowances,10.00,REDACTED PERSONAL DATA
Revenue,Director of Childrens Services,5105609638,16.01.2015,In-house Fostering,Boarding Out Allowances,242.08,REDACTED PERSONAL DATA
Revenue,Director of Childrens Services,5105609638,16.01.2015,In-house Fostering,Boarding Out Allowances,200.00,REDACTED PERSONAL DATA
Revenue,Director of Childrens Services,5105609638,16.01.2015,In-house Fostering,Boarding Out Allowances,199.00,REDACTED PERSONAL DATA
Revenue,Director of Childrens Services,5105609638,16.01.2015,In-house Fostering,Boarding Out Allowances,245.00,REDACTED PERSONAL DATA
Revenue,Director of Childrens Services,5105610703,23.01.2015,In-house Fostering,Boarding Out Allowances,10.00,REDACTED PERSONAL DATA
Revenue,Director of Childrens Services,5105612082,30.01.2015,In-house Fostering,Boarding Out Allowances,245.00,REDACTED PERSONAL DATA
Revenue,Director of Childrens Services,5105610703,23.01.2015,In-house Fostering,Boarding Out Allowances,242.08,REDACTED PERSONAL DATA
Revenue,Director of Childrens Services,5105610703,23.01.2015,In-house Fostering,Boarding Out Allowances,200.00,REDACTED PERSONAL DATA
Revenue,Director of Childrens Services,5105612082,30.01.2015,In-house Fostering,Boarding Out Allowances,10.00,REDACTED PERSONAL DATA
Revenue,Director of Childrens Services,5105610703,23.01.2015,In-house Fostering,Boarding Out Allowances,199.00,REDACTED PERSONAL DATA
Revenue,Director of Childrens Services,5105610703,23.01.2015,In-house Fostering,Boarding Out Allowances,245.00,REDACTED PERSONAL DATA
Revenue,Director of Childrens Services,5105612082,30.01.2015,In-house Fostering,Boarding Out Allowances,242.08,REDACTED PERSONAL DATA
Revenue,Director of Childrens Services,5105612082,30.01.2015,In-house Fostering,Boarding Out Allowances,200.00,REDACTED PERSONAL DATA
Revenue,Director of Childrens Services,5105612082,30.01.2015,In-house Fostering,Boarding Out Allowances,199.00,REDACTED PERSONAL DATA
Revenue,Director of Childrens Services,5105610680,23.01.2015,Leaving Care Costs,Support Children,51.81,REDACTED PERSONAL DATA
Revenue,Director of Childrens Services,5105612058,30.01.2015,Leaving Care Costs,Support Children,120.89,REDACTED PERSONAL DATA
Revenue,Director of Childrens Services,5105612269,30.01.2015,Leaving Care Costs,Accommodation Costs - Service Users,57.50,REDACTED PERSONAL DATA
Revenue,Director of Childrens Services,5105607454,02.01.2015,In-house Fostering,Boarding Out Allowances,140.33,REDACTED PERSONAL DATA
Revenue,Director of Childrens Services,5105607455,02.01.2015,In-house Fostering,Boarding Out Allowances,242.08,REDACTED PERSONAL DATA
Revenue,Director of Childrens Services,5105607453,02.01.2015,In-house Fostering,Boarding Out Allowances,15.00,REDACTED PERSONAL DATA
Revenue,Director of Childrens Services,5105607456,02.01.2015,In-house Fostering,Boarding Out Allowances,199.00,REDACTED PERSONAL DATA
Revenue,Director of Childrens Services,5105608090,09.01.2015,In-house Fostering,Boarding Out Allowances,15.00,REDACTED PERSONAL DATA
Revenue,Director of Childrens Services,5105608090,09.01.2015,In-house Fostering,Boarding Out Allowances,140.33,REDACTED PERSONAL DATA
Revenue,Director of Childrens Services,5105608090,09.01.2015,In-house Fostering,Boarding Out Allowances,242.08,REDACTED PERSONAL DATA
Revenue,Director of Childrens Services,5105608090,09.01.2015,In-house Fostering,Boarding Out Allowances,199.00,REDACTED PERSONAL DATA
Revenue,Director of Childrens Services,5105609615,16.01.2015,In-house Fostering,Boarding Out Allowances,15.00,REDACTED PERSONAL DATA
Revenue,Director of Childrens Services,5105609615,16.01.2015,In-house Fostering,Boarding Out Allowances,199.00,REDACTED PERSONAL DATA
Revenue,Director of Childrens Services,5105609615,16.01.2015,In-house Fostering,Boarding Out Allowances,140.33,REDACTED PERSONAL DATA
Revenue,Director of Childrens Services,5105609615,16.01.2015,In-house Fostering,Boarding Out Allowances,242.08,REDACTED PERSONAL DATA
Revenue,Director of Childrens Services,5105610680,23.01.2015,In-house Fostering,Boarding Out Allowances,15.00,REDACTED PERSONAL DATA
Revenue,Director of Childrens Services,5105610680,23.01.2015,In-house Fostering,Boarding Out Allowances,199.00,REDACTED PERSONAL DATA
Revenue,Director of Childrens Services,5105612058,30.01.2015,In-house Fostering,Boarding Out Allowances,15.00,REDACTED PERSONAL DATA
Revenue,Director of Childrens Services,5105610680,23.01.2015,In-house Fostering,Boarding Out Allowances,140.33,REDACTED PERSONAL DATA
Revenue,Director of Childrens Services,5105610680,23.01.2015,In-house Fostering,Boarding Out Allowances,138.33,REDACTED PERSONAL DATA
Revenue,Director of Childrens Services,5105612058,30.01.2015,In-house Fostering,Boarding Out Allowances,199.00,REDACTED PERSONAL DATA
Revenue,Director of Childrens Services,5105612058,30.01.2015,In-house Fostering,Boarding Out Allowances,140.33,REDACTED PERSONAL DATA
Revenue,Director of Childrens Services,5105607490,02.01.2015,Children placed with Family&Friends,Boarding Out Allowances,199.00,REDACTED PERSONAL DATA
Revenue,Director of Childrens Services,5105607491,02.01.2015,Children placed with Family&Friends,Boarding Out Allowances,100.00,REDACTED PERSONAL DATA
Revenue,Director of Childrens Services,5105610698,23.01.2015,Children placed with Family&Friends,Boarding Out Allowances,199.00,REDACTED PERSONAL DATA
Revenue,Director of Childrens Services,5105610698,23.01.2015,Children placed with Family&Friends,Boarding Out Allowances,100.00,REDACTED PERSONAL DATA
Revenue,Director of Childrens Services,5105609633,16.01.2015,Children placed with Family&Friends,Boarding Out Allowances,199.00,REDACTED PERSONAL DATA
Revenue,Director of Childrens Services,5105609633,16.01.2015,Children placed with Family&Friends,Boarding Out Allowances,100.00,REDACTED PERSONAL DATA
Revenue,Director of Childrens Services,5105608108,09.01.2015,Children placed with Family&Friends,Boarding Out Allowances,199.00,REDACTED PERSONAL DATA
Revenue,Director of Childrens Services,5105608108,09.01.2015,Children placed with Family&Friends,Boarding Out Allowances,100.00,REDACTED PERSONAL DATA
Revenue,Director of Childrens Services,5105612077,30.01.2015,Children placed with Family&Friends,Boarding Out Allowances,199.00,REDACTED PERSONAL DATA
Revenue,Director of Childrens Services,5105612077,30.01.2015,Children placed with Family&Friends,Boarding Out Allowances,100.00,REDACTED PERSONAL DATA
Revenue,Head of Economy & Tourism,5105608800,14.01.2015,Rights of Way Operations,Payment to Private Contractors,192.00,C N SERVICES
Revenue,Head of Economy & Tourism,5105610531,21.01.2015,Other Grounds Maintenance,Payment to Private Contractors,217.25,C N SERVICES
Revenue,Head of Economy & Tourism,5105610497,23.01.2015,Play Areas Health & Safety work,Payment to Private Contractors,857.00,C N SERVICES
Revenue,Head of Planning & Regulatory Services,5105610536,23.01.2015,Coast Protection,Payment to Private Contractors,185.00,C N SERVICES
Capital,Head of Economy & Tourism,5105609564,16.01.2015,Cremator Replacement,Payment to Contractors - Capital,"4,657.00",C N SERVICES
Revenue,Director of Childrens Services,5105607641,02.01.2015,Children placed with Family&Friends,Boarding Out Allowances,199.00,REDACTED PERSONAL DATA
Revenue,Director of Childrens Services,5105610816,23.01.2015,Children placed with Family&Friends,Boarding Out Allowances,199.00,REDACTED PERSONAL DATA
Revenue,Director of Childrens Services,5105609715,16.01.2015,Children placed with Family&Friends,Boarding Out Allowances,199.00,REDACTED PERSONAL DATA
Revenue,Director of Childrens Services,5105608191,09.01.2015,Children placed with Family&Friends,Boarding Out Allowances,199.00,REDACTED PERSONAL DATA
Revenue,Director of Childrens Services,5105612161,30.01.2015,Children placed with Family&Friends,Boarding Out Allowances,199.00,REDACTED PERSONAL DATA
Revenue,Director of Childrens Services,5105607555,02.01.2015,Special Guardianship Order Costs,Support Children,161.49,REDACTED PERSONAL DATA
Revenue,Director of Childrens Services,5105608142,09.01.2015,Special Guardianship Order Costs,Support Children,161.49,REDACTED PERSONAL DATA
Revenue,Director of Childrens Services,5105612111,30.01.2015,Special Guardianship Order Costs,Support Children,161.49,REDACTED PERSONAL DATA
Revenue,Director of Childrens Services,5105609667,16.01.2015,Special Guardianship Order Costs,Support Children,161.49,REDACTED PERSONAL DATA
Revenue,Director of Childrens Services,5105610760,23.01.2015,Special Guardianship Order Costs,Support Children,161.49,REDACTED PERSONAL DATA
Revenue,Head of ASC & Community Wellbeing,5105611067,28.01.2015,Learning Disability Residential Care,Charges from Independent Providers,"1,894.76",REDACTED PERSONAL DATA
Revenue,Director of Childrens Services,5105608114,09.01.2015,Adoption Costs,Support Children,132.69,REDACTED PERSONAL DATA
Revenue,Director of Childrens Services,5105607500,02.01.2015,Adoption Costs,Support Children,132.69,REDACTED PERSONAL DATA
Revenue,Director of Childrens Services,5105612083,30.01.2015,Adoption Costs,Support Children,132.69,REDACTED PERSONAL DATA
Revenue,Director of Childrens Services,5105610704,23.01.2015,Adoption Costs,Support Children,132.69,REDACTED PERSONAL DATA
Revenue,Director of Childrens Services,5105609639,16.01.2015,Adoption Costs,Support Children,132.69,REDACTED PERSONAL DATA
Revenue,Head of HR & Organisational Change,5105610984,30.01.2015,ICT Contracts,Computer Maintenance,"2,762.44",CABLE & WIRELESS WORLDWIDE
Revenue,Director of Childrens Services,5105607685,07.01.2015,Learning & Development Running Costs,Gas,303.94,CALOR GAS LIMITED
Revenue,Head of Economy & Tourism,5105612340,30.01.2015,Rights of Way Operations,Maintenance of Operational Equipment,13.75,CALOR GAS LIMITED
Revenue,Head of Economy & Tourism,5105610427,23.01.2015,Historic Environment Record,Publications,147.66,CAMBRIDGE UNIVERSITY PRESS
Revenue,Head of HR & Organisational Change,5105610567,30.01.2015,Shared Services Manager,Cleaning Contracts,5.20,CANNON HYGIENE
Revenue,Head of HR & Organisational Change,5105610567,30.01.2015,"Enterprise House, Newport",Cleaning Contracts,12.09,CANNON HYGIENE
Revenue,Head of HR & Organisational Change,5105610567,30.01.2015,"County Hall,Newport",Cleaning Contracts,100.66,CANNON HYGIENE
Revenue,Head of HR & Organisational Change,5105610567,30.01.2015,"Civic Centre,Sandown",Cleaning Contracts,11.05,CANNON HYGIENE
Revenue,Head of HR & Organisational Change,5105610567,30.01.2015,"Bugle House,Newport",Cleaning Contracts,4.16,CANNON HYGIENE
Revenue,Head of ASC & Community Wellbeing,5105610567,30.01.2015,Downside Community & Learning Centre,Cleaning Contracts,12.35,CANNON HYGIENE
Revenue,Head of ASC & Community Wellbeing,5105603969,30.01.2015,31 Carter Avenue,Professional Services,10.00,CANNON HYGIENE
Revenue,Head of ASC & Community Wellbeing,5105610567,30.01.2015,31 Carter Avenue,Professional Services,1.04,CANNON HYGIENE
Revenue,Head of ASC & Community Wellbeing,5105610567,30.01.2015,Overbrook,Professional Services,43.94,CANNON HYGIENE
Revenue,Head of ASC & Community Wellbeing,5105610567,30.01.2015,Seagulls,Professional Services,1.04,CANNON HYGIENE
Revenue,Head of ASC & Community Wellbeing,5105603969,30.01.2015,Seagulls,Professional Services,6.00,CANNON HYGIENE
Revenue,Head of ASC & Community Wellbeing,5105610567,30.01.2015,Plean Dene,Professional Services,109.03,CANNON HYGIENE
Revenue,Head of ASC & Community Wellbeing,5105610567,30.01.2015,Saxonbury,Professional Services,119.86,CANNON HYGIENE
Revenue,Head of ASC & Community Wellbeing,5105603969,30.01.2015,Saxonbury,Professional Services,4.80,CANNON HYGIENE
Revenue,Head of ASC & Community Wellbeing,5105610567,30.01.2015,Highmead,Professional Services,30.12,CANNON HYGIENE
Revenue,Head of ASC & Community Wellbeing,5105610567,30.01.2015,The Laurels,Professional Services,30.11,CANNON HYGIENE
Revenue,Head of Economy & Tourism,5105610567,30.01.2015,"Barrack Block, Sandown",Cleaning Contracts,4.16,CANNON HYGIENE
Revenue,Head of ASC & Community Wellbeing,5105610567,30.01.2015,Adelaide Resource Centre,Cleaning Contracts,35.01,CANNON HYGIENE
Revenue,Head of ASC & Community Wellbeing,5105610567,30.01.2015,Westminster House,Cleaning Contracts,49.22,CANNON HYGIENE
Revenue,Head of ASC & Community Wellbeing,5105610567,30.01.2015,Mental Health Day Services,Cleaning Contracts,4.16,CANNON HYGIENE
Revenue,Head of ASC & Community Wellbeing,5105610567,30.01.2015,Mental Health Day Services,Cleaning Contracts,2.08,CANNON HYGIENE
Revenue,Head of Economy & Tourism,5105610567,30.01.2015,Library HQ,Cleaning Contracts,2.08,CANNON HYGIENE
Revenue,Head of Economy & Tourism,5105610567,30.01.2015,Freshwater West Wight Library,Cleaning Contracts,1.04,CANNON HYGIENE
Revenue,Head of Economy & Tourism,5105610567,30.01.2015,Newport Library,Cleaning Contracts,10.96,CANNON HYGIENE
Revenue,Head of Economy & Tourism,5105610567,30.01.2015,Ryde Library,Cleaning Contracts,1.04,CANNON HYGIENE
Revenue,Head of Economy & Tourism,5105610567,30.01.2015,Sandown Library,Cleaning Contracts,1.04,CANNON HYGIENE
Revenue,Director of Childrens Services,5105610567,30.01.2015,Learning & Development Running Costs,Cleaning Contracts,5.20,CANNON HYGIENE
Revenue,Head of Economy & Tourism,5105610567,30.01.2015,Guildhall Museum,Cleaning Contracts,2.08,CANNON HYGIENE
Revenue,Head of Economy & Tourism,5105610567,30.01.2015,Dinosaur Isle Museum (Sandown Geology),Cleaning Contracts,11.53,CANNON HYGIENE
Revenue,Head of Economy & Tourism,5105610567,30.01.2015,The Heights,Cleaning Contracts,78.35,CANNON HYGIENE
Revenue,Head of Economy & Tourism,5105610567,30.01.2015,Medina Leisure Centre,Cleaning Contracts,38.91,CANNON HYGIENE
Revenue,Head of Economy & Tourism,5105610567,30.01.2015,Westridge Squash Courts,Cleaning Contracts,3.12,CANNON HYGIENE
Revenue,Director of Childrens Services,5105610567,30.01.2015,Clatterford Pupil Referral Unit (PRU),Cleaning Contracts,7.28,CANNON HYGIENE
Revenue,Director of Childrens Services,5105610567,30.01.2015,Workshop Initiative Support in Education,Cleaning Contracts,2.08,CANNON HYGIENE
Revenue,Director of Childrens Services,5105610567,30.01.2015,Youth Offending Team,Cleaning Contracts,1.04,CANNON HYGIENE
Revenue,Director of Childrens Services,5105610567,30.01.2015,Specialist Support Service,Cleaning Contracts,8.41,CANNON HYGIENE
Revenue,Director of Childrens Services,5105610567,30.01.2015,Specialist Service Business Admin,Cleaning Contracts,13.13,CANNON HYGIENE
Revenue,Director of Childrens Services,5105610567,30.01.2015,Beaulieu House,Cleaning Contracts,141.09,CANNON HYGIENE
Revenue,Director of Childrens Services,5105610567,30.01.2015,Branstone Farm Studies Centre,Cleaning Contracts,2.08,CANNON HYGIENE
Revenue,Head of Economy & Tourism,5105610567,30.01.2015,Fort Victoria,Cleaning Contracts,4.51,CANNON HYGIENE
Revenue,Chief Fire Officer,5105610567,30.01.2015,Fire Technical Support,Cleaning Contracts,2.08,CANNON HYGIENE
Revenue,Chief Fire Officer,5105610567,30.01.2015,Fire Technical Support,Cleaning Contracts,1.04,CANNON HYGIENE
Revenue,Chief Fire Officer,5105610567,30.01.2015,Fire Technical Support,Cleaning Contracts,1.04,CANNON HYGIENE
Revenue,Chief Fire Officer,5105610567,30.01.2015,Fire Technical Support,Cleaning Contracts,1.04,CANNON HYGIENE
Revenue,Chief Fire Officer,5105610567,30.01.2015,Fire Technical Support,Cleaning Contracts,3.12,CANNON HYGIENE
Revenue,Chief Fire Officer,5105610567,30.01.2015,Fire Technical Support,Cleaning Contracts,5.20,CANNON HYGIENE
Revenue,Chief Fire Officer,5105610567,30.01.2015,Fire Technical Support,Cleaning Contracts,1.04,CANNON HYGIENE
Revenue,Head of Planning & Regulatory Services,5105610567,30.01.2015,Planning Business Support,Cleaning Contracts,22.41,CANNON HYGIENE
Revenue,Head of Planning & Regulatory Services,5105610567,30.01.2015,Regulatory Management & Admin Support,Cleaning Contracts,3.12,CANNON HYGIENE
Revenue,Head of Economy & Tourism,5105610567,30.01.2015,Crematorium,Cleaning Contracts,3.12,CANNON HYGIENE
Revenue,Head of Economy & Tourism,5105607793,09.01.2015,Print Unit,Photocopying Costs,"1,624.38",CANON (UK) LTD
Revenue,Head of Economy & Tourism,5105611983,30.01.2015,Print Unit,Photocopying Costs,"1,569.92",CANON (UK) LTD
Revenue,Head of ASC & Community Wellbeing,5105610398,21.01.2015,DoLS/MCA,Professional Services,130.59,CAPACITY MATTERS LTD
Revenue,Head of ASC & Community Wellbeing,5105610394,21.01.2015,DoLS/MCA,Professional Services,504.99,CAPACITY MATTERS LTD
Revenue,Head of ASC & Community Wellbeing,5105610395,21.01.2015,DoLS/MCA,Professional Services,216.00,CAPACITY MATTERS LTD
Revenue,Head of ASC & Community Wellbeing,5105611830,28.01.2015,DoLS/MCA,Penalty Fees,64.72,CAPACITY MATTERS LTD
Revenue,Head of ASC & Community Wellbeing,5105611832,28.01.2015,DoLS/MCA,Penalty Fees,64.72,CAPACITY MATTERS LTD
Revenue,Director of Childrens Services,5105610883,23.01.2015,Childrens Services Finance Team,Bought in Prof Services - Curriculum (Schools),525.00,CAPITA BUSINESS SERVICES LTD
Revenue,Director of Childrens Services,5105609332,16.01.2015,Purchased Fostering,Charges from Independent Providers,"4,207.01",CAPSTONE FOSTER CARE LTD
Revenue,Head of ASC & Community Wellbeing,5105609206,14.01.2015,Elderly Frail Homecare,Charges from Independent Providers,45.84,CARE FIRST IW LTD
Revenue,Head of ASC & Community Wellbeing,5105609177,14.01.2015,Elderly Frail Homecare,Charges from Independent Providers,641.76,CARE FIRST IW LTD
Revenue,Head of ASC & Community Wellbeing,5105609175,14.01.2015,Elderly Frail Homecare,Charges from Independent Providers,336.16,CARE FIRST IW LTD
Revenue,Head of ASC & Community Wellbeing,5105609172,14.01.2015,Elderly Frail Homecare,Charges from Independent Providers,213.92,CARE FIRST IW LTD
Revenue,Head of ASC & Community Wellbeing,5105609173,14.01.2015,Elderly Frail Homecare,Charges from Independent Providers,332.34,CARE FIRST IW LTD
Revenue,Head of ASC & Community Wellbeing,5105609199,14.01.2015,Elderly Frail Homecare,Charges from Independent Providers,213.92,CARE FIRST IW LTD
Revenue,Head of ASC & Community Wellbeing,5105609196,14.01.2015,Elderly Frail Homecare,Charges from Independent Providers,855.68,CARE FIRST IW LTD
Revenue,Head of ASC & Community Wellbeing,5105609200,14.01.2015,Elderly Frail Homecare,Charges from Independent Providers,427.84,CARE FIRST IW LTD
Revenue,Head of ASC & Community Wellbeing,5105609202,14.01.2015,Elderly Frail Homecare,Charges from Independent Providers,"1,684.62",CARE FIRST IW LTD
Revenue,Head of ASC & Community Wellbeing,5105609194,14.01.2015,Elderly Frail Homecare,Charges from Independent Providers,"1,061.96",CARE FIRST IW LTD
Revenue,Head of ASC & Community Wellbeing,5105609197,14.01.2015,Elderly Frail Homecare,Charges from Independent Providers,152.80,CARE FIRST IW LTD
Revenue,Head of ASC & Community Wellbeing,5105609195,14.01.2015,Elderly Frail Homecare,Charges from Independent Providers,561.54,CARE FIRST IW LTD
Revenue,Head of ASC & Community Wellbeing,5105609192,14.01.2015,Elderly Frail Homecare,Charges from Independent Providers,"2,139.20",CARE FIRST IW LTD
Revenue,Head of ASC & Community Wellbeing,5105609207,14.01.2015,Elderly Frail Homecare,Charges from Independent Providers,374.36,CARE FIRST IW LTD
Revenue,Head of ASC & Community Wellbeing,5105609204,14.01.2015,Elderly Frail Homecare,Charges from Independent Providers,45.84,CARE FIRST IW LTD
Revenue,Head of ASC & Community Wellbeing,5105609210,14.01.2015,Elderly Frail Homecare,Charges from Independent Providers,160.44,CARE FIRST IW LTD
Revenue,Head of ASC & Community Wellbeing,5105609209,14.01.2015,Elderly Frail Homecare,Charges from Independent Providers,122.24,CARE FIRST IW LTD
Revenue,Head of ASC & Community Wellbeing,5105609186,14.01.2015,Elderly Frail Homecare,Charges from Independent Providers,431.66,CARE FIRST IW LTD
Revenue,Head of ASC & Community Wellbeing,5105609179,14.01.2015,Elderly Frail Homecare,Charges from Independent Providers,244.48,CARE FIRST IW LTD
Revenue,Head of ASC & Community Wellbeing,5105609180,14.01.2015,Elderly Frail Homecare,Charges from Independent Providers,244.48,CARE FIRST IW LTD
Revenue,Head of ASC & Community Wellbeing,5105609182,14.01.2015,Elderly Frail Homecare,Charges from Independent Providers,332.34,CARE FIRST IW LTD
Revenue,Head of ASC & Community Wellbeing,5105609183,14.01.2015,Elderly Frail Homecare,Charges from Independent Providers,962.64,CARE FIRST IW LTD
Revenue,Head of ASC & Community Wellbeing,5105609181,14.01.2015,Elderly Frail Homecare,Charges from Independent Providers,168.08,CARE FIRST IW LTD
Revenue,Head of ASC & Community Wellbeing,5105609193,14.01.2015,Elderly Frail Homecare,Charges from Independent Providers,817.48,CARE FIRST IW LTD
Revenue,Head of ASC & Community Wellbeing,5105609191,14.01.2015,Elderly Frail Homecare,Charges from Independent Providers,"1,237.68",CARE FIRST IW LTD
Revenue,Head of ASC & Community Wellbeing,5105609190,14.01.2015,Elderly Frail Homecare,Charges from Independent Providers,"1,023.76",CARE FIRST IW LTD
Revenue,Head of ASC & Community Wellbeing,5105609189,14.01.2015,Elderly Frail Homecare,Charges from Independent Providers,595.92,CARE FIRST IW LTD
Revenue,Head of ASC & Community Wellbeing,5105609188,14.01.2015,Elderly Frail Homecare,Charges from Independent Providers,"1,252.96",CARE FIRST IW LTD
Revenue,Head of ASC & Community Wellbeing,5105609203,14.01.2015,Elderly Frail Homecare,Charges from Independent Providers,187.18,CARE FIRST IW LTD
Revenue,Head of ASC & Community Wellbeing,5105609164,14.01.2015,Elderly Frail Homecare,Charges from Independent Providers,962.64,CARE FIRST IW LTD
Revenue,Head of ASC & Community Wellbeing,5105609165,14.01.2015,Elderly Frail Homecare,Charges from Independent Providers,320.88,CARE FIRST IW LTD
Revenue,Head of ASC & Community Wellbeing,5105609166,14.01.2015,Elderly Frail Homecare,Charges from Independent Providers,183.36,CARE FIRST IW LTD
Revenue,Head of ASC & Community Wellbeing,5105609167,14.01.2015,Elderly Frail Homecare,Charges from Independent Providers,389.64,CARE FIRST IW LTD
Revenue,Head of ASC & Community Wellbeing,5105609169,14.01.2015,Elderly Frail Homecare,Charges from Independent Providers,542.44,CARE FIRST IW LTD
Revenue,Head of ASC & Community Wellbeing,5105609170,14.01.2015,Elderly Frail Homecare,Charges from Independent Providers,198.64,CARE FIRST IW LTD
Revenue,Head of ASC & Community Wellbeing,5105609174,14.01.2015,Elderly Frail Homecare,Charges from Independent Providers,91.68,CARE FIRST IW LTD
Revenue,Head of ASC & Community Wellbeing,5105609212,14.01.2015,Elderly Frail Homecare,Charges from Independent Providers,687.60,CARE FIRST IW LTD
Revenue,Head of ASC & Community Wellbeing,5105609201,14.01.2015,Elderly Frail Homecare,Regular Respite Care,30.56,CARE FIRST IW LTD
Revenue,Head of ASC & Community Wellbeing,5105609198,14.01.2015,Elderly Frail Homecare,Regular Respite Care,229.20,CARE FIRST IW LTD
Revenue,Head of ASC & Community Wellbeing,5105609208,14.01.2015,Elderly Frail Homecare,Regular Respite Care,91.68,CARE FIRST IW LTD
Revenue,Head of ASC & Community Wellbeing,5105609205,14.01.2015,Elderly Frail Homecare,Regular Respite Care,122.24,CARE FIRST IW LTD
Revenue,Head of ASC & Community Wellbeing,5105609214,14.01.2015,Elderly Frail Homecare,Regular Respite Care,122.24,CARE FIRST IW LTD
Revenue,Head of ASC & Community Wellbeing,5105609213,14.01.2015,Elderly Frail Homecare,Regular Respite Care,122.24,CARE FIRST IW LTD
Revenue,Head of ASC & Community Wellbeing,5105610094,21.01.2015,Elderly Frail Homecare,Regular Respite Care,91.68,CARE FIRST IW LTD
Revenue,Head of ASC & Community Wellbeing,5105609176,14.01.2015,Elderly Mentally Ill Homecare,Charges from Independent Providers,"2,200.32",CARE FIRST IW LTD
Revenue,Head of ASC & Community Wellbeing,5105609184,14.01.2015,Elderly Mentally Ill Homecare,Charges from Independent Providers,641.76,CARE FIRST IW LTD
Revenue,Head of ASC & Community Wellbeing,5105609185,14.01.2015,Elderly Mentally Ill Homecare,Regular Respite Care,61.12,CARE FIRST IW LTD
Revenue,Head of ASC & Community Wellbeing,5105609168,14.01.2015,Mental Health Homecare,Charges from Independent Providers,175.72,CARE FIRST IW LTD
Revenue,Head of ASC & Community Wellbeing,5105609211,14.01.2015,Physical Disability Homecare,Charges from Independent Providers,30.56,CARE FIRST IW LTD
Revenue,Head of ASC & Community Wellbeing,5105609187,14.01.2015,Physical Disability Homecare,Charges from Independent Providers,171.90,CARE FIRST IW LTD
Revenue,Head of ASC & Community Wellbeing,5105609171,14.01.2015,Physical Disability Homecare,Charges from Independent Providers,"2,276.72",CARE FIRST IW LTD
Revenue,Head of ASC & Community Wellbeing,5105609178,14.01.2015,Physical Disability Homecare,Regular Respite Care,122.24,CARE FIRST IW LTD
Revenue,Head of ASC & Community Wellbeing,5105608954,14.01.2015,Elderly Frail Homecare,Charges from Independent Providers,"1,130.72",CAREWATCH (SOUTHAMPTON NEW FOREST & IOW)
Revenue,Head of ASC & Community Wellbeing,5105608955,14.01.2015,Elderly Frail Homecare,Charges from Independent Providers,267.40,CAREWATCH (SOUTHAMPTON NEW FOREST & IOW)
Revenue,Head of ASC & Community Wellbeing,5105608932,14.01.2015,Elderly Frail Homecare,Charges from Independent Providers,126.06,CAREWATCH (SOUTHAMPTON NEW FOREST & IOW)
Revenue,Head of ASC & Community Wellbeing,5105608931,14.01.2015,Elderly Frail Homecare,Charges from Independent Providers,382.00,CAREWATCH (SOUTHAMPTON NEW FOREST & IOW)
Revenue,Head of ASC & Community Wellbeing,5105609020,14.01.2015,Elderly Frail Homecare,Charges from Independent Providers,366.72,CAREWATCH (SOUTHAMPTON NEW FOREST & IOW)
Revenue,Head of ASC & Community Wellbeing,5105609025,14.01.2015,Elderly Frail Homecare,Charges from Independent Providers,397.28,CAREWATCH (SOUTHAMPTON NEW FOREST & IOW)
Revenue,Head of ASC & Community Wellbeing,5105609016,14.01.2015,Elderly Frail Homecare,Charges from Independent Providers,595.92,CAREWATCH (SOUTHAMPTON NEW FOREST & IOW)
Revenue,Head of ASC & Community Wellbeing,5105608941,14.01.2015,Elderly Frail Homecare,Charges from Independent Providers,595.92,CAREWATCH (SOUTHAMPTON NEW FOREST & IOW)
Revenue,Head of ASC & Community Wellbeing,5105608942,14.01.2015,Elderly Frail Homecare,Charges from Independent Providers,137.52,CAREWATCH (SOUTHAMPTON NEW FOREST & IOW)
Revenue,Head of ASC & Community Wellbeing,5105609012,14.01.2015,Elderly Frail Homecare,Charges from Independent Providers,206.28,CAREWATCH (SOUTHAMPTON NEW FOREST & IOW)
Revenue,Head of ASC & Community Wellbeing,5105609017,14.01.2015,Elderly Frail Homecare,Charges from Independent Providers,958.82,CAREWATCH (SOUTHAMPTON NEW FOREST & IOW)
Revenue,Head of ASC & Community Wellbeing,5105609018,14.01.2015,Elderly Frail Homecare,Charges from Independent Providers,45.84,CAREWATCH (SOUTHAMPTON NEW FOREST & IOW)
Revenue,Head of ASC & Community Wellbeing,5105609024,14.01.2015,Elderly Frail Homecare,Charges from Independent Providers,397.28,CAREWATCH (SOUTHAMPTON NEW FOREST & IOW)
Revenue,Head of ASC & Community Wellbeing,5105608924,14.01.2015,Elderly Frail Homecare,Charges from Independent Providers,213.92,CAREWATCH (SOUTHAMPTON NEW FOREST & IOW)
Revenue,Head of ASC & Community Wellbeing,5105608925,14.01.2015,Elderly Frail Homecare,Charges from Independent Providers,179.54,CAREWATCH (SOUTHAMPTON NEW FOREST & IOW)
Revenue,Head of ASC & Community Wellbeing,5105608927,14.01.2015,Elderly Frail Homecare,Charges from Independent Providers,401.10,CAREWATCH (SOUTHAMPTON NEW FOREST & IOW)
Revenue,Head of ASC & Community Wellbeing,5105608992,14.01.2015,Elderly Frail Homecare,Charges from Independent Providers,496.60,CAREWATCH (SOUTHAMPTON NEW FOREST & IOW)
Revenue,Head of ASC & Community Wellbeing,5105608953,14.01.2015,Elderly Frail Homecare,Charges from Independent Providers,641.76,CAREWATCH (SOUTHAMPTON NEW FOREST & IOW)
Revenue,Head of ASC & Community Wellbeing,5105608760,14.01.2015,Elderly Frail Homecare,Charges from Independent Providers,44.52,CAREWATCH (SOUTHAMPTON NEW FOREST & IOW)
Revenue,Head of ASC & Community Wellbeing,5105608997,14.01.2015,Elderly Frail Homecare,Charges from Independent Providers,213.92,CAREWATCH (SOUTHAMPTON NEW FOREST & IOW)
Revenue,Head of ASC & Community Wellbeing,5105609002,14.01.2015,Elderly Frail Homecare,Charges from Independent Providers,244.48,CAREWATCH (SOUTHAMPTON NEW FOREST & IOW)
Revenue,Head of ASC & Community Wellbeing,5105609004,14.01.2015,Elderly Frail Homecare,Charges from Independent Providers,488.96,CAREWATCH (SOUTHAMPTON NEW FOREST & IOW)
Revenue,Head of ASC & Community Wellbeing,5105608998,14.01.2015,Elderly Frail Homecare,Charges from Independent Providers,183.36,CAREWATCH (SOUTHAMPTON NEW FOREST & IOW)
Revenue,Head of ASC & Community Wellbeing,5105609005,14.01.2015,Elderly Frail Homecare,Charges from Independent Providers,275.04,CAREWATCH (SOUTHAMPTON NEW FOREST & IOW)
Revenue,Head of ASC & Community Wellbeing,5105609003,14.01.2015,Elderly Frail Homecare,Charges from Independent Providers,175.72,CAREWATCH (SOUTHAMPTON NEW FOREST & IOW)
Revenue,Head of ASC & Community Wellbeing,5105608999,14.01.2015,Elderly Frail Homecare,Charges from Independent Providers,939.72,CAREWATCH (SOUTHAMPTON NEW FOREST & IOW)
Revenue,Head of ASC & Community Wellbeing,5105609014,14.01.2015,Elderly Frail Homecare,Charges from Independent Providers,259.76,CAREWATCH (SOUTHAMPTON NEW FOREST & IOW)
Revenue,Head of ASC & Community Wellbeing,5105609031,14.01.2015,Elderly Frail Homecare,Charges from Independent Providers,"1,466.88",CAREWATCH (SOUTHAMPTON NEW FOREST & IOW)
Revenue,Head of ASC & Community Wellbeing,5105609037,14.01.2015,Elderly Frail Homecare,Charges from Independent Providers,30.56,CAREWATCH (SOUTHAMPTON NEW FOREST & IOW)
Revenue,Head of ASC & Community Wellbeing,5105609038,14.01.2015,Elderly Frail Homecare,Charges from Independent Providers,45.84,CAREWATCH (SOUTHAMPTON NEW FOREST & IOW)
Revenue,Head of ASC & Community Wellbeing,5105609039,14.01.2015,Elderly Frail Homecare,Charges from Independent Providers,634.12,CAREWATCH (SOUTHAMPTON NEW FOREST & IOW)
Revenue,Head of ASC & Community Wellbeing,5105609026,14.01.2015,Elderly Frail Homecare,Charges from Independent Providers,91.68,CAREWATCH (SOUTHAMPTON NEW FOREST & IOW)
Revenue,Head of ASC & Community Wellbeing,5105609027,14.01.2015,Elderly Frail Homecare,Charges from Independent Providers,82.89,CAREWATCH (SOUTHAMPTON NEW FOREST & IOW)
Revenue,Head of ASC & Community Wellbeing,5105609028,14.01.2015,Elderly Frail Homecare,Charges from Independent Providers,"1,031.40",CAREWATCH (SOUTHAMPTON NEW FOREST & IOW)
Revenue,Head of ASC & Community Wellbeing,5105608973,14.01.2015,Elderly Frail Homecare,Charges from Independent Providers,191.00,CAREWATCH (SOUTHAMPTON NEW FOREST & IOW)
Revenue,Head of ASC & Community Wellbeing,5105609032,14.01.2015,Elderly Frail Homecare,Charges from Independent Providers,183.36,CAREWATCH (SOUTHAMPTON NEW FOREST & IOW)
Revenue,Head of ASC & Community Wellbeing,5105608967,14.01.2015,Elderly Frail Homecare,Charges from Independent Providers,660.86,CAREWATCH (SOUTHAMPTON NEW FOREST & IOW)
Revenue,Head of ASC & Community Wellbeing,5105608958,14.01.2015,Elderly Frail Homecare,Charges from Independent Providers,309.42,CAREWATCH (SOUTHAMPTON NEW FOREST & IOW)
Revenue,Head of ASC & Community Wellbeing,5105608984,14.01.2015,Elderly Frail Homecare,Charges from Independent Providers,"1,711.36",CAREWATCH (SOUTHAMPTON NEW FOREST & IOW)
Revenue,Head of ASC & Community Wellbeing,5105608969,14.01.2015,Elderly Frail Homecare,Charges from Independent Providers,389.64,CAREWATCH (SOUTHAMPTON NEW FOREST & IOW)
Revenue,Head of ASC & Community Wellbeing,5105608991,14.01.2015,Elderly Frail Homecare,Charges from Independent Providers,977.92,CAREWATCH (SOUTHAMPTON NEW FOREST & IOW)
Revenue,Head of ASC & Community Wellbeing,5105608989,14.01.2015,Elderly Frail Homecare,Charges from Independent Providers,359.08,CAREWATCH (SOUTHAMPTON NEW FOREST & IOW)
Revenue,Head of ASC & Community Wellbeing,5105608981,14.01.2015,Elderly Frail Homecare,Charges from Independent Providers,320.88,CAREWATCH (SOUTHAMPTON NEW FOREST & IOW)
Revenue,Head of ASC & Community Wellbeing,5105608986,14.01.2015,Elderly Frail Homecare,Charges from Independent Providers,213.92,CAREWATCH (SOUTHAMPTON NEW FOREST & IOW)
Revenue,Head of ASC & Community Wellbeing,5105608970,14.01.2015,Elderly Frail Homecare,Charges from Independent Providers,297.96,CAREWATCH (SOUTHAMPTON NEW FOREST & IOW)
Revenue,Head of ASC & Community Wellbeing,5105608979,14.01.2015,Elderly Frail Homecare,Charges from Independent Providers,382.00,CAREWATCH (SOUTHAMPTON NEW FOREST & IOW)
Revenue,Head of ASC & Community Wellbeing,5105608971,14.01.2015,Elderly Frail Homecare,Charges from Independent Providers,336.16,CAREWATCH (SOUTHAMPTON NEW FOREST & IOW)
Revenue,Head of ASC & Community Wellbeing,5105608975,14.01.2015,Elderly Frail Homecare,Charges from Independent Providers,668.50,CAREWATCH (SOUTHAMPTON NEW FOREST & IOW)
Revenue,Head of ASC & Community Wellbeing,5105609006,14.01.2015,Elderly Frail Homecare,Charges from Independent Providers,737.26,CAREWATCH (SOUTHAMPTON NEW FOREST & IOW)
Revenue,Head of ASC & Community Wellbeing,5105609007,14.01.2015,Elderly Frail Homecare,Charges from Independent Providers,"1,604.40",CAREWATCH (SOUTHAMPTON NEW FOREST & IOW)
Revenue,Head of ASC & Community Wellbeing,5105609008,14.01.2015,Elderly Frail Homecare,Charges from Independent Providers,"2,047.52",CAREWATCH (SOUTHAMPTON NEW FOREST & IOW)
Revenue,Head of ASC & Community Wellbeing,5105609009,14.01.2015,Elderly Frail Homecare,Charges from Independent Providers,641.76,CAREWATCH (SOUTHAMPTON NEW FOREST & IOW)
Revenue,Head of ASC & Community Wellbeing,5105609010,14.01.2015,Elderly Frail Homecare,Charges from Independent Providers,"1,146.00",CAREWATCH (SOUTHAMPTON NEW FOREST & IOW)
Revenue,Head of ASC & Community Wellbeing,5105609013,14.01.2015,Elderly Frail Homecare,Charges from Independent Providers,477.50,CAREWATCH (SOUTHAMPTON NEW FOREST & IOW)
Revenue,Head of ASC & Community Wellbeing,5105609029,14.01.2015,Elderly Frail Homecare,Charges from Independent Providers,45.84,CAREWATCH (SOUTHAMPTON NEW FOREST & IOW)
Revenue,Head of ASC & Community Wellbeing,5105608935,14.01.2015,Elderly Frail Homecare,Charges from Independent Providers,702.88,CAREWATCH (SOUTHAMPTON NEW FOREST & IOW)
Revenue,Head of ASC & Community Wellbeing,5105608936,14.01.2015,Elderly Frail Homecare,Charges from Independent Providers,183.36,CAREWATCH (SOUTHAMPTON NEW FOREST & IOW)
Revenue,Head of ASC & Community Wellbeing,5105608937,14.01.2015,Elderly Frail Homecare,Charges from Independent Providers,191.00,CAREWATCH (SOUTHAMPTON NEW FOREST & IOW)
Revenue,Head of ASC & Community Wellbeing,5105608938,14.01.2015,Elderly Frail Homecare,Charges from Independent Providers,320.88,CAREWATCH (SOUTHAMPTON NEW FOREST & IOW)
Revenue,Head of ASC & Community Wellbeing,5105608939,14.01.2015,Elderly Frail Homecare,Charges from Independent Providers,710.52,CAREWATCH (SOUTHAMPTON NEW FOREST & IOW)
Revenue,Head of ASC & Community Wellbeing,5105608940,14.01.2015,Elderly Frail Homecare,Charges from Independent Providers,263.58,CAREWATCH (SOUTHAMPTON NEW FOREST & IOW)
Revenue,Head of ASC & Community Wellbeing,5105608929,14.01.2015,Elderly Frail Homecare,Charges from Independent Providers,634.12,CAREWATCH (SOUTHAMPTON NEW FOREST & IOW)
Revenue,Head of ASC & Community Wellbeing,5105608930,14.01.2015,Elderly Frail Homecare,Charges from Independent Providers,993.20,CAREWATCH (SOUTHAMPTON NEW FOREST & IOW)
Revenue,Head of ASC & Community Wellbeing,5105608943,14.01.2015,Elderly Frail Homecare,Charges from Independent Providers,664.68,CAREWATCH (SOUTHAMPTON NEW FOREST & IOW)
Revenue,Head of ASC & Community Wellbeing,5105608944,14.01.2015,Elderly Frail Homecare,Charges from Independent Providers,"1,039.04",CAREWATCH (SOUTHAMPTON NEW FOREST & IOW)
Revenue,Head of ASC & Community Wellbeing,5105609744,16.01.2015,Elderly Frail Homecare,Charges from Independent Providers,"1,764.84",CAREWATCH (SOUTHAMPTON NEW FOREST & IOW)
Revenue,Head of ASC & Community Wellbeing,5105608947,14.01.2015,Elderly Frail Homecare,Charges from Independent Providers,320.88,CAREWATCH (SOUTHAMPTON NEW FOREST & IOW)
Revenue,Head of ASC & Community Wellbeing,5105609045,14.01.2015,Elderly Frail Homecare,Charges from Independent Providers,981.74,CAREWATCH (SOUTHAMPTON NEW FOREST & IOW)
Revenue,Head of ASC & Community Wellbeing,5105609046,14.01.2015,Elderly Frail Homecare,Charges from Independent Providers,91.68,CAREWATCH (SOUTHAMPTON NEW FOREST & IOW)
Revenue,Head of ASC & Community Wellbeing,5105609036,14.01.2015,Elderly Frail Homecare,Charges from Independent Providers,30.56,CAREWATCH (SOUTHAMPTON NEW FOREST & IOW)
Revenue,Head of ASC & Community Wellbeing,5105609049,14.01.2015,Elderly Frail Homecare,Charges from Independent Providers,634.12,CAREWATCH (SOUTHAMPTON NEW FOREST & IOW)
Revenue,Head of ASC & Community Wellbeing,5105609042,14.01.2015,Elderly Frail Homecare,Charges from Independent Providers,198.64,CAREWATCH (SOUTHAMPTON NEW FOREST & IOW)
Revenue,Head of ASC & Community Wellbeing,5105609047,14.01.2015,Elderly Frail Homecare,Charges from Independent Providers,267.40,CAREWATCH (SOUTHAMPTON NEW FOREST & IOW)
Revenue,Head of ASC & Community Wellbeing,5105609048,14.01.2015,Elderly Frail Homecare,Charges from Independent Providers,290.32,CAREWATCH (SOUTHAMPTON NEW FOREST & IOW)
Revenue,Head of ASC & Community Wellbeing,5105609043,14.01.2015,Elderly Frail Homecare,Charges from Independent Providers,557.72,CAREWATCH (SOUTHAMPTON NEW FOREST & IOW)
Revenue,Head of ASC & Community Wellbeing,5105610092,21.01.2015,Elderly Frail Homecare,Charges from Independent Providers,233.02,CAREWATCH (SOUTHAMPTON NEW FOREST & IOW)
Revenue,Head of ASC & Community Wellbeing,5105608957,14.01.2015,Elderly Frail Homecare,Regular Respite Care,122.24,CAREWATCH (SOUTHAMPTON NEW FOREST & IOW)
Revenue,Head of ASC & Community Wellbeing,5105608961,14.01.2015,Elderly Frail Homecare,Regular Respite Care,275.04,CAREWATCH (SOUTHAMPTON NEW FOREST & IOW)
Revenue,Head of ASC & Community Wellbeing,5105608945,14.01.2015,Elderly Frail Homecare,Regular Respite Care,106.96,CAREWATCH (SOUTHAMPTON NEW FOREST & IOW)
Revenue,Head of ASC & Community Wellbeing,5105608956,14.01.2015,Elderly Frail Homecare,Regular Respite Care,61.12,CAREWATCH (SOUTHAMPTON NEW FOREST & IOW)
